Organisation Name,Organisation Code,Unique Ref No,Effective Date,Directorate where expenditure incurred,Supplier Name,Payment Date,Net Amount,Purpose of Spend,Procurement Classification (Higher Level),Procurement Classification (Lower Level),Capital/Revenue
Walsall Council,http://opendatacommunities.org/id/metropolitan-district-council/walsall,WC117-1,30/06/2020,Childrens,247 CARS (WILLENHALL) LIMITED,18/06/2020,876.90,52000-WITH DRIVER-HIRE OF VEHICLES,HOME TO SCHOOL TRANSPORT,Transport,Revenue
Walsall Council,http://opendatacommunities.org/id/metropolitan-district-council/walsall,WC117-2,30/06/2020,Childrens,247 CARS (WILLENHALL) LIMITED,18/06/2020,"1,140.00",52000-WITH DRIVER-HIRE OF VEHICLES,HOME TO SCHOOL TRANSPORT,Transport,Revenue
Walsall Council,http://opendatacommunities.org/id/metropolitan-district-council/walsall,WC117-3,30/06/2020,Childrens,3P LEARNING LTD,12/06/2020,"2,754.00",63000-PROFESSIONAL FEES AND SERVICES,VIRTUAL SCHOOL CENTRAL PUPIL PREMIUM,Supplies & Services,Revenue
Walsall Council,http://opendatacommunities.org/id/metropolitan-district-council/walsall,WC117-4,30/06/2020,Adult Social Care,5 CARE SERVICES LTD,04/06/2020,539.84,73025-PROFESSIONAL SERVICES-PRIV CONTRACTOR & OTHER AGENCIES,INTERMEDIATE CARE SERVICE,Third Party Payments,Revenue
Walsall Council,http://opendatacommunities.org/id/metropolitan-district-council/walsall,WC117-5,30/06/2020,Childrens,5 CARE SERVICES LTD,04/06/2020,"4,976.40",63000-PROFESSIONAL FEES AND SERVICES,DIRECTLY COMMISSIONED NURSING SERVICES,Supplies & Services,Revenue
Walsall Council,http://opendatacommunities.org/id/metropolitan-district-council/walsall,WC117-6,30/06/2020,Childrens,5 CARE SERVICES LTD,05/06/2020,"3,891.80",63000-PROFESSIONAL FEES AND SERVICES,DIRECTLY COMMISSIONED NURSING SERVICES,Supplies & Services,Revenue
Walsall Council,http://opendatacommunities.org/id/metropolitan-district-council/walsall,WC117-7,30/06/2020,Childrens,5 CARE SERVICES LTD,08/06/2020,"1,443.48",63000-PROFESSIONAL FEES AND SERVICES,DIRECTLY COMMISSIONED NURSING SERVICES,Supplies & Services,Revenue
Walsall Council,http://opendatacommunities.org/id/metropolitan-district-council/walsall,WC117-8,30/06/2020,Childrens,5 CARE SERVICES LTD,08/06/2020,"3,158.10",63000-PROFESSIONAL FEES AND SERVICES,DIRECTLY COMMISSIONED NURSING SERVICES,Supplies & Services,Revenue
Walsall Council,http://opendatacommunities.org/id/metropolitan-district-council/walsall,WC117-9,30/06/2020,Adult Social Care,5 CARE SERVICES LTD,09/06/2020,280.13,73507-DOMICILIARY CARE,MENTAL HEALTH SUPPORT,Third Party Payments,Revenue
Walsall Council,http://opendatacommunities.org/id/metropolitan-district-council/walsall,WC117-10,30/06/2020,Adult Social Care,5 CARE SERVICES LTD,09/06/2020,280.13,73507-DOMICILIARY CARE,MENTAL HEALTH SUPPORT,Third Party Payments,Revenue
Walsall Council,http://opendatacommunities.org/id/metropolitan-district-council/walsall,WC117-11,30/06/2020,Adult Social Care,5 CARE SERVICES LTD,09/06/2020,296.87,73507-DOMICILIARY CARE,PHYSICAL SUPPORT,Third Party Payments,Revenue
Walsall Council,http://opendatacommunities.org/id/metropolitan-district-council/walsall,WC117-12,30/06/2020,Adult Social Care,5 CARE SERVICES LTD,09/06/2020,296.87,73507-DOMICILIARY CARE,PHYSICAL SUPPORT,Third Party Payments,Revenue
Walsall Council,http://opendatacommunities.org/id/metropolitan-district-council/walsall,WC117-13,30/06/2020,Adult Social Care,5 CARE SERVICES LTD,09/06/2020,305.83,73507-DOMICILIARY CARE,PHYSICAL SUPPORT,Third Party Payments,Revenue
Walsall Council,http://opendatacommunities.org/id/metropolitan-district-council/walsall,WC117-14,30/06/2020,Adult Social Care,5 CARE SERVICES LTD,09/06/2020,305.83,73507-DOMICILIARY CARE,PHYSICAL SUPPORT,Third Party Payments,Revenue
Walsall Council,http://opendatacommunities.org/id/metropolitan-district-council/walsall,WC117-15,30/06/2020,Adult Social Care,5 CARE SERVICES LTD,09/06/2020,308.40,73507-DOMICILIARY CARE,LEARNING DISABILITY SUPPORT,Third Party Payments,Revenue
Walsall Council,http://opendatacommunities.org/id/metropolitan-district-council/walsall,WC117-16,30/06/2020,Adult Social Care,5 CARE SERVICES LTD,09/06/2020,308.40,73507-DOMICILIARY CARE,LEARNING DISABILITY SUPPORT,Third Party Payments,Revenue
Walsall Council,http://opendatacommunities.org/id/metropolitan-district-council/walsall,WC117-17,30/06/2020,Adult Social Care,5 CARE SERVICES LTD,09/06/2020,308.40,73507-DOMICILIARY CARE,LEARNING DISABILITY SUPPORT,Third Party Payments,Revenue
Walsall Council,http://opendatacommunities.org/id/metropolitan-district-council/walsall,WC117-18,30/06/2020,Adult Social Care,5 CARE SERVICES LTD,09/06/2020,308.40,73507-DOMICILIARY CARE,LEARNING DISABILITY SUPPORT,Third Party Payments,Revenue
Walsall Council,http://opendatacommunities.org/id/metropolitan-district-council/walsall,WC117-19,30/06/2020,Adult Social Care,5 CARE SERVICES LTD,09/06/2020,323.82,73507-DOMICILIARY CARE,PHYSICAL SUPPORT,Third Party Payments,Revenue
Walsall Council,http://opendatacommunities.org/id/metropolitan-district-council/walsall,WC117-20,30/06/2020,Adult Social Care,5 CARE SERVICES LTD,09/06/2020,323.82,73507-DOMICILIARY CARE,PHYSICAL SUPPORT,Third Party Payments,Revenue
Walsall Council,http://opendatacommunities.org/id/metropolitan-district-council/walsall,WC117-21,30/06/2020,Adult Social Care,5 CARE SERVICES LTD,09/06/2020,341.81,73507-DOMICILIARY CARE,PHYSICAL SUPPORT,Third Party Payments,Revenue
Walsall Council,http://opendatacommunities.org/id/metropolitan-district-council/walsall,WC117-22,30/06/2020,Adult Social Care,5 CARE SERVICES LTD,09/06/2020,341.81,73507-DOMICILIARY CARE,PHYSICAL SUPPORT,Third Party Payments,Revenue
Walsall Council,http://opendatacommunities.org/id/metropolitan-district-council/walsall,WC117-23,30/06/2020,Adult Social Care,5 CARE SERVICES LTD,09/06/2020,370.08,73507-DOMICILIARY CARE,PHYSICAL SUPPORT,Third Party Payments,Revenue
Walsall Council,http://opendatacommunities.org/id/metropolitan-district-council/walsall,WC117-24,30/06/2020,Adult Social Care,5 CARE SERVICES LTD,09/06/2020,377.79,73507-DOMICILIARY CARE,PHYSICAL SUPPORT,Third Party Payments,Revenue
Walsall Council,http://opendatacommunities.org/id/metropolitan-district-council/walsall,WC117-25,30/06/2020,Adult Social Care,5 CARE SERVICES LTD,09/06/2020,377.79,73507-DOMICILIARY CARE,PHYSICAL SUPPORT,Third Party Payments,Revenue
Walsall Council,http://opendatacommunities.org/id/metropolitan-district-council/walsall,WC117-26,30/06/2020,Adult Social Care,5 CARE SERVICES LTD,09/06/2020,393.21,73507-DOMICILIARY CARE,PHYSICAL SUPPORT,Third Party Payments,Revenue
Walsall Council,http://opendatacommunities.org/id/metropolitan-district-council/walsall,WC117-27,30/06/2020,Adult Social Care,5 CARE SERVICES LTD,09/06/2020,393.21,73507-DOMICILIARY CARE,PHYSICAL SUPPORT,Third Party Payments,Revenue
Walsall Council,http://opendatacommunities.org/id/metropolitan-district-council/walsall,WC117-28,30/06/2020,Adult Social Care,5 CARE SERVICES LTD,09/06/2020,416.34,73507-DOMICILIARY CARE,PHYSICAL SUPPORT,Third Party Payments,Revenue
Walsall Council,http://opendatacommunities.org/id/metropolitan-district-council/walsall,WC117-29,30/06/2020,Adult Social Care,5 CARE SERVICES LTD,09/06/2020,431.76,73507-DOMICILIARY CARE,PHYSICAL SUPPORT,Third Party Payments,Revenue
Walsall Council,http://opendatacommunities.org/id/metropolitan-district-council/walsall,WC117-30,30/06/2020,Adult Social Care,5 CARE SERVICES LTD,09/06/2020,431.76,73507-DOMICILIARY CARE,PHYSICAL SUPPORT,Third Party Payments,Revenue
Walsall Council,http://opendatacommunities.org/id/metropolitan-district-council/walsall,WC117-31,30/06/2020,Adult Social Care,5 CARE SERVICES LTD,09/06/2020,431.76,73507-DOMICILIARY CARE,PHYSICAL SUPPORT,Third Party Payments,Revenue
Walsall Council,http://opendatacommunities.org/id/metropolitan-district-council/walsall,WC117-32,30/06/2020,Adult Social Care,5 CARE SERVICES LTD,09/06/2020,431.76,73507-DOMICILIARY CARE,PHYSICAL SUPPORT,Third Party Payments,Revenue
Walsall Council,http://opendatacommunities.org/id/metropolitan-district-council/walsall,WC117-33,30/06/2020,Adult Social Care,5 CARE SERVICES LTD,09/06/2020,485.73,73507-DOMICILIARY CARE,PHYSICAL SUPPORT,Third Party Payments,Revenue
Walsall Council,http://opendatacommunities.org/id/metropolitan-district-council/walsall,WC117-34,30/06/2020,Adult Social Care,5 CARE SERVICES LTD,09/06/2020,485.73,73507-DOMICILIARY CARE,PHYSICAL SUPPORT,Third Party Payments,Revenue
Walsall Council,http://opendatacommunities.org/id/metropolitan-district-council/walsall,WC117-35,30/06/2020,Adult Social Care,5 CARE SERVICES LTD,09/06/2020,485.73,73507-DOMICILIARY CARE,PHYSICAL SUPPORT,Third Party Payments,Revenue
Walsall Council,http://opendatacommunities.org/id/metropolitan-district-council/walsall,WC117-36,30/06/2020,Adult Social Care,5 CARE SERVICES LTD,09/06/2020,485.73,73507-DOMICILIARY CARE,PHYSICAL SUPPORT,Third Party Payments,Revenue
Walsall Council,http://opendatacommunities.org/id/metropolitan-district-council/walsall,WC117-37,30/06/2020,Adult Social Care,5 CARE SERVICES LTD,09/06/2020,485.73,73507-DOMICILIARY CARE,PHYSICAL SUPPORT,Third Party Payments,Revenue
Walsall Council,http://opendatacommunities.org/id/metropolitan-district-council/walsall,WC117-38,30/06/2020,Adult Social Care,5 CARE SERVICES LTD,09/06/2020,485.80,73507-DOMICILIARY CARE,PHYSICAL SUPPORT,Third Party Payments,Revenue
Walsall Council,http://opendatacommunities.org/id/metropolitan-district-council/walsall,WC117-39,30/06/2020,Adult Social Care,5 CARE SERVICES LTD,09/06/2020,485.80,73507-DOMICILIARY CARE,PHYSICAL SUPPORT,Third Party Payments,Revenue
Walsall Council,http://opendatacommunities.org/id/metropolitan-district-council/walsall,WC117-40,30/06/2020,Adult Social Care,5 CARE SERVICES LTD,09/06/2020,539.70,73507-DOMICILIARY CARE,PHYSICAL SUPPORT,Third Party Payments,Revenue
Walsall Council,http://opendatacommunities.org/id/metropolitan-district-council/walsall,WC117-41,30/06/2020,Adult Social Care,5 CARE SERVICES LTD,09/06/2020,539.70,73507-DOMICILIARY CARE,PHYSICAL SUPPORT,Third Party Payments,Revenue
Walsall Council,http://opendatacommunities.org/id/metropolitan-district-council/walsall,WC117-42,30/06/2020,Adult Social Care,5 CARE SERVICES LTD,09/06/2020,562.83,73507-DOMICILIARY CARE,PHYSICAL SUPPORT,Third Party Payments,Revenue
Walsall Council,http://opendatacommunities.org/id/metropolitan-district-council/walsall,WC117-43,30/06/2020,Adult Social Care,5 CARE SERVICES LTD,09/06/2020,562.83,73507-DOMICILIARY CARE,PHYSICAL SUPPORT,Third Party Payments,Revenue
Walsall Council,http://opendatacommunities.org/id/metropolitan-district-council/walsall,WC117-44,30/06/2020,Adult Social Care,5 CARE SERVICES LTD,09/06/2020,647.64,73507-DOMICILIARY CARE,MENTAL HEALTH SUPPORT,Third Party Payments,Revenue
Walsall Council,http://opendatacommunities.org/id/metropolitan-district-council/walsall,WC117-45,30/06/2020,Adult Social Care,5 CARE SERVICES LTD,09/06/2020,647.64,73507-DOMICILIARY CARE,MENTAL HEALTH SUPPORT,Third Party Payments,Revenue
Walsall Council,http://opendatacommunities.org/id/metropolitan-district-council/walsall,WC117-46,30/06/2020,Adult Social Care,5 CARE SERVICES LTD,09/06/2020,755.58,73507-DOMICILIARY CARE,PHYSICAL SUPPORT,Third Party Payments,Revenue
Walsall Council,http://opendatacommunities.org/id/metropolitan-district-council/walsall,WC117-47,30/06/2020,Adult Social Care,5 CARE SERVICES LTD,09/06/2020,755.58,73507-DOMICILIARY CARE,PHYSICAL SUPPORT,Third Party Payments,Revenue
Walsall Council,http://opendatacommunities.org/id/metropolitan-district-council/walsall,WC117-48,30/06/2020,Adult Social Care,5 CARE SERVICES LTD,09/06/2020,925.20,73507-DOMICILIARY CARE,PHYSICAL SUPPORT,Third Party Payments,Revenue
Walsall Council,http://opendatacommunities.org/id/metropolitan-district-council/walsall,WC117-49,30/06/2020,Adult Social Care,5 CARE SERVICES LTD,09/06/2020,925.20,73507-DOMICILIARY CARE,PHYSICAL SUPPORT,Third Party Payments,Revenue
Walsall Council,http://opendatacommunities.org/id/metropolitan-district-council/walsall,WC117-50,30/06/2020,Adult Social Care,5 CARE SERVICES LTD,09/06/2020,925.20,73507-DOMICILIARY CARE,PHYSICAL SUPPORT,Third Party Payments,Revenue
Walsall Council,http://opendatacommunities.org/id/metropolitan-district-council/walsall,WC117-51,30/06/2020,Childrens,5 CARE SERVICES LTD,10/06/2020,"3,062.40",63000-PROFESSIONAL FEES AND SERVICES,DIRECTLY COMMISSIONED NURSING SERVICES,Supplies & Services,Revenue
Walsall Council,http://opendatacommunities.org/id/metropolitan-district-council/walsall,WC117-52,30/06/2020,Childrens,5 CARE SERVICES LTD,11/06/2020,"1,595.00",63000-PROFESSIONAL FEES AND SERVICES,DIRECTLY COMMISSIONED NURSING SERVICES,Supplies & Services,Revenue
Walsall Council,http://opendatacommunities.org/id/metropolitan-district-council/walsall,WC117-53,30/06/2020,Adult Social Care,5 CARE SERVICES LTD,17/06/2020,539.84,73025-PROFESSIONAL SERVICES-PRIV CONTRACTOR & OTHER AGENCIES,INTERMEDIATE CARE SERVICE,Third Party Payments,Revenue
Walsall Council,http://opendatacommunities.org/id/metropolitan-district-council/walsall,WC117-54,30/06/2020,Childrens,5 CARE SERVICES LTD,17/06/2020,"1,595.00",63000-PROFESSIONAL FEES AND SERVICES,DIRECTLY COMMISSIONED NURSING SERVICES,Supplies & Services,Revenue
Walsall Council,http://opendatacommunities.org/id/metropolitan-district-council/walsall,WC117-55,30/06/2020,Adult Social Care,5 CARE SERVICES LTD,19/06/2020,-277.56,73507-DOMICILIARY CARE,PHYSICAL SUPPORT,Third Party Payments,Revenue
Walsall Council,http://opendatacommunities.org/id/metropolitan-district-council/walsall,WC117-56,30/06/2020,Adult Social Care,5 CARE SERVICES LTD,19/06/2020,262.14,73025-PROFESSIONAL SERVICES-PRIV CONTRACTOR & OTHER AGENCIES,INTERMEDIATE CARE SERVICE,Third Party Payments,Revenue
Walsall Council,http://opendatacommunities.org/id/metropolitan-district-council/walsall,WC117-57,30/06/2020,Adult Social Care,5 CARE SERVICES LTD,19/06/2020,280.13,73507-DOMICILIARY CARE,MENTAL HEALTH SUPPORT,Third Party Payments,Revenue
Walsall Council,http://opendatacommunities.org/id/metropolitan-district-council/walsall,WC117-58,30/06/2020,Adult Social Care,5 CARE SERVICES LTD,19/06/2020,280.13,73507-DOMICILIARY CARE,MENTAL HEALTH SUPPORT,Third Party Payments,Revenue
Walsall Council,http://opendatacommunities.org/id/metropolitan-district-council/walsall,WC117-59,30/06/2020,Adult Social Care,5 CARE SERVICES LTD,19/06/2020,296.87,73507-DOMICILIARY CARE,PHYSICAL SUPPORT,Third Party Payments,Revenue
Walsall Council,http://opendatacommunities.org/id/metropolitan-district-council/walsall,WC117-60,30/06/2020,Adult Social Care,5 CARE SERVICES LTD,19/06/2020,296.87,73507-DOMICILIARY CARE,PHYSICAL SUPPORT,Third Party Payments,Revenue
Walsall Council,http://opendatacommunities.org/id/metropolitan-district-council/walsall,WC117-61,30/06/2020,Adult Social Care,5 CARE SERVICES LTD,19/06/2020,308.40,73507-DOMICILIARY CARE,LEARNING DISABILITY SUPPORT,Third Party Payments,Revenue
Walsall Council,http://opendatacommunities.org/id/metropolitan-district-council/walsall,WC117-62,30/06/2020,Adult Social Care,5 CARE SERVICES LTD,19/06/2020,308.40,73507-DOMICILIARY CARE,LEARNING DISABILITY SUPPORT,Third Party Payments,Revenue
Walsall Council,http://opendatacommunities.org/id/metropolitan-district-council/walsall,WC117-63,30/06/2020,Adult Social Care,5 CARE SERVICES LTD,19/06/2020,308.40,73507-DOMICILIARY CARE,LEARNING DISABILITY SUPPORT,Third Party Payments,Revenue
Walsall Council,http://opendatacommunities.org/id/metropolitan-district-council/walsall,WC117-64,30/06/2020,Adult Social Care,5 CARE SERVICES LTD,19/06/2020,308.40,73507-DOMICILIARY CARE,LEARNING DISABILITY SUPPORT,Third Party Payments,Revenue
Walsall Council,http://opendatacommunities.org/id/metropolitan-district-council/walsall,WC117-65,30/06/2020,Adult Social Care,5 CARE SERVICES LTD,19/06/2020,322.54,73507-DOMICILIARY CARE,PHYSICAL SUPPORT,Third Party Payments,Revenue
Walsall Council,http://opendatacommunities.org/id/metropolitan-district-council/walsall,WC117-66,30/06/2020,Adult Social Care,5 CARE SERVICES LTD,19/06/2020,323.82,73507-DOMICILIARY CARE,PHYSICAL SUPPORT,Third Party Payments,Revenue
Walsall Council,http://opendatacommunities.org/id/metropolitan-district-council/walsall,WC117-67,30/06/2020,Adult Social Care,5 CARE SERVICES LTD,19/06/2020,323.82,73507-DOMICILIARY CARE,SOCIAL SUPPORT,Third Party Payments,Revenue
Walsall Council,http://opendatacommunities.org/id/metropolitan-district-council/walsall,WC117-68,30/06/2020,Adult Social Care,5 CARE SERVICES LTD,19/06/2020,323.82,73507-DOMICILIARY CARE,PHYSICAL SUPPORT,Third Party Payments,Revenue
Walsall Council,http://opendatacommunities.org/id/metropolitan-district-council/walsall,WC117-69,30/06/2020,Adult Social Care,5 CARE SERVICES LTD,19/06/2020,341.81,73507-DOMICILIARY CARE,PHYSICAL SUPPORT,Third Party Payments,Revenue
Walsall Council,http://opendatacommunities.org/id/metropolitan-district-council/walsall,WC117-70,30/06/2020,Adult Social Care,5 CARE SERVICES LTD,19/06/2020,341.81,73507-DOMICILIARY CARE,PHYSICAL SUPPORT,Third Party Payments,Revenue
Walsall Council,http://opendatacommunities.org/id/metropolitan-district-council/walsall,WC117-71,30/06/2020,Adult Social Care,5 CARE SERVICES LTD,19/06/2020,377.79,73507-DOMICILIARY CARE,PHYSICAL SUPPORT,Third Party Payments,Revenue
Walsall Council,http://opendatacommunities.org/id/metropolitan-district-council/walsall,WC117-72,30/06/2020,Adult Social Care,5 CARE SERVICES LTD,19/06/2020,377.79,73507-DOMICILIARY CARE,PHYSICAL SUPPORT,Third Party Payments,Revenue
Walsall Council,http://opendatacommunities.org/id/metropolitan-district-council/walsall,WC117-73,30/06/2020,Adult Social Care,5 CARE SERVICES LTD,19/06/2020,393.21,73507-DOMICILIARY CARE,PHYSICAL SUPPORT,Third Party Payments,Revenue
Walsall Council,http://opendatacommunities.org/id/metropolitan-district-council/walsall,WC117-74,30/06/2020,Adult Social Care,5 CARE SERVICES LTD,19/06/2020,393.21,73507-DOMICILIARY CARE,PHYSICAL SUPPORT,Third Party Payments,Revenue
Walsall Council,http://opendatacommunities.org/id/metropolitan-district-council/walsall,WC117-75,30/06/2020,Adult Social Care,5 CARE SERVICES LTD,19/06/2020,422.80,73507-DOMICILIARY CARE,PHYSICAL SUPPORT,Third Party Payments,Revenue
Walsall Council,http://opendatacommunities.org/id/metropolitan-district-council/walsall,WC117-76,30/06/2020,Adult Social Care,5 CARE SERVICES LTD,19/06/2020,431.76,73507-DOMICILIARY CARE,PHYSICAL SUPPORT,Third Party Payments,Revenue
Walsall Council,http://opendatacommunities.org/id/metropolitan-district-council/walsall,WC117-77,30/06/2020,Adult Social Care,5 CARE SERVICES LTD,19/06/2020,431.76,73507-DOMICILIARY CARE,PHYSICAL SUPPORT,Third Party Payments,Revenue
Walsall Council,http://opendatacommunities.org/id/metropolitan-district-council/walsall,WC117-78,30/06/2020,Adult Social Care,5 CARE SERVICES LTD,19/06/2020,431.76,73507-DOMICILIARY CARE,PHYSICAL SUPPORT,Third Party Payments,Revenue
Walsall Council,http://opendatacommunities.org/id/metropolitan-district-council/walsall,WC117-79,30/06/2020,Adult Social Care,5 CARE SERVICES LTD,19/06/2020,431.76,73507-DOMICILIARY CARE,PHYSICAL SUPPORT,Third Party Payments,Revenue
Walsall Council,http://opendatacommunities.org/id/metropolitan-district-council/walsall,WC117-80,30/06/2020,Adult Social Care,5 CARE SERVICES LTD,19/06/2020,485.73,73507-DOMICILIARY CARE,PHYSICAL SUPPORT,Third Party Payments,Revenue
Walsall Council,http://opendatacommunities.org/id/metropolitan-district-council/walsall,WC117-81,30/06/2020,Adult Social Care,5 CARE SERVICES LTD,19/06/2020,485.73,73507-DOMICILIARY CARE,PHYSICAL SUPPORT,Third Party Payments,Revenue
Walsall Council,http://opendatacommunities.org/id/metropolitan-district-council/walsall,WC117-82,30/06/2020,Adult Social Care,5 CARE SERVICES LTD,19/06/2020,485.73,73507-DOMICILIARY CARE,PHYSICAL SUPPORT,Third Party Payments,Revenue
Walsall Council,http://opendatacommunities.org/id/metropolitan-district-council/walsall,WC117-83,30/06/2020,Adult Social Care,5 CARE SERVICES LTD,19/06/2020,485.80,73507-DOMICILIARY CARE,PHYSICAL SUPPORT,Third Party Payments,Revenue
Walsall Council,http://opendatacommunities.org/id/metropolitan-district-council/walsall,WC117-84,30/06/2020,Adult Social Care,5 CARE SERVICES LTD,19/06/2020,485.80,73507-DOMICILIARY CARE,PHYSICAL SUPPORT,Third Party Payments,Revenue
Walsall Council,http://opendatacommunities.org/id/metropolitan-district-council/walsall,WC117-85,30/06/2020,Adult Social Care,5 CARE SERVICES LTD,19/06/2020,539.70,73507-DOMICILIARY CARE,PHYSICAL SUPPORT,Third Party Payments,Revenue
Walsall Council,http://opendatacommunities.org/id/metropolitan-district-council/walsall,WC117-86,30/06/2020,Adult Social Care,5 CARE SERVICES LTD,19/06/2020,539.70,73507-DOMICILIARY CARE,PHYSICAL SUPPORT,Third Party Payments,Revenue
Walsall Council,http://opendatacommunities.org/id/metropolitan-district-council/walsall,WC117-87,30/06/2020,Adult Social Care,5 CARE SERVICES LTD,19/06/2020,539.84,73025-PROFESSIONAL SERVICES-PRIV CONTRACTOR & OTHER AGENCIES,INTERMEDIATE CARE SERVICE,Third Party Payments,Revenue
Walsall Council,http://opendatacommunities.org/id/metropolitan-district-council/walsall,WC117-88,30/06/2020,Adult Social Care,5 CARE SERVICES LTD,19/06/2020,562.83,73507-DOMICILIARY CARE,PHYSICAL SUPPORT,Third Party Payments,Revenue
Walsall Council,http://opendatacommunities.org/id/metropolitan-district-council/walsall,WC117-89,30/06/2020,Adult Social Care,5 CARE SERVICES LTD,19/06/2020,562.83,73507-DOMICILIARY CARE,PHYSICAL SUPPORT,Third Party Payments,Revenue
Walsall Council,http://opendatacommunities.org/id/metropolitan-district-council/walsall,WC117-90,30/06/2020,Adult Social Care,5 CARE SERVICES LTD,19/06/2020,647.64,73507-DOMICILIARY CARE,MENTAL HEALTH SUPPORT,Third Party Payments,Revenue
Walsall Council,http://opendatacommunities.org/id/metropolitan-district-council/walsall,WC117-91,30/06/2020,Adult Social Care,5 CARE SERVICES LTD,19/06/2020,647.64,73507-DOMICILIARY CARE,MENTAL HEALTH SUPPORT,Third Party Payments,Revenue
Walsall Council,http://opendatacommunities.org/id/metropolitan-district-council/walsall,WC117-92,30/06/2020,Adult Social Care,5 CARE SERVICES LTD,19/06/2020,740.16,73507-DOMICILIARY CARE,PHYSICAL SUPPORT,Third Party Payments,Revenue
Walsall Council,http://opendatacommunities.org/id/metropolitan-district-council/walsall,WC117-93,30/06/2020,Adult Social Care,5 CARE SERVICES LTD,19/06/2020,740.16,73507-DOMICILIARY CARE,PHYSICAL SUPPORT,Third Party Payments,Revenue
Walsall Council,http://opendatacommunities.org/id/metropolitan-district-council/walsall,WC117-94,30/06/2020,Adult Social Care,5 CARE SERVICES LTD,19/06/2020,755.58,73507-DOMICILIARY CARE,PHYSICAL SUPPORT,Third Party Payments,Revenue
Walsall Council,http://opendatacommunities.org/id/metropolitan-district-council/walsall,WC117-95,30/06/2020,Adult Social Care,5 CARE SERVICES LTD,19/06/2020,755.58,73507-DOMICILIARY CARE,PHYSICAL SUPPORT,Third Party Payments,Revenue
Walsall Council,http://opendatacommunities.org/id/metropolitan-district-council/walsall,WC117-96,30/06/2020,Childrens,5 CARE SERVICES LTD,19/06/2020,861.30,63000-PROFESSIONAL FEES AND SERVICES,DIRECTLY COMMISSIONED NURSING SERVICES,Supplies & Services,Revenue
Walsall Council,http://opendatacommunities.org/id/metropolitan-district-council/walsall,WC117-97,30/06/2020,Adult Social Care,5 CARE SERVICES LTD,19/06/2020,925.20,73507-DOMICILIARY CARE,PHYSICAL SUPPORT,Third Party Payments,Revenue
Walsall Council,http://opendatacommunities.org/id/metropolitan-district-council/walsall,WC117-98,30/06/2020,Adult Social Care,5 CARE SERVICES LTD,19/06/2020,925.20,73507-DOMICILIARY CARE,PHYSICAL SUPPORT,Third Party Payments,Revenue
Walsall Council,http://opendatacommunities.org/id/metropolitan-district-council/walsall,WC117-99,30/06/2020,Childrens,5 CARE SERVICES LTD,19/06/2020,"1,595.00",63000-PROFESSIONAL FEES AND SERVICES,DIRECTLY COMMISSIONED NURSING SERVICES,Supplies & Services,Revenue
Walsall Council,http://opendatacommunities.org/id/metropolitan-district-council/walsall,WC117-100,30/06/2020,Adult Social Care,5 CARE SERVICES LTD,22/06/2020,269.85,73507-DOMICILIARY CARE,PHYSICAL SUPPORT,Third Party Payments,Revenue
Walsall Council,http://opendatacommunities.org/id/metropolitan-district-council/walsall,WC117-101,30/06/2020,Adult Social Care,5 CARE SERVICES LTD,22/06/2020,269.85,73507-DOMICILIARY CARE,PHYSICAL SUPPORT,Third Party Payments,Revenue
Walsall Council,http://opendatacommunities.org/id/metropolitan-district-council/walsall,WC117-102,30/06/2020,Adult Social Care,5 CARE SERVICES LTD,22/06/2020,280.13,73507-DOMICILIARY CARE,MENTAL HEALTH SUPPORT,Third Party Payments,Revenue
Walsall Council,http://opendatacommunities.org/id/metropolitan-district-council/walsall,WC117-103,30/06/2020,Adult Social Care,5 CARE SERVICES LTD,22/06/2020,280.13,73507-DOMICILIARY CARE,MENTAL HEALTH SUPPORT,Third Party Payments,Revenue
Walsall Council,http://opendatacommunities.org/id/metropolitan-district-council/walsall,WC117-104,30/06/2020,Adult Social Care,5 CARE SERVICES LTD,22/06/2020,296.87,73507-DOMICILIARY CARE,PHYSICAL SUPPORT,Third Party Payments,Revenue
Walsall Council,http://opendatacommunities.org/id/metropolitan-district-council/walsall,WC117-105,30/06/2020,Adult Social Care,5 CARE SERVICES LTD,22/06/2020,296.87,73507-DOMICILIARY CARE,PHYSICAL SUPPORT,Third Party Payments,Revenue
Walsall Council,http://opendatacommunities.org/id/metropolitan-district-council/walsall,WC117-106,30/06/2020,Adult Social Care,5 CARE SERVICES LTD,22/06/2020,308.40,73507-DOMICILIARY CARE,LEARNING DISABILITY SUPPORT,Third Party Payments,Revenue
Walsall Council,http://opendatacommunities.org/id/metropolitan-district-council/walsall,WC117-107,30/06/2020,Adult Social Care,5 CARE SERVICES LTD,22/06/2020,308.40,73507-DOMICILIARY CARE,LEARNING DISABILITY SUPPORT,Third Party Payments,Revenue
Walsall Council,http://opendatacommunities.org/id/metropolitan-district-council/walsall,WC117-108,30/06/2020,Adult Social Care,5 CARE SERVICES LTD,22/06/2020,308.40,73507-DOMICILIARY CARE,LEARNING DISABILITY SUPPORT,Third Party Payments,Revenue
Walsall Council,http://opendatacommunities.org/id/metropolitan-district-council/walsall,WC117-109,30/06/2020,Adult Social Care,5 CARE SERVICES LTD,22/06/2020,308.40,73507-DOMICILIARY CARE,LEARNING DISABILITY SUPPORT,Third Party Payments,Revenue
Walsall Council,http://opendatacommunities.org/id/metropolitan-district-council/walsall,WC117-110,30/06/2020,Adult Social Care,5 CARE SERVICES LTD,22/06/2020,323.82,73507-DOMICILIARY CARE,PHYSICAL SUPPORT,Third Party Payments,Revenue
Walsall Council,http://opendatacommunities.org/id/metropolitan-district-council/walsall,WC117-111,30/06/2020,Adult Social Care,5 CARE SERVICES LTD,22/06/2020,323.82,73507-DOMICILIARY CARE,PHYSICAL SUPPORT,Third Party Payments,Revenue
Walsall Council,http://opendatacommunities.org/id/metropolitan-district-council/walsall,WC117-112,30/06/2020,Adult Social Care,5 CARE SERVICES LTD,22/06/2020,341.81,73507-DOMICILIARY CARE,PHYSICAL SUPPORT,Third Party Payments,Revenue
Walsall Council,http://opendatacommunities.org/id/metropolitan-district-council/walsall,WC117-113,30/06/2020,Adult Social Care,5 CARE SERVICES LTD,22/06/2020,341.81,73507-DOMICILIARY CARE,PHYSICAL SUPPORT,Third Party Payments,Revenue
Walsall Council,http://opendatacommunities.org/id/metropolitan-district-council/walsall,WC117-114,30/06/2020,Adult Social Care,5 CARE SERVICES LTD,22/06/2020,377.79,73507-DOMICILIARY CARE,PHYSICAL SUPPORT,Third Party Payments,Revenue
Walsall Council,http://opendatacommunities.org/id/metropolitan-district-council/walsall,WC117-115,30/06/2020,Adult Social Care,5 CARE SERVICES LTD,22/06/2020,377.79,73507-DOMICILIARY CARE,PHYSICAL SUPPORT,Third Party Payments,Revenue
Walsall Council,http://opendatacommunities.org/id/metropolitan-district-council/walsall,WC117-116,30/06/2020,Adult Social Care,5 CARE SERVICES LTD,22/06/2020,393.21,73507-DOMICILIARY CARE,PHYSICAL SUPPORT,Third Party Payments,Revenue
Walsall Council,http://opendatacommunities.org/id/metropolitan-district-council/walsall,WC117-117,30/06/2020,Adult Social Care,5 CARE SERVICES LTD,22/06/2020,393.21,73507-DOMICILIARY CARE,PHYSICAL SUPPORT,Third Party Payments,Revenue
Walsall Council,http://opendatacommunities.org/id/metropolitan-district-council/walsall,WC117-118,30/06/2020,Adult Social Care,5 CARE SERVICES LTD,22/06/2020,422.80,73507-DOMICILIARY CARE,PHYSICAL SUPPORT,Third Party Payments,Revenue
Walsall Council,http://opendatacommunities.org/id/metropolitan-district-council/walsall,WC117-119,30/06/2020,Adult Social Care,5 CARE SERVICES LTD,22/06/2020,422.80,73507-DOMICILIARY CARE,PHYSICAL SUPPORT,Third Party Payments,Revenue
Walsall Council,http://opendatacommunities.org/id/metropolitan-district-council/walsall,WC117-120,30/06/2020,Adult Social Care,5 CARE SERVICES LTD,22/06/2020,431.76,73507-DOMICILIARY CARE,PHYSICAL SUPPORT,Third Party Payments,Revenue
Walsall Council,http://opendatacommunities.org/id/metropolitan-district-council/walsall,WC117-121,30/06/2020,Adult Social Care,5 CARE SERVICES LTD,22/06/2020,431.76,73507-DOMICILIARY CARE,PHYSICAL SUPPORT,Third Party Payments,Revenue
Walsall Council,http://opendatacommunities.org/id/metropolitan-district-council/walsall,WC117-122,30/06/2020,Adult Social Care,5 CARE SERVICES LTD,22/06/2020,431.76,73507-DOMICILIARY CARE,PHYSICAL SUPPORT,Third Party Payments,Revenue
Walsall Council,http://opendatacommunities.org/id/metropolitan-district-council/walsall,WC117-123,30/06/2020,Adult Social Care,5 CARE SERVICES LTD,22/06/2020,431.76,73507-DOMICILIARY CARE,PHYSICAL SUPPORT,Third Party Payments,Revenue
Walsall Council,http://opendatacommunities.org/id/metropolitan-district-council/walsall,WC117-124,30/06/2020,Adult Social Care,5 CARE SERVICES LTD,22/06/2020,485.73,73507-DOMICILIARY CARE,PHYSICAL SUPPORT,Third Party Payments,Revenue
Walsall Council,http://opendatacommunities.org/id/metropolitan-district-council/walsall,WC117-125,30/06/2020,Adult Social Care,5 CARE SERVICES LTD,22/06/2020,485.73,73507-DOMICILIARY CARE,PHYSICAL SUPPORT,Third Party Payments,Revenue
Walsall Council,http://opendatacommunities.org/id/metropolitan-district-council/walsall,WC117-126,30/06/2020,Adult Social Care,5 CARE SERVICES LTD,22/06/2020,485.73,73507-DOMICILIARY CARE,PHYSICAL SUPPORT,Third Party Payments,Revenue
Walsall Council,http://opendatacommunities.org/id/metropolitan-district-council/walsall,WC117-127,30/06/2020,Adult Social Care,5 CARE SERVICES LTD,22/06/2020,485.73,73507-DOMICILIARY CARE,PHYSICAL SUPPORT,Third Party Payments,Revenue
Walsall Council,http://opendatacommunities.org/id/metropolitan-district-council/walsall,WC117-128,30/06/2020,Adult Social Care,5 CARE SERVICES LTD,22/06/2020,485.80,73507-DOMICILIARY CARE,PHYSICAL SUPPORT,Third Party Payments,Revenue
Walsall Council,http://opendatacommunities.org/id/metropolitan-district-council/walsall,WC117-129,30/06/2020,Adult Social Care,5 CARE SERVICES LTD,22/06/2020,485.80,73507-DOMICILIARY CARE,PHYSICAL SUPPORT,Third Party Payments,Revenue
Walsall Council,http://opendatacommunities.org/id/metropolitan-district-council/walsall,WC117-130,30/06/2020,Adult Social Care,5 CARE SERVICES LTD,22/06/2020,539.70,73507-DOMICILIARY CARE,PHYSICAL SUPPORT,Third Party Payments,Revenue
Walsall Council,http://opendatacommunities.org/id/metropolitan-district-council/walsall,WC117-131,30/06/2020,Adult Social Care,5 CARE SERVICES LTD,22/06/2020,539.70,73507-DOMICILIARY CARE,PHYSICAL SUPPORT,Third Party Payments,Revenue
Walsall Council,http://opendatacommunities.org/id/metropolitan-district-council/walsall,WC117-132,30/06/2020,Adult Social Care,5 CARE SERVICES LTD,22/06/2020,555.12,73507-DOMICILIARY CARE,PHYSICAL SUPPORT,Third Party Payments,Revenue
Walsall Council,http://opendatacommunities.org/id/metropolitan-district-council/walsall,WC117-133,30/06/2020,Adult Social Care,5 CARE SERVICES LTD,22/06/2020,562.83,73507-DOMICILIARY CARE,PHYSICAL SUPPORT,Third Party Payments,Revenue
Walsall Council,http://opendatacommunities.org/id/metropolitan-district-council/walsall,WC117-134,30/06/2020,Adult Social Care,5 CARE SERVICES LTD,22/06/2020,562.83,73507-DOMICILIARY CARE,PHYSICAL SUPPORT,Third Party Payments,Revenue
Walsall Council,http://opendatacommunities.org/id/metropolitan-district-council/walsall,WC117-135,30/06/2020,Adult Social Care,5 CARE SERVICES LTD,22/06/2020,647.64,73507-DOMICILIARY CARE,MENTAL HEALTH SUPPORT,Third Party Payments,Revenue
Walsall Council,http://opendatacommunities.org/id/metropolitan-district-council/walsall,WC117-136,30/06/2020,Adult Social Care,5 CARE SERVICES LTD,22/06/2020,647.64,73507-DOMICILIARY CARE,MENTAL HEALTH SUPPORT,Third Party Payments,Revenue
Walsall Council,http://opendatacommunities.org/id/metropolitan-district-council/walsall,WC117-137,30/06/2020,Adult Social Care,5 CARE SERVICES LTD,22/06/2020,755.58,73507-DOMICILIARY CARE,PHYSICAL SUPPORT,Third Party Payments,Revenue
Walsall Council,http://opendatacommunities.org/id/metropolitan-district-council/walsall,WC117-138,30/06/2020,Adult Social Care,5 CARE SERVICES LTD,22/06/2020,755.58,73507-DOMICILIARY CARE,PHYSICAL SUPPORT,Third Party Payments,Revenue
Walsall Council,http://opendatacommunities.org/id/metropolitan-district-council/walsall,WC117-139,30/06/2020,Adult Social Care,5 CARE SERVICES LTD,22/06/2020,925.20,73507-DOMICILIARY CARE,PHYSICAL SUPPORT,Third Party Payments,Revenue
Walsall Council,http://opendatacommunities.org/id/metropolitan-district-council/walsall,WC117-140,30/06/2020,Adult Social Care,5 CARE SERVICES LTD,22/06/2020,925.20,73507-DOMICILIARY CARE,PHYSICAL SUPPORT,Third Party Payments,Revenue
Walsall Council,http://opendatacommunities.org/id/metropolitan-district-council/walsall,WC117-141,30/06/2020,Adult Social Care,5 CARE SERVICES LTD,22/06/2020,925.20,73507-DOMICILIARY CARE,PHYSICAL SUPPORT,Third Party Payments,Revenue
Walsall Council,http://opendatacommunities.org/id/metropolitan-district-council/walsall,WC117-142,30/06/2020,Adult Social Care,5 CARE SERVICES LTD,22/06/2020,"12,547.76",73025-PROFESSIONAL SERVICES-PRIV CONTRACTOR & OTHER AGENCIES,"STRATEGY,COMMISSIONING AND DELIVERY SUPPORT",Third Party Payments,Revenue
Walsall Council,http://opendatacommunities.org/id/metropolitan-district-council/walsall,WC117-143,30/06/2020,Resources and Transformation,A D T FIRE AND SECURITY PLC,02/06/2020,292.14,73002-SECURITY-PRIV CONTRACTOR FEES,CENTRALISED MAINTENANCE,Third Party Payments,Revenue
Walsall Council,http://opendatacommunities.org/id/metropolitan-district-council/walsall,WC117-144,30/06/2020,Economy & Environment,A D T FIRE AND SECURITY PLC,05/06/2020,917.57,60500-GENERAL MATERIALS,ARBORETUM,Supplies & Services,Revenue
Walsall Council,http://opendatacommunities.org/id/metropolitan-district-council/walsall,WC117-145,30/06/2020,Resources and Transformation,AAINA COMMUNITY HUB,22/06/2020,-300.00,63128-HIRE OF ROOM-SERVICES-FEES,ELECTORAL ADMINISTRATION,Supplies & Services,Revenue
Walsall Council,http://opendatacommunities.org/id/metropolitan-district-council/walsall,WC117-146,30/06/2020,Adult Social Care,ABBEY COURT NURSING & RESIDEN,05/06/2020,"2,084.00",73500-RESIDENTIAL,PHYSICAL SUPPORT,Third Party Payments,Revenue
Walsall Council,http://opendatacommunities.org/id/metropolitan-district-council/walsall,WC117-147,30/06/2020,Adult Social Care,ABBEY COURT NURSING & RESIDEN,05/06/2020,"2,308.00",73501-RESIDENTIAL EMI,PHYSICAL SUPPORT,Third Party Payments,Revenue
Walsall Council,http://opendatacommunities.org/id/metropolitan-district-council/walsall,WC117-148,30/06/2020,Adult Social Care,ABBEY COURT NURSING & RESIDEN,05/06/2020,"2,308.00",73501-RESIDENTIAL EMI,PHYSICAL SUPPORT,Third Party Payments,Revenue
Walsall Council,http://opendatacommunities.org/id/metropolitan-district-council/walsall,WC117-149,30/06/2020,Adult Social Care,ABBEY COURT NURSING & RESIDEN,05/06/2020,"2,308.00",73501-RESIDENTIAL EMI,SUPPORT WITH MEMORY & COGNITION,Third Party Payments,Revenue
Walsall Council,http://opendatacommunities.org/id/metropolitan-district-council/walsall,WC117-150,30/06/2020,Adult Social Care,ABBEY COURT NURSING & RESIDEN,05/06/2020,"2,696.00",73503-NURSING EMI,MENTAL HEALTH SUPPORT,Third Party Payments,Revenue
Walsall Council,http://opendatacommunities.org/id/metropolitan-district-council/walsall,WC117-151,30/06/2020,Adult Social Care,ABBEY COURT NURSING & RESIDEN,23/06/2020,"2,084.00",73500-RESIDENTIAL,PHYSICAL SUPPORT,Third Party Payments,Revenue
Walsall Council,http://opendatacommunities.org/id/metropolitan-district-council/walsall,WC117-152,30/06/2020,Adult Social Care,ABBEY COURT NURSING & RESIDEN,23/06/2020,"2,308.00",73501-RESIDENTIAL EMI,PHYSICAL SUPPORT,Third Party Payments,Revenue
Walsall Council,http://opendatacommunities.org/id/metropolitan-district-council/walsall,WC117-153,30/06/2020,Adult Social Care,ABBEY COURT NURSING & RESIDEN,23/06/2020,"2,308.00",73501-RESIDENTIAL EMI,SUPPORT WITH MEMORY & COGNITION,Third Party Payments,Revenue
Walsall Council,http://opendatacommunities.org/id/metropolitan-district-council/walsall,WC117-154,30/06/2020,Adult Social Care,ABBEY COURT NURSING & RESIDEN,23/06/2020,"2,479.43",73501-RESIDENTIAL EMI,PHYSICAL SUPPORT,Third Party Payments,Revenue
Walsall Council,http://opendatacommunities.org/id/metropolitan-district-council/walsall,WC117-155,30/06/2020,Adult Social Care,ABBEY COURT NURSING & RESIDEN,23/06/2020,"2,696.00",73503-NURSING EMI,MENTAL HEALTH SUPPORT,Third Party Payments,Revenue
Walsall Council,http://opendatacommunities.org/id/metropolitan-district-council/walsall,WC117-156,30/06/2020,Adult Social Care,ABBEY HEALTHCARE HOMES LTD,05/06/2020,"1,509.99",73502-NURSING,PHYSICAL SUPPORT,Third Party Payments,Revenue
Walsall Council,http://opendatacommunities.org/id/metropolitan-district-council/walsall,WC117-157,30/06/2020,Adult Social Care,ABBEY HEALTHCARE HOMES LTD,05/06/2020,"2,372.64",73500-RESIDENTIAL,PHYSICAL SUPPORT,Third Party Payments,Revenue
Walsall Council,http://opendatacommunities.org/id/metropolitan-district-council/walsall,WC117-158,30/06/2020,Adult Social Care,ABBEY HEALTHCARE HOMES LTD,05/06/2020,"3,102.72",73500-RESIDENTIAL,PHYSICAL SUPPORT,Third Party Payments,Revenue
Walsall Council,http://opendatacommunities.org/id/metropolitan-district-council/walsall,WC117-159,30/06/2020,Adult Social Care,ABBEY HEALTHCARE HOMES LTD,05/06/2020,"3,102.72",73500-RESIDENTIAL,LEARNING DISABILITY SUPPORT,Third Party Payments,Revenue
Walsall Council,http://opendatacommunities.org/id/metropolitan-district-council/walsall,WC117-160,30/06/2020,Adult Social Care,ABBEY HEALTHCARE HOMES LTD,05/06/2020,"3,516.40",73500-RESIDENTIAL,LEARNING DISABILITY SUPPORT,Third Party Payments,Revenue
Walsall Council,http://opendatacommunities.org/id/metropolitan-district-council/walsall,WC117-161,30/06/2020,Adult Social Care,ABBEY HEALTHCARE HOMES LTD,23/06/2020,"2,372.64",73500-RESIDENTIAL,PHYSICAL SUPPORT,Third Party Payments,Revenue
Walsall Council,http://opendatacommunities.org/id/metropolitan-district-council/walsall,WC117-162,30/06/2020,Adult Social Care,ABBEY HEALTHCARE HOMES LTD,23/06/2020,"3,102.72",73500-RESIDENTIAL,LEARNING DISABILITY SUPPORT,Third Party Payments,Revenue
Walsall Council,http://opendatacommunities.org/id/metropolitan-district-council/walsall,WC117-163,30/06/2020,Adult Social Care,ABBEY HEALTHCARE HOMES LTD,23/06/2020,"3,102.72",73500-RESIDENTIAL,PHYSICAL SUPPORT,Third Party Payments,Revenue
Walsall Council,http://opendatacommunities.org/id/metropolitan-district-council/walsall,WC117-164,30/06/2020,Adult Social Care,ABBEY HEALTHCARE HOMES LTD,23/06/2020,"3,516.40",73500-RESIDENTIAL,LEARNING DISABILITY SUPPORT,Third Party Payments,Revenue
Walsall Council,http://opendatacommunities.org/id/metropolitan-district-council/walsall,WC117-165,30/06/2020,Childrens,ABC DAY NURSERY (WILLENHALL) LIMITED,01/06/2020,"2,593.50",66505-OTHER-GRANTS TO OTHER ORGS,EARLY YEARS - 2 YR OLDS,Third Party Payments,Revenue
Walsall Council,http://opendatacommunities.org/id/metropolitan-district-council/walsall,WC117-166,30/06/2020,Childrens,ABC DAY NURSERY (WILLENHALL) LIMITED,01/06/2020,"18,572.78",66505-OTHER-GRANTS TO OTHER ORGS,EARLY YEARS - 3 YR OLDS,Third Party Payments,Revenue
Walsall Council,http://opendatacommunities.org/id/metropolitan-district-council/walsall,WC117-167,30/06/2020,Economy & Environment,ABLE INVESTIGATIONS & ENFORCEMENTS LTD,04/06/2020,"3,460.00",40000-OPERATIONAL MAINTENANCE,REMOVAL OF UNAUTHORISED ENCAMPMENTS,Premises,Revenue
Walsall Council,http://opendatacommunities.org/id/metropolitan-district-council/walsall,WC117-168,30/06/2020,Economy & Environment,ABLE INVESTIGATIONS & ENFORCEMENTS LTD,19/06/2020,"2,790.00",40000-OPERATIONAL MAINTENANCE,REMOVAL OF UNAUTHORISED ENCAMPMENTS,Premises,Revenue
Walsall Council,http://opendatacommunities.org/id/metropolitan-district-council/walsall,WC117-169,30/06/2020,Childrens,ABLEWELL CARS,18/06/2020,590.40,52000-WITH DRIVER-HIRE OF VEHICLES,HOME TO SCHOOL TRANSPORT,Transport,Revenue
Walsall Council,http://opendatacommunities.org/id/metropolitan-district-council/walsall,WC117-170,30/06/2020,Childrens,ABLEWELL CARS,18/06/2020,633.60,52000-WITH DRIVER-HIRE OF VEHICLES,HOME TO SCHOOL TRANSPORT,Transport,Revenue
Walsall Council,http://opendatacommunities.org/id/metropolitan-district-council/walsall,WC117-171,30/06/2020,Childrens,ABLEWELL CARS,18/06/2020,759.75,52000-WITH DRIVER-HIRE OF VEHICLES,HOME TO SCHOOL TRANSPORT,Transport,Revenue
Walsall Council,http://opendatacommunities.org/id/metropolitan-district-council/walsall,WC117-172,30/06/2020,Childrens,ABS TAXIS (ALDRIDGE),18/06/2020,726.00,52000-WITH DRIVER-HIRE OF VEHICLES,HOME TO SCHOOL TRANSPORT,Transport,Revenue
Walsall Council,http://opendatacommunities.org/id/metropolitan-district-council/walsall,WC117-173,30/06/2020,Childrens,ABS TAXIS (ALDRIDGE),18/06/2020,907.20,52000-WITH DRIVER-HIRE OF VEHICLES,HOME TO SCHOOL TRANSPORT,Transport,Revenue
Walsall Council,http://opendatacommunities.org/id/metropolitan-district-council/walsall,WC117-174,30/06/2020,Childrens,ABS TAXIS (ALDRIDGE),18/06/2020,980.00,52000-WITH DRIVER-HIRE OF VEHICLES,HOME TO SCHOOL TRANSPORT,Transport,Revenue
Walsall Council,http://opendatacommunities.org/id/metropolitan-district-council/walsall,WC117-175,30/06/2020,Childrens,ABU BAKR NURSERY,01/06/2020,259.35,66505-OTHER-GRANTS TO OTHER ORGS,EARLY YEARS - 2 YR OLDS,Third Party Payments,Revenue
Walsall Council,http://opendatacommunities.org/id/metropolitan-district-council/walsall,WC117-176,30/06/2020,Childrens,ABU BAKR NURSERY,01/06/2020,"20,948.36",66505-OTHER-GRANTS TO OTHER ORGS,EARLY YEARS - 3 YR OLDS,Third Party Payments,Revenue
Walsall Council,http://opendatacommunities.org/id/metropolitan-district-council/walsall,WC117-177,30/06/2020,Childrens,AC EDUCATION,22/06/2020,"4,255.00",30030-EXTERNAL TRAINING,PRACTICE DEVELOPMENT,Employees,Revenue
Walsall Council,http://opendatacommunities.org/id/metropolitan-district-council/walsall,WC117-178,30/06/2020,Childrens,ACCALIA CARE SERVICES LTD,12/06/2020,"23,547.86",74036-EXTERNAL RESIDENTIAL CARE-OTH AGENCY PROVISION,INDEPENDENT RESIDENTIAL HOMES,Third Party Payments,Revenue
Walsall Council,http://opendatacommunities.org/id/metropolitan-district-council/walsall,WC117-179,30/06/2020,Resources and Transformation,ACCESS CONTROL SOLUTIONS (UK) LTD,05/06/2020,480.00,73002-SECURITY-PRIV CONTRACTOR FEES,CENTRALISED MAINTENANCE,Third Party Payments,Revenue
Walsall Council,http://opendatacommunities.org/id/metropolitan-district-council/walsall,WC117-180,30/06/2020,Childrens,ACCORD - AGE MATTERS,10/06/2020,-292.43,73506-DIRECT PAYMENT,FAMILY SUPPORT - DIRECT PAYMENTS,Third Party Payments,Revenue
Walsall Council,http://opendatacommunities.org/id/metropolitan-district-council/walsall,WC117-181,30/06/2020,Adult Social Care,ACCORD HOUSING ASSOCIATION LIMITED - HOBS MEADOW,05/06/2020,"4,659.64",73500-RESIDENTIAL,LEARNING DISABILITY SUPPORT,Third Party Payments,Revenue
Walsall Council,http://opendatacommunities.org/id/metropolitan-district-council/walsall,WC117-182,30/06/2020,Adult Social Care,ACCORD HOUSING ASSOCIATION LIMITED - HOBS MEADOW,05/06/2020,"4,659.64",73500-RESIDENTIAL,LEARNING DISABILITY SUPPORT,Third Party Payments,Revenue
Walsall Council,http://opendatacommunities.org/id/metropolitan-district-council/walsall,WC117-183,30/06/2020,Adult Social Care,ACCORD HOUSING ASSOCIATION LIMITED - HOBS MEADOW,05/06/2020,"4,659.64",73500-RESIDENTIAL,LEARNING DISABILITY SUPPORT,Third Party Payments,Revenue
Walsall Council,http://opendatacommunities.org/id/metropolitan-district-council/walsall,WC117-184,30/06/2020,Adult Social Care,ACCORD HOUSING ASSOCIATION LIMITED - HOBS MEADOW,05/06/2020,"4,659.64",73500-RESIDENTIAL,LEARNING DISABILITY SUPPORT,Third Party Payments,Revenue
Walsall Council,http://opendatacommunities.org/id/metropolitan-district-council/walsall,WC117-185,30/06/2020,Adult Social Care,ACCORD HOUSING ASSOCIATION LIMITED - HOBS MEADOW,23/06/2020,"4,659.64",73500-RESIDENTIAL,LEARNING DISABILITY SUPPORT,Third Party Payments,Revenue
Walsall Council,http://opendatacommunities.org/id/metropolitan-district-council/walsall,WC117-186,30/06/2020,Adult Social Care,ACCORD HOUSING ASSOCIATION LIMITED - HOBS MEADOW,23/06/2020,"4,659.64",73500-RESIDENTIAL,LEARNING DISABILITY SUPPORT,Third Party Payments,Revenue
Walsall Council,http://opendatacommunities.org/id/metropolitan-district-council/walsall,WC117-187,30/06/2020,Adult Social Care,ACCORD HOUSING ASSOCIATION LIMITED - HOBS MEADOW,23/06/2020,"4,659.64",73500-RESIDENTIAL,LEARNING DISABILITY SUPPORT,Third Party Payments,Revenue
Walsall Council,http://opendatacommunities.org/id/metropolitan-district-council/walsall,WC117-188,30/06/2020,Adult Social Care,ACCORD HOUSING ASSOCIATION LIMITED - HOBS MEADOW,23/06/2020,"4,659.64",73500-RESIDENTIAL,LEARNING DISABILITY SUPPORT,Third Party Payments,Revenue
Walsall Council,http://opendatacommunities.org/id/metropolitan-district-council/walsall,WC117-189,30/06/2020,Adult Social Care,ACCORD HOUSING ASSOCIATION LTD#135,01/06/2020,422.70,73507-DOMICILIARY CARE,MENTAL HEALTH SUPPORT,Third Party Payments,Revenue
Walsall Council,http://opendatacommunities.org/id/metropolitan-district-council/walsall,WC117-190,30/06/2020,Adult Social Care,ACCORD HOUSING ASSOCIATION LTD#135,01/06/2020,434.42,73507-DOMICILIARY CARE,PHYSICAL SUPPORT,Third Party Payments,Revenue
Walsall Council,http://opendatacommunities.org/id/metropolitan-district-council/walsall,WC117-191,30/06/2020,Adult Social Care,ACCORD HOUSING ASSOCIATION LTD#135,01/06/2020,"1,324.11",73507-DOMICILIARY CARE,PHYSICAL SUPPORT,Third Party Payments,Revenue
Walsall Council,http://opendatacommunities.org/id/metropolitan-district-council/walsall,WC117-192,30/06/2020,Childrens,ACCORD HOUSING ASSOCIATION LTD#135,01/06/2020,"1,467.94",43000-RENTS,SAFEGUARDING & FAMILY SUPPORT,Premises,Revenue
Walsall Council,http://opendatacommunities.org/id/metropolitan-district-council/walsall,WC117-193,30/06/2020,Adult Social Care,ACCORD HOUSING ASSOCIATION LTD#135,01/06/2020,"1,737.68",73507-DOMICILIARY CARE,PHYSICAL SUPPORT,Third Party Payments,Revenue
Walsall Council,http://opendatacommunities.org/id/metropolitan-district-council/walsall,WC117-194,30/06/2020,Adult Social Care,ACCORD HOUSING ASSOCIATION LTD#135,01/06/2020,"1,737.68",73507-DOMICILIARY CARE,PHYSICAL SUPPORT,Third Party Payments,Revenue
Walsall Council,http://opendatacommunities.org/id/metropolitan-district-council/walsall,WC117-195,30/06/2020,Adult Social Care,ACCORD HOUSING ASSOCIATION LTD#135,01/06/2020,"1,771.84",73507-DOMICILIARY CARE,PHYSICAL SUPPORT,Third Party Payments,Revenue
Walsall Council,http://opendatacommunities.org/id/metropolitan-district-council/walsall,WC117-196,30/06/2020,Adult Social Care,ACCORD HOUSING ASSOCIATION LTD#135,03/06/2020,"1,940.00",73025-PROFESSIONAL SERVICES-PRIV CONTRACTOR & OTHER AGENCIES,"STRATEGY,COMMISSIONING AND DELIVERY SUPPORT",Third Party Payments,Revenue
Walsall Council,http://opendatacommunities.org/id/metropolitan-district-council/walsall,WC117-197,30/06/2020,Adult Social Care,ACCORD HOUSING ASSOCIATION LTD#135,05/06/2020,"5,807.56",73500-RESIDENTIAL,LEARNING DISABILITY SUPPORT,Third Party Payments,Revenue
Walsall Council,http://opendatacommunities.org/id/metropolitan-district-council/walsall,WC117-198,30/06/2020,Adult Social Care,ACCORD HOUSING ASSOCIATION LTD#135,05/06/2020,"6,503.40",73500-RESIDENTIAL,LEARNING DISABILITY SUPPORT,Third Party Payments,Revenue
Walsall Council,http://opendatacommunities.org/id/metropolitan-district-council/walsall,WC117-199,30/06/2020,Adult Social Care,ACCORD HOUSING ASSOCIATION LTD#135,05/06/2020,"6,503.40",73500-RESIDENTIAL,LEARNING DISABILITY SUPPORT,Third Party Payments,Revenue
Walsall Council,http://opendatacommunities.org/id/metropolitan-district-council/walsall,WC117-200,30/06/2020,Resources and Transformation,ACCORD HOUSING ASSOCIATION LTD#135,15/06/2020,396.59,43000-RENTS,HOMELESSNESS PREVENTION STRATEGY,Premises,Revenue
Walsall Council,http://opendatacommunities.org/id/metropolitan-district-council/walsall,WC117-201,30/06/2020,Resources and Transformation,ACCORD HOUSING ASSOCIATION LTD#135,16/06/2020,343.32,43000-RENTS,HOMELESSNESS PREVENTION STRATEGY,Premises,Revenue
Walsall Council,http://opendatacommunities.org/id/metropolitan-district-council/walsall,WC117-202,30/06/2020,Resources and Transformation,ACCORD HOUSING ASSOCIATION LTD#135,16/06/2020,399.54,43000-RENTS,HOMELESSNESS PREVENTION STRATEGY,Premises,Revenue
Walsall Council,http://opendatacommunities.org/id/metropolitan-district-council/walsall,WC117-203,30/06/2020,Resources and Transformation,ACCORD HOUSING ASSOCIATION LTD#135,16/06/2020,447.13,43000-RENTS,HOMELESSNESS PREVENTION STRATEGY,Premises,Revenue
Walsall Council,http://opendatacommunities.org/id/metropolitan-district-council/walsall,WC117-204,30/06/2020,Resources and Transformation,ACCORD HOUSING ASSOCIATION LTD#135,16/06/2020,"2,500.00",63000-PROFESSIONAL FEES AND SERVICES,INTEGRATED COMMUNITIES PROGRAMME,Supplies & Services,Revenue
Walsall Council,http://opendatacommunities.org/id/metropolitan-district-council/walsall,WC117-205,30/06/2020,Adult Social Care,ACCORD HOUSING ASSOCIATION LTD#135,22/06/2020,"10,592.26",73025-PROFESSIONAL SERVICES-PRIV CONTRACTOR & OTHER AGENCIES,"STRATEGY,COMMISSIONING AND DELIVERY SUPPORT",Third Party Payments,Revenue
Walsall Council,http://opendatacommunities.org/id/metropolitan-district-council/walsall,WC117-206,30/06/2020,Resources and Transformation,ACCORD HOUSING ASSOCIATION LTD#135,22/06/2020,"23,847.50",63000-PROFESSIONAL FEES AND SERVICES,HOUSING FIRST,Supplies & Services,Revenue
Walsall Council,http://opendatacommunities.org/id/metropolitan-district-council/walsall,WC117-207,30/06/2020,Resources and Transformation,ACCORD HOUSING ASSOCIATION LTD#135,22/06/2020,"23,847.50",63000-PROFESSIONAL FEES AND SERVICES,HOUSING FIRST,Supplies & Services,Revenue
Walsall Council,http://opendatacommunities.org/id/metropolitan-district-council/walsall,WC117-208,30/06/2020,Resources and Transformation,ACCORD HOUSING ASSOCIATION LTD#135,22/06/2020,"23,847.50",63000-PROFESSIONAL FEES AND SERVICES,HOUSING FIRST,Supplies & Services,Revenue
Walsall Council,http://opendatacommunities.org/id/metropolitan-district-council/walsall,WC117-209,30/06/2020,Resources and Transformation,ACCORD HOUSING ASSOCIATION LTD#135,22/06/2020,"75,700.00",63000-PROFESSIONAL FEES AND SERVICES,HOUSING FIRST,Supplies & Services,Revenue
Walsall Council,http://opendatacommunities.org/id/metropolitan-district-council/walsall,WC117-210,30/06/2020,Adult Social Care,ACCORD HOUSING ASSOCIATION LTD#135,23/06/2020,306.94,73508-COMMUNITY SUPPORTED LIVING/SUPPORTED ACCOMMODATION,MENTAL HEALTH SUPPORT,Third Party Payments,Revenue
Walsall Council,http://opendatacommunities.org/id/metropolitan-district-council/walsall,WC117-211,30/06/2020,Adult Social Care,ACCORD HOUSING ASSOCIATION LTD#135,23/06/2020,604.48,73508-COMMUNITY SUPPORTED LIVING/SUPPORTED ACCOMMODATION,MENTAL HEALTH SUPPORT,Third Party Payments,Revenue
Walsall Council,http://opendatacommunities.org/id/metropolitan-district-council/walsall,WC117-212,30/06/2020,Adult Social Care,ACCORD HOUSING ASSOCIATION LTD#135,23/06/2020,642.24,73508-COMMUNITY SUPPORTED LIVING/SUPPORTED ACCOMMODATION,MENTAL HEALTH SUPPORT,Third Party Payments,Revenue
Walsall Council,http://opendatacommunities.org/id/metropolitan-district-council/walsall,WC117-213,30/06/2020,Adult Social Care,ACCORD HOUSING ASSOCIATION LTD#135,23/06/2020,661.12,73508-COMMUNITY SUPPORTED LIVING/SUPPORTED ACCOMMODATION,MENTAL HEALTH SUPPORT,Third Party Payments,Revenue
Walsall Council,http://opendatacommunities.org/id/metropolitan-district-council/walsall,WC117-214,30/06/2020,Adult Social Care,ACCORD HOUSING ASSOCIATION LTD#135,23/06/2020,680.04,73508-COMMUNITY SUPPORTED LIVING/SUPPORTED ACCOMMODATION,MENTAL HEALTH SUPPORT,Third Party Payments,Revenue
Walsall Council,http://opendatacommunities.org/id/metropolitan-district-council/walsall,WC117-215,30/06/2020,Adult Social Care,ACCORD HOUSING ASSOCIATION LTD#135,23/06/2020,717.80,73508-COMMUNITY SUPPORTED LIVING/SUPPORTED ACCOMMODATION,MENTAL HEALTH SUPPORT,Third Party Payments,Revenue
Walsall Council,http://opendatacommunities.org/id/metropolitan-district-council/walsall,WC117-216,30/06/2020,Adult Social Care,ACCORD HOUSING ASSOCIATION LTD#135,23/06/2020,982.28,73508-COMMUNITY SUPPORTED LIVING/SUPPORTED ACCOMMODATION,MENTAL HEALTH SUPPORT,Third Party Payments,Revenue
Walsall Council,http://opendatacommunities.org/id/metropolitan-district-council/walsall,WC117-217,30/06/2020,Adult Social Care,ACCORD HOUSING ASSOCIATION LTD#135,23/06/2020,"5,807.56",73500-RESIDENTIAL,LEARNING DISABILITY SUPPORT,Third Party Payments,Revenue
Walsall Council,http://opendatacommunities.org/id/metropolitan-district-council/walsall,WC117-218,30/06/2020,Adult Social Care,ACCORD HOUSING ASSOCIATION LTD#135,23/06/2020,"6,503.40",73500-RESIDENTIAL,LEARNING DISABILITY SUPPORT,Third Party Payments,Revenue
Walsall Council,http://opendatacommunities.org/id/metropolitan-district-council/walsall,WC117-219,30/06/2020,Adult Social Care,ACCORD HOUSING ASSOCIATION LTD#135,23/06/2020,"6,503.40",73500-RESIDENTIAL,LEARNING DISABILITY SUPPORT,Third Party Payments,Revenue
Walsall Council,http://opendatacommunities.org/id/metropolitan-district-council/walsall,WC117-220,30/06/2020,Adult Social Care,ACE CARE AGENCY,18/06/2020,"4,638.34",63000-PROFESSIONAL FEES AND SERVICES,"STRATEGY,COMMISSIONING AND DELIVERY SUPPORT",Supplies & Services,Revenue
Walsall Council,http://opendatacommunities.org/id/metropolitan-district-council/walsall,WC117-221,30/06/2020,Adult Social Care,ACE CARE AGENCY,22/06/2020,"3,585.07",73025-PROFESSIONAL SERVICES-PRIV CONTRACTOR & OTHER AGENCIES,"STRATEGY,COMMISSIONING AND DELIVERY SUPPORT",Third Party Payments,Revenue
Walsall Council,http://opendatacommunities.org/id/metropolitan-district-council/walsall,WC117-222,30/06/2020,Childrens,ACE CARS & MINIBUSES LTD,15/06/2020,974.00,52000-WITH DRIVER-HIRE OF VEHICLES,HOME TO SCHOOL TRANSPORT,Transport,Revenue
Walsall Council,http://opendatacommunities.org/id/metropolitan-district-council/walsall,WC117-223,30/06/2020,Childrens,ACE CARS & MINIBUSES LTD,18/06/2020,307.20,52000-WITH DRIVER-HIRE OF VEHICLES,HOME TO SCHOOL TRANSPORT,Transport,Revenue
Walsall Council,http://opendatacommunities.org/id/metropolitan-district-council/walsall,WC117-224,30/06/2020,Childrens,ACE CARS & MINIBUSES LTD,18/06/2020,328.00,52000-WITH DRIVER-HIRE OF VEHICLES,HOME TO SCHOOL TRANSPORT,Transport,Revenue
Walsall Council,http://opendatacommunities.org/id/metropolitan-district-council/walsall,WC117-225,30/06/2020,Childrens,ACE CARS & MINIBUSES LTD,18/06/2020,336.00,52000-WITH DRIVER-HIRE OF VEHICLES,HOME TO SCHOOL TRANSPORT,Transport,Revenue
Walsall Council,http://opendatacommunities.org/id/metropolitan-district-council/walsall,WC117-226,30/06/2020,Childrens,ACE CARS & MINIBUSES LTD,18/06/2020,480.00,52000-WITH DRIVER-HIRE OF VEHICLES,HOME TO SCHOOL TRANSPORT,Transport,Revenue
Walsall Council,http://opendatacommunities.org/id/metropolitan-district-council/walsall,WC117-227,30/06/2020,Childrens,ACE CARS & MINIBUSES LTD,18/06/2020,528.00,52000-WITH DRIVER-HIRE OF VEHICLES,HOME TO SCHOOL TRANSPORT,Transport,Revenue
Walsall Council,http://opendatacommunities.org/id/metropolitan-district-council/walsall,WC117-228,30/06/2020,Childrens,ACE CARS & MINIBUSES LTD,18/06/2020,540.00,52000-WITH DRIVER-HIRE OF VEHICLES,HOME TO SCHOOL TRANSPORT,Transport,Revenue
Walsall Council,http://opendatacommunities.org/id/metropolitan-district-council/walsall,WC117-229,30/06/2020,Childrens,ACE CARS & MINIBUSES LTD,18/06/2020,582.20,52000-WITH DRIVER-HIRE OF VEHICLES,HOME TO SCHOOL TRANSPORT,Transport,Revenue
Walsall Council,http://opendatacommunities.org/id/metropolitan-district-council/walsall,WC117-230,30/06/2020,Childrens,ACE CARS & MINIBUSES LTD,18/06/2020,600.00,52000-WITH DRIVER-HIRE OF VEHICLES,HOME TO SCHOOL TRANSPORT,Transport,Revenue
Walsall Council,http://opendatacommunities.org/id/metropolitan-district-council/walsall,WC117-231,30/06/2020,Childrens,ACE CARS & MINIBUSES LTD,18/06/2020,696.00,52000-WITH DRIVER-HIRE OF VEHICLES,HOME TO SCHOOL TRANSPORT,Transport,Revenue
Walsall Council,http://opendatacommunities.org/id/metropolitan-district-council/walsall,WC117-232,30/06/2020,Childrens,ACE CARS & MINIBUSES LTD,18/06/2020,780.00,52000-WITH DRIVER-HIRE OF VEHICLES,HOME TO SCHOOL TRANSPORT,Transport,Revenue
Walsall Council,http://opendatacommunities.org/id/metropolitan-district-council/walsall,WC117-233,30/06/2020,Childrens,ACE CARS & MINIBUSES LTD,18/06/2020,832.00,52000-WITH DRIVER-HIRE OF VEHICLES,HOME TO SCHOOL TRANSPORT,Transport,Revenue
Walsall Council,http://opendatacommunities.org/id/metropolitan-district-council/walsall,WC117-234,30/06/2020,Childrens,ACE CARS & MINIBUSES LTD,18/06/2020,840.00,52000-WITH DRIVER-HIRE OF VEHICLES,HOME TO SCHOOL TRANSPORT,Transport,Revenue
Walsall Council,http://opendatacommunities.org/id/metropolitan-district-council/walsall,WC117-235,30/06/2020,Childrens,ACE CARS & MINIBUSES LTD,18/06/2020,840.00,52000-WITH DRIVER-HIRE OF VEHICLES,HOME TO SCHOOL TRANSPORT,Transport,Revenue
Walsall Council,http://opendatacommunities.org/id/metropolitan-district-council/walsall,WC117-236,30/06/2020,Childrens,ACE CARS & MINIBUSES LTD,18/06/2020,900.00,52000-WITH DRIVER-HIRE OF VEHICLES,HOME TO SCHOOL TRANSPORT,Transport,Revenue
Walsall Council,http://opendatacommunities.org/id/metropolitan-district-council/walsall,WC117-237,30/06/2020,Childrens,ACE CARS & MINIBUSES LTD,18/06/2020,924.00,52000-WITH DRIVER-HIRE OF VEHICLES,HOME TO SCHOOL TRANSPORT,Transport,Revenue
Walsall Council,http://opendatacommunities.org/id/metropolitan-district-council/walsall,WC117-238,30/06/2020,Childrens,ACE CARS & MINIBUSES LTD,18/06/2020,936.00,52000-WITH DRIVER-HIRE OF VEHICLES,HOME TO SCHOOL TRANSPORT,Transport,Revenue
Walsall Council,http://opendatacommunities.org/id/metropolitan-district-council/walsall,WC117-239,30/06/2020,Childrens,ACE CARS & MINIBUSES LTD,18/06/2020,938.40,52000-WITH DRIVER-HIRE OF VEHICLES,HOME TO SCHOOL TRANSPORT,Transport,Revenue
Walsall Council,http://opendatacommunities.org/id/metropolitan-district-council/walsall,WC117-240,30/06/2020,Childrens,ACE CARS & MINIBUSES LTD,18/06/2020,"1,225.90",52000-WITH DRIVER-HIRE OF VEHICLES,HOME TO SCHOOL TRANSPORT,Transport,Revenue
Walsall Council,http://opendatacommunities.org/id/metropolitan-district-council/walsall,WC117-241,30/06/2020,Childrens,ACE CARS & MINIBUSES LTD,18/06/2020,"1,242.00",52000-WITH DRIVER-HIRE OF VEHICLES,HOME TO SCHOOL TRANSPORT,Transport,Revenue
Walsall Council,http://opendatacommunities.org/id/metropolitan-district-council/walsall,WC117-242,30/06/2020,Childrens,ACE CARS & MINIBUSES LTD,18/06/2020,"1,266.90",52000-WITH DRIVER-HIRE OF VEHICLES,HOME TO SCHOOL TRANSPORT,Transport,Revenue
Walsall Council,http://opendatacommunities.org/id/metropolitan-district-council/walsall,WC117-243,30/06/2020,Childrens,ACE CARS & MINIBUSES LTD,18/06/2020,"1,311.00",52000-WITH DRIVER-HIRE OF VEHICLES,HOME TO SCHOOL TRANSPORT,Transport,Revenue
Walsall Council,http://opendatacommunities.org/id/metropolitan-district-council/walsall,WC117-244,30/06/2020,Childrens,ACE CARS & MINIBUSES LTD,18/06/2020,"1,320.00",52000-WITH DRIVER-HIRE OF VEHICLES,HOME TO SCHOOL TRANSPORT,Transport,Revenue
Walsall Council,http://opendatacommunities.org/id/metropolitan-district-council/walsall,WC117-245,30/06/2020,Childrens,ACE CARS & MINIBUSES LTD,18/06/2020,"1,320.00",52000-WITH DRIVER-HIRE OF VEHICLES,HOME TO SCHOOL TRANSPORT,Transport,Revenue
Walsall Council,http://opendatacommunities.org/id/metropolitan-district-council/walsall,WC117-246,30/06/2020,Childrens,ACE CARS & MINIBUSES LTD,18/06/2020,"1,380.00",52000-WITH DRIVER-HIRE OF VEHICLES,HOME TO SCHOOL TRANSPORT,Transport,Revenue
Walsall Council,http://opendatacommunities.org/id/metropolitan-district-council/walsall,WC117-247,30/06/2020,Childrens,ACE CARS & MINIBUSES LTD,18/06/2020,"1,420.25",52000-WITH DRIVER-HIRE OF VEHICLES,HOME TO SCHOOL TRANSPORT,Transport,Revenue
Walsall Council,http://opendatacommunities.org/id/metropolitan-district-council/walsall,WC117-248,30/06/2020,Childrens,ACE CARS & MINIBUSES LTD,18/06/2020,"1,518.00",52000-WITH DRIVER-HIRE OF VEHICLES,HOME TO SCHOOL TRANSPORT,Transport,Revenue
Walsall Council,http://opendatacommunities.org/id/metropolitan-district-council/walsall,WC117-249,30/06/2020,Childrens,ACE CARS & MINIBUSES LTD,18/06/2020,"1,518.00",52000-WITH DRIVER-HIRE OF VEHICLES,HOME TO SCHOOL TRANSPORT,Transport,Revenue
Walsall Council,http://opendatacommunities.org/id/metropolitan-district-council/walsall,WC117-250,30/06/2020,Childrens,ACE CARS & MINIBUSES LTD,18/06/2020,"1,539.00",52000-WITH DRIVER-HIRE OF VEHICLES,HOME TO SCHOOL TRANSPORT,Transport,Revenue
Walsall Council,http://opendatacommunities.org/id/metropolitan-district-council/walsall,WC117-251,30/06/2020,Childrens,ACE CARS & MINIBUSES LTD,18/06/2020,"1,650.00",52000-WITH DRIVER-HIRE OF VEHICLES,HOME TO SCHOOL TRANSPORT,Transport,Revenue
Walsall Council,http://opendatacommunities.org/id/metropolitan-district-council/walsall,WC117-252,30/06/2020,Childrens,ACE CARS & MINIBUSES LTD,18/06/2020,"1,656.00",52000-WITH DRIVER-HIRE OF VEHICLES,HOME TO SCHOOL TRANSPORT,Transport,Revenue
Walsall Council,http://opendatacommunities.org/id/metropolitan-district-council/walsall,WC117-253,30/06/2020,Childrens,ACE CARS & MINIBUSES LTD,18/06/2020,"1,676.70",52000-WITH DRIVER-HIRE OF VEHICLES,HOME TO SCHOOL TRANSPORT,Transport,Revenue
Walsall Council,http://opendatacommunities.org/id/metropolitan-district-council/walsall,WC117-254,30/06/2020,Childrens,ACE CARS & MINIBUSES LTD,18/06/2020,"1,852.80",52000-WITH DRIVER-HIRE OF VEHICLES,HOME TO SCHOOL TRANSPORT,Transport,Revenue
Walsall Council,http://opendatacommunities.org/id/metropolitan-district-council/walsall,WC117-255,30/06/2020,Childrens,ACE CARS & MINIBUSES LTD,18/06/2020,"1,854.00",52000-WITH DRIVER-HIRE OF VEHICLES,HOME TO SCHOOL TRANSPORT,Transport,Revenue
Walsall Council,http://opendatacommunities.org/id/metropolitan-district-council/walsall,WC117-256,30/06/2020,Childrens,ACE CARS & MINIBUSES LTD,18/06/2020,"2,250.00",52000-WITH DRIVER-HIRE OF VEHICLES,HOME TO SCHOOL TRANSPORT,Transport,Revenue
Walsall Council,http://opendatacommunities.org/id/metropolitan-district-council/walsall,WC117-257,30/06/2020,Childrens,ACE CARS & MINIBUSES LTD,18/06/2020,"2,334.00",52000-WITH DRIVER-HIRE OF VEHICLES,HOME TO SCHOOL TRANSPORT,Transport,Revenue
Walsall Council,http://opendatacommunities.org/id/metropolitan-district-council/walsall,WC117-258,30/06/2020,Adult Social Care,ACEPAY LTD (COTTAGE NUR HOME),04/06/2020,"16,005.00",73025-PROFESSIONAL SERVICES-PRIV CONTRACTOR & OTHER AGENCIES,"STRATEGY,COMMISSIONING AND DELIVERY SUPPORT",Third Party Payments,Revenue
Walsall Council,http://opendatacommunities.org/id/metropolitan-district-council/walsall,WC117-259,30/06/2020,Adult Social Care,ACEPAY LTD (COTTAGE NUR HOME),05/06/2020,"-5,792.36",73501-RESIDENTIAL EMI,PHYSICAL SUPPORT,Third Party Payments,Revenue
Walsall Council,http://opendatacommunities.org/id/metropolitan-district-council/walsall,WC117-260,30/06/2020,Adult Social Care,ACEPAY LTD (COTTAGE NUR HOME),05/06/2020,"1,022.00",73504-SHORT STAY RESIDENTIAL,PHYSICAL SUPPORT,Third Party Payments,Revenue
Walsall Council,http://opendatacommunities.org/id/metropolitan-district-council/walsall,WC117-261,30/06/2020,Adult Social Care,ACEPAY LTD (COTTAGE NUR HOME),05/06/2020,"2,044.00",73500-RESIDENTIAL,PHYSICAL SUPPORT,Third Party Payments,Revenue
Walsall Council,http://opendatacommunities.org/id/metropolitan-district-council/walsall,WC117-262,30/06/2020,Adult Social Care,ACEPAY LTD (COTTAGE NUR HOME),05/06/2020,"2,396.00",73502-NURSING,PHYSICAL SUPPORT,Third Party Payments,Revenue
Walsall Council,http://opendatacommunities.org/id/metropolitan-district-council/walsall,WC117-263,30/06/2020,Adult Social Care,ACEPAY LTD (COTTAGE NUR HOME),05/06/2020,"2,396.00",73502-NURSING,PHYSICAL SUPPORT,Third Party Payments,Revenue
Walsall Council,http://opendatacommunities.org/id/metropolitan-district-council/walsall,WC117-264,30/06/2020,Adult Social Care,ACEPAY LTD (COTTAGE NUR HOME),05/06/2020,"2,396.00",73502-NURSING,PHYSICAL SUPPORT,Third Party Payments,Revenue
Walsall Council,http://opendatacommunities.org/id/metropolitan-district-council/walsall,WC117-265,30/06/2020,Adult Social Care,ACEPAY LTD (COTTAGE NUR HOME),05/06/2020,"2,396.00",73502-NURSING,SUPPORT WITH MEMORY & COGNITION,Third Party Payments,Revenue
Walsall Council,http://opendatacommunities.org/id/metropolitan-district-council/walsall,WC117-266,30/06/2020,Adult Social Care,ACEPAY LTD (COTTAGE NUR HOME),05/06/2020,"2,396.00",73502-NURSING,PHYSICAL SUPPORT,Third Party Payments,Revenue
Walsall Council,http://opendatacommunities.org/id/metropolitan-district-council/walsall,WC117-267,30/06/2020,Adult Social Care,ACEPAY LTD (COTTAGE NUR HOME),05/06/2020,"2,396.00",73502-NURSING,PHYSICAL SUPPORT,Third Party Payments,Revenue
Walsall Council,http://opendatacommunities.org/id/metropolitan-district-council/walsall,WC117-268,30/06/2020,Adult Social Care,ACEPAY LTD (COTTAGE NUR HOME),05/06/2020,"2,396.00",73502-NURSING,PHYSICAL SUPPORT,Third Party Payments,Revenue
Walsall Council,http://opendatacommunities.org/id/metropolitan-district-council/walsall,WC117-269,30/06/2020,Adult Social Care,ACEPAY LTD (COTTAGE NUR HOME),05/06/2020,"2,396.00",73502-NURSING,SOCIAL SUPPORT,Third Party Payments,Revenue
Walsall Council,http://opendatacommunities.org/id/metropolitan-district-council/walsall,WC117-270,30/06/2020,Adult Social Care,ACEPAY LTD (COTTAGE NUR HOME),05/06/2020,"2,396.00",73502-NURSING,SUPPORT WITH MEMORY & COGNITION,Third Party Payments,Revenue
Walsall Council,http://opendatacommunities.org/id/metropolitan-district-council/walsall,WC117-271,30/06/2020,Adult Social Care,ACEPAY LTD (COTTAGE NUR HOME),05/06/2020,"2,396.00",73502-NURSING,PHYSICAL SUPPORT,Third Party Payments,Revenue
Walsall Council,http://opendatacommunities.org/id/metropolitan-district-council/walsall,WC117-272,30/06/2020,Adult Social Care,ACEPAY LTD (COTTAGE NUR HOME),05/06/2020,"2,396.00",73502-NURSING,SUPPORT WITH MEMORY & COGNITION,Third Party Payments,Revenue
Walsall Council,http://opendatacommunities.org/id/metropolitan-district-council/walsall,WC117-273,30/06/2020,Adult Social Care,ACEPAY LTD (COTTAGE NUR HOME),05/06/2020,"2,596.00",73502-NURSING,PHYSICAL SUPPORT,Third Party Payments,Revenue
Walsall Council,http://opendatacommunities.org/id/metropolitan-district-council/walsall,WC117-274,30/06/2020,Adult Social Care,ACEPAY LTD (COTTAGE NUR HOME),05/06/2020,"8,615.54",73502-NURSING,PHYSICAL SUPPORT,Third Party Payments,Revenue
Walsall Council,http://opendatacommunities.org/id/metropolitan-district-council/walsall,WC117-275,30/06/2020,Adult Social Care,ACEPAY LTD (COTTAGE NUR HOME),10/06/2020,983.00,73025-PROFESSIONAL SERVICES-PRIV CONTRACTOR & OTHER AGENCIES,TRANSITIONAL CARE SUPPORT TEAM,Third Party Payments,Revenue
Walsall Council,http://opendatacommunities.org/id/metropolitan-district-council/walsall,WC117-276,30/06/2020,Adult Social Care,ACEPAY LTD (COTTAGE NUR HOME),10/06/2020,"1,966.01",73025-PROFESSIONAL SERVICES-PRIV CONTRACTOR & OTHER AGENCIES,TRANSITIONAL CARE SUPPORT TEAM,Third Party Payments,Revenue
Walsall Council,http://opendatacommunities.org/id/metropolitan-district-council/walsall,WC117-277,30/06/2020,Adult Social Care,ACEPAY LTD (COTTAGE NUR HOME),23/06/2020,"2,044.00",73504-SHORT STAY RESIDENTIAL,PHYSICAL SUPPORT,Third Party Payments,Revenue
Walsall Council,http://opendatacommunities.org/id/metropolitan-district-council/walsall,WC117-278,30/06/2020,Adult Social Care,ACEPAY LTD (COTTAGE NUR HOME),23/06/2020,"2,044.00",73500-RESIDENTIAL,PHYSICAL SUPPORT,Third Party Payments,Revenue
Walsall Council,http://opendatacommunities.org/id/metropolitan-district-council/walsall,WC117-279,30/06/2020,Adult Social Care,ACEPAY LTD (COTTAGE NUR HOME),23/06/2020,"2,396.00",73502-NURSING,PHYSICAL SUPPORT,Third Party Payments,Revenue
Walsall Council,http://opendatacommunities.org/id/metropolitan-district-council/walsall,WC117-280,30/06/2020,Adult Social Care,ACEPAY LTD (COTTAGE NUR HOME),23/06/2020,"2,396.00",73502-NURSING,PHYSICAL SUPPORT,Third Party Payments,Revenue
Walsall Council,http://opendatacommunities.org/id/metropolitan-district-council/walsall,WC117-281,30/06/2020,Adult Social Care,ACEPAY LTD (COTTAGE NUR HOME),23/06/2020,"2,396.00",73502-NURSING,PHYSICAL SUPPORT,Third Party Payments,Revenue
Walsall Council,http://opendatacommunities.org/id/metropolitan-district-council/walsall,WC117-282,30/06/2020,Adult Social Care,ACEPAY LTD (COTTAGE NUR HOME),23/06/2020,"2,396.00",73502-NURSING,PHYSICAL SUPPORT,Third Party Payments,Revenue
Walsall Council,http://opendatacommunities.org/id/metropolitan-district-council/walsall,WC117-283,30/06/2020,Adult Social Care,ACEPAY LTD (COTTAGE NUR HOME),23/06/2020,"2,396.00",73502-NURSING,PHYSICAL SUPPORT,Third Party Payments,Revenue
Walsall Council,http://opendatacommunities.org/id/metropolitan-district-council/walsall,WC117-284,30/06/2020,Adult Social Care,ACEPAY LTD (COTTAGE NUR HOME),23/06/2020,"2,396.00",73502-NURSING,PHYSICAL SUPPORT,Third Party Payments,Revenue
Walsall Council,http://opendatacommunities.org/id/metropolitan-district-council/walsall,WC117-285,30/06/2020,Adult Social Care,ACEPAY LTD (COTTAGE NUR HOME),23/06/2020,"2,396.00",73502-NURSING,PHYSICAL SUPPORT,Third Party Payments,Revenue
Walsall Council,http://opendatacommunities.org/id/metropolitan-district-council/walsall,WC117-286,30/06/2020,Adult Social Care,ACEPAY LTD (COTTAGE NUR HOME),23/06/2020,"2,396.00",73502-NURSING,SOCIAL SUPPORT,Third Party Payments,Revenue
Walsall Council,http://opendatacommunities.org/id/metropolitan-district-council/walsall,WC117-287,30/06/2020,Adult Social Care,ACEPAY LTD (COTTAGE NUR HOME),23/06/2020,"2,396.00",73502-NURSING,PHYSICAL SUPPORT,Third Party Payments,Revenue
Walsall Council,http://opendatacommunities.org/id/metropolitan-district-council/walsall,WC117-288,30/06/2020,Adult Social Care,ACEPAY LTD (COTTAGE NUR HOME),23/06/2020,"2,396.00",73502-NURSING,SUPPORT WITH MEMORY & COGNITION,Third Party Payments,Revenue
Walsall Council,http://opendatacommunities.org/id/metropolitan-district-council/walsall,WC117-289,30/06/2020,Adult Social Care,ACEPAY LTD (COTTAGE NUR HOME),23/06/2020,"2,396.00",73502-NURSING,SUPPORT WITH MEMORY & COGNITION,Third Party Payments,Revenue
Walsall Council,http://opendatacommunities.org/id/metropolitan-district-council/walsall,WC117-290,30/06/2020,Adult Social Care,ACEPAY LTD (COTTAGE NUR HOME),23/06/2020,"2,396.00",73502-NURSING,SUPPORT WITH MEMORY & COGNITION,Third Party Payments,Revenue
Walsall Council,http://opendatacommunities.org/id/metropolitan-district-council/walsall,WC117-291,30/06/2020,Adult Social Care,ACEPAY LTD (COTTAGE NUR HOME),23/06/2020,"2,396.00",73502-NURSING,PHYSICAL SUPPORT,Third Party Payments,Revenue
Walsall Council,http://opendatacommunities.org/id/metropolitan-district-council/walsall,WC117-292,30/06/2020,Adult Social Care,ACEPAY LTD (COTTAGE NUR HOME),23/06/2020,"2,596.00",73502-NURSING,PHYSICAL SUPPORT,Third Party Payments,Revenue
Walsall Council,http://opendatacommunities.org/id/metropolitan-district-council/walsall,WC117-293,30/06/2020,Adult Social Care,ACEPAY LTD (COTTAGE NUR HOME),23/06/2020,"4,792.00",73502-NURSING,PHYSICAL SUPPORT,Third Party Payments,Revenue
Walsall Council,http://opendatacommunities.org/id/metropolitan-district-council/walsall,WC117-294,30/06/2020,Childrens,ACORN FOSTERING SERVICES LTD,12/06/2020,"3,380.00",74037-INDEPENDENT FOSTER CARE-OTH AGENCY PROVISION,EXTERNAL FOSTER CARE PROVISION,Third Party Payments,Revenue
Walsall Council,http://opendatacommunities.org/id/metropolitan-district-council/walsall,WC117-295,30/06/2020,Adult Social Care,ACORN REST HOME,03/06/2020,"8,730.00",73025-PROFESSIONAL SERVICES-PRIV CONTRACTOR & OTHER AGENCIES,"STRATEGY,COMMISSIONING AND DELIVERY SUPPORT",Third Party Payments,Revenue
Walsall Council,http://opendatacommunities.org/id/metropolitan-district-council/walsall,WC117-296,30/06/2020,Adult Social Care,ACTION ON HEARING LOSS,09/06/2020,"2,910.00",73025-PROFESSIONAL SERVICES-PRIV CONTRACTOR & OTHER AGENCIES,"STRATEGY,COMMISSIONING AND DELIVERY SUPPORT",Third Party Payments,Revenue
Walsall Council,http://opendatacommunities.org/id/metropolitan-district-council/walsall,WC117-297,30/06/2020,Childrens,ACTIVE CARE SOLUTIONS LTD,12/06/2020,"1,090.35",74037-INDEPENDENT FOSTER CARE-OTH AGENCY PROVISION,EXTERNAL FOSTER CARE PROVISION,Third Party Payments,Revenue
Walsall Council,http://opendatacommunities.org/id/metropolitan-district-council/walsall,WC117-298,30/06/2020,Childrens,ACTIVE CARE SOLUTIONS LTD,12/06/2020,"1,699.88",74037-INDEPENDENT FOSTER CARE-OTH AGENCY PROVISION,EXTERNAL FOSTER CARE PROVISION,Third Party Payments,Revenue
Walsall Council,http://opendatacommunities.org/id/metropolitan-district-council/walsall,WC117-299,30/06/2020,Childrens,ACTIVE CARE SOLUTIONS LTD,12/06/2020,"2,662.80",74037-INDEPENDENT FOSTER CARE-OTH AGENCY PROVISION,EXTERNAL FOSTER CARE PROVISION,Third Party Payments,Revenue
Walsall Council,http://opendatacommunities.org/id/metropolitan-district-council/walsall,WC117-300,30/06/2020,Childrens,ACTIVE CARE SOLUTIONS LTD,12/06/2020,"3,220.00",74037-INDEPENDENT FOSTER CARE-OTH AGENCY PROVISION,EXTERNAL FOSTER CARE PROVISION,Third Party Payments,Revenue
Walsall Council,http://opendatacommunities.org/id/metropolitan-district-council/walsall,WC117-301,30/06/2020,Childrens,ADMIRAL SELF STORAGE LTD,01/06/2020,228.78,63000-PROFESSIONAL FEES AND SERVICES,CHILDREN'S COMMISSIONING,Supplies & Services,Revenue
Walsall Council,http://opendatacommunities.org/id/metropolitan-district-council/walsall,WC117-302,30/06/2020,Adult Social Care,ADVANCE HEALTH CARE (UK) LTD,01/06/2020,250.78,73025-PROFESSIONAL SERVICES-PRIV CONTRACTOR & OTHER AGENCIES,INTERMEDIATE CARE SERVICE,Third Party Payments,Revenue
Walsall Council,http://opendatacommunities.org/id/metropolitan-district-council/walsall,WC117-303,30/06/2020,Adult Social Care,ADVANCE HEALTH CARE (UK) LTD,01/06/2020,451.40,73025-PROFESSIONAL SERVICES-PRIV CONTRACTOR & OTHER AGENCIES,INTERMEDIATE CARE SERVICE,Third Party Payments,Revenue
Walsall Council,http://opendatacommunities.org/id/metropolitan-district-council/walsall,WC117-304,30/06/2020,Adult Social Care,ADVANCE HEALTH CARE (UK) LTD,01/06/2020,689.11,73025-PROFESSIONAL SERVICES-PRIV CONTRACTOR & OTHER AGENCIES,INTERMEDIATE CARE SERVICE,Third Party Payments,Revenue
Walsall Council,http://opendatacommunities.org/id/metropolitan-district-council/walsall,WC117-305,30/06/2020,Adult Social Care,ADVANCE HEALTH CARE (UK) LTD,04/06/2020,486.05,73025-PROFESSIONAL SERVICES-PRIV CONTRACTOR & OTHER AGENCIES,INTERMEDIATE CARE SERVICE,Third Party Payments,Revenue
Walsall Council,http://opendatacommunities.org/id/metropolitan-district-council/walsall,WC117-306,30/06/2020,Adult Social Care,ADVANCE HEALTH CARE (UK) LTD,04/06/2020,486.05,73025-PROFESSIONAL SERVICES-PRIV CONTRACTOR & OTHER AGENCIES,INTERMEDIATE CARE SERVICE,Third Party Payments,Revenue
Walsall Council,http://opendatacommunities.org/id/metropolitan-district-council/walsall,WC117-307,30/06/2020,Adult Social Care,ADVANCE HEALTH CARE (UK) LTD,04/06/2020,486.05,73025-PROFESSIONAL SERVICES-PRIV CONTRACTOR & OTHER AGENCIES,INTERMEDIATE CARE SERVICE,Third Party Payments,Revenue
Walsall Council,http://opendatacommunities.org/id/metropolitan-district-council/walsall,WC117-308,30/06/2020,Adult Social Care,ADVANCE HEALTH CARE (UK) LTD,04/06/2020,486.05,73025-PROFESSIONAL SERVICES-PRIV CONTRACTOR & OTHER AGENCIES,INTERMEDIATE CARE SERVICE,Third Party Payments,Revenue
Walsall Council,http://opendatacommunities.org/id/metropolitan-district-council/walsall,WC117-309,30/06/2020,Adult Social Care,ADVANCE HEALTH CARE (UK) LTD,04/06/2020,486.05,73025-PROFESSIONAL SERVICES-PRIV CONTRACTOR & OTHER AGENCIES,INTERMEDIATE CARE SERVICE,Third Party Payments,Revenue
Walsall Council,http://opendatacommunities.org/id/metropolitan-district-council/walsall,WC117-310,30/06/2020,Adult Social Care,ADVANCE HEALTH CARE (UK) LTD,04/06/2020,486.05,73025-PROFESSIONAL SERVICES-PRIV CONTRACTOR & OTHER AGENCIES,INTERMEDIATE CARE SERVICE,Third Party Payments,Revenue
Walsall Council,http://opendatacommunities.org/id/metropolitan-district-council/walsall,WC117-311,30/06/2020,Adult Social Care,ADVANCE HEALTH CARE (UK) LTD,04/06/2020,524.62,73025-PROFESSIONAL SERVICES-PRIV CONTRACTOR & OTHER AGENCIES,INTERMEDIATE CARE SERVICE,Third Party Payments,Revenue
Walsall Council,http://opendatacommunities.org/id/metropolitan-district-council/walsall,WC117-312,30/06/2020,Adult Social Care,ADVANCE HEALTH CARE (UK) LTD,05/06/2020,486.05,73025-PROFESSIONAL SERVICES-PRIV CONTRACTOR & OTHER AGENCIES,INTERMEDIATE CARE SERVICE,Third Party Payments,Revenue
Walsall Council,http://opendatacommunities.org/id/metropolitan-district-council/walsall,WC117-313,30/06/2020,Adult Social Care,ADVANCE HEALTH CARE (UK) LTD,05/06/2020,486.05,73025-PROFESSIONAL SERVICES-PRIV CONTRACTOR & OTHER AGENCIES,INTERMEDIATE CARE SERVICE,Third Party Payments,Revenue
Walsall Council,http://opendatacommunities.org/id/metropolitan-district-council/walsall,WC117-314,30/06/2020,Adult Social Care,ADVANCE HEALTH CARE (UK) LTD,05/06/2020,486.05,73025-PROFESSIONAL SERVICES-PRIV CONTRACTOR & OTHER AGENCIES,INTERMEDIATE CARE SERVICE,Third Party Payments,Revenue
Walsall Council,http://opendatacommunities.org/id/metropolitan-district-council/walsall,WC117-315,30/06/2020,Adult Social Care,ADVANCE HEALTH CARE (UK) LTD,05/06/2020,486.05,73025-PROFESSIONAL SERVICES-PRIV CONTRACTOR & OTHER AGENCIES,INTERMEDIATE CARE SERVICE,Third Party Payments,Revenue
Walsall Council,http://opendatacommunities.org/id/metropolitan-district-council/walsall,WC117-316,30/06/2020,Adult Social Care,ADVANCE HEALTH CARE (UK) LTD,09/06/2020,-832.68,73507-DOMICILIARY CARE,SOCIAL SUPPORT,Third Party Payments,Revenue
Walsall Council,http://opendatacommunities.org/id/metropolitan-district-council/walsall,WC117-317,30/06/2020,Adult Social Care,ADVANCE HEALTH CARE (UK) LTD,09/06/2020,-431.76,73507-DOMICILIARY CARE,PHYSICAL SUPPORT,Third Party Payments,Revenue
Walsall Council,http://opendatacommunities.org/id/metropolitan-district-council/walsall,WC117-318,30/06/2020,Adult Social Care,ADVANCE HEALTH CARE (UK) LTD,09/06/2020,-370.08,73507-DOMICILIARY CARE,SOCIAL SUPPORT,Third Party Payments,Revenue
Walsall Council,http://opendatacommunities.org/id/metropolitan-district-council/walsall,WC117-319,30/06/2020,Adult Social Care,ADVANCE HEALTH CARE (UK) LTD,09/06/2020,277.56,73507-DOMICILIARY CARE,PHYSICAL SUPPORT,Third Party Payments,Revenue
Walsall Council,http://opendatacommunities.org/id/metropolitan-district-council/walsall,WC117-320,30/06/2020,Adult Social Care,ADVANCE HEALTH CARE (UK) LTD,09/06/2020,277.56,73507-DOMICILIARY CARE,PHYSICAL SUPPORT,Third Party Payments,Revenue
Walsall Council,http://opendatacommunities.org/id/metropolitan-district-council/walsall,WC117-321,30/06/2020,Adult Social Care,ADVANCE HEALTH CARE (UK) LTD,09/06/2020,292.98,73507-DOMICILIARY CARE,SOCIAL SUPPORT,Third Party Payments,Revenue
Walsall Council,http://opendatacommunities.org/id/metropolitan-district-council/walsall,WC117-322,30/06/2020,Adult Social Care,ADVANCE HEALTH CARE (UK) LTD,09/06/2020,323.82,73507-DOMICILIARY CARE,SOCIAL SUPPORT,Third Party Payments,Revenue
Walsall Council,http://opendatacommunities.org/id/metropolitan-district-council/walsall,WC117-323,30/06/2020,Adult Social Care,ADVANCE HEALTH CARE (UK) LTD,09/06/2020,323.82,73507-DOMICILIARY CARE,SOCIAL SUPPORT,Third Party Payments,Revenue
Walsall Council,http://opendatacommunities.org/id/metropolitan-district-council/walsall,WC117-324,30/06/2020,Adult Social Care,ADVANCE HEALTH CARE (UK) LTD,09/06/2020,339.24,73507-DOMICILIARY CARE,PHYSICAL SUPPORT,Third Party Payments,Revenue
Walsall Council,http://opendatacommunities.org/id/metropolitan-district-council/walsall,WC117-325,30/06/2020,Adult Social Care,ADVANCE HEALTH CARE (UK) LTD,09/06/2020,359.80,73507-DOMICILIARY CARE,PHYSICAL SUPPORT,Third Party Payments,Revenue
Walsall Council,http://opendatacommunities.org/id/metropolitan-district-council/walsall,WC117-326,30/06/2020,Adult Social Care,ADVANCE HEALTH CARE (UK) LTD,09/06/2020,359.80,73507-DOMICILIARY CARE,PHYSICAL SUPPORT,Third Party Payments,Revenue
Walsall Council,http://opendatacommunities.org/id/metropolitan-district-council/walsall,WC117-327,30/06/2020,Adult Social Care,ADVANCE HEALTH CARE (UK) LTD,09/06/2020,362.37,73507-DOMICILIARY CARE,PHYSICAL SUPPORT,Third Party Payments,Revenue
Walsall Council,http://opendatacommunities.org/id/metropolitan-district-council/walsall,WC117-328,30/06/2020,Adult Social Care,ADVANCE HEALTH CARE (UK) LTD,09/06/2020,362.37,73507-DOMICILIARY CARE,PHYSICAL SUPPORT,Third Party Payments,Revenue
Walsall Council,http://opendatacommunities.org/id/metropolitan-district-council/walsall,WC117-329,30/06/2020,Adult Social Care,ADVANCE HEALTH CARE (UK) LTD,09/06/2020,377.79,73507-DOMICILIARY CARE,PHYSICAL SUPPORT,Third Party Payments,Revenue
Walsall Council,http://opendatacommunities.org/id/metropolitan-district-council/walsall,WC117-330,30/06/2020,Adult Social Care,ADVANCE HEALTH CARE (UK) LTD,09/06/2020,377.79,73507-DOMICILIARY CARE,PHYSICAL SUPPORT,Third Party Payments,Revenue
Walsall Council,http://opendatacommunities.org/id/metropolitan-district-council/walsall,WC117-331,30/06/2020,Adult Social Care,ADVANCE HEALTH CARE (UK) LTD,09/06/2020,400.92,73507-DOMICILIARY CARE,PHYSICAL SUPPORT,Third Party Payments,Revenue
Walsall Council,http://opendatacommunities.org/id/metropolitan-district-council/walsall,WC117-332,30/06/2020,Adult Social Care,ADVANCE HEALTH CARE (UK) LTD,09/06/2020,403.49,73507-DOMICILIARY CARE,PHYSICAL SUPPORT,Third Party Payments,Revenue
Walsall Council,http://opendatacommunities.org/id/metropolitan-district-council/walsall,WC117-333,30/06/2020,Adult Social Care,ADVANCE HEALTH CARE (UK) LTD,09/06/2020,403.49,73507-DOMICILIARY CARE,PHYSICAL SUPPORT,Third Party Payments,Revenue
Walsall Council,http://opendatacommunities.org/id/metropolitan-district-council/walsall,WC117-334,30/06/2020,Adult Social Care,ADVANCE HEALTH CARE (UK) LTD,09/06/2020,404.81,73507-DOMICILIARY CARE,PHYSICAL SUPPORT,Third Party Payments,Revenue
Walsall Council,http://opendatacommunities.org/id/metropolitan-district-council/walsall,WC117-335,30/06/2020,Adult Social Care,ADVANCE HEALTH CARE (UK) LTD,09/06/2020,404.81,73507-DOMICILIARY CARE,PHYSICAL SUPPORT,Third Party Payments,Revenue
Walsall Council,http://opendatacommunities.org/id/metropolitan-district-council/walsall,WC117-336,30/06/2020,Adult Social Care,ADVANCE HEALTH CARE (UK) LTD,09/06/2020,431.76,73507-DOMICILIARY CARE,PHYSICAL SUPPORT,Third Party Payments,Revenue
Walsall Council,http://opendatacommunities.org/id/metropolitan-district-council/walsall,WC117-337,30/06/2020,Adult Social Care,ADVANCE HEALTH CARE (UK) LTD,09/06/2020,431.76,73507-DOMICILIARY CARE,PHYSICAL SUPPORT,Third Party Payments,Revenue
Walsall Council,http://opendatacommunities.org/id/metropolitan-district-council/walsall,WC117-338,30/06/2020,Adult Social Care,ADVANCE HEALTH CARE (UK) LTD,09/06/2020,431.76,73507-DOMICILIARY CARE,PHYSICAL SUPPORT,Third Party Payments,Revenue
Walsall Council,http://opendatacommunities.org/id/metropolitan-district-council/walsall,WC117-339,30/06/2020,Adult Social Care,ADVANCE HEALTH CARE (UK) LTD,09/06/2020,431.76,73507-DOMICILIARY CARE,PHYSICAL SUPPORT,Third Party Payments,Revenue
Walsall Council,http://opendatacommunities.org/id/metropolitan-district-council/walsall,WC117-340,30/06/2020,Adult Social Care,ADVANCE HEALTH CARE (UK) LTD,09/06/2020,431.76,73507-DOMICILIARY CARE,PHYSICAL SUPPORT,Third Party Payments,Revenue
Walsall Council,http://opendatacommunities.org/id/metropolitan-district-council/walsall,WC117-341,30/06/2020,Adult Social Care,ADVANCE HEALTH CARE (UK) LTD,09/06/2020,431.76,73507-DOMICILIARY CARE,PHYSICAL SUPPORT,Third Party Payments,Revenue
Walsall Council,http://opendatacommunities.org/id/metropolitan-district-council/walsall,WC117-342,30/06/2020,Adult Social Care,ADVANCE HEALTH CARE (UK) LTD,09/06/2020,431.76,73507-DOMICILIARY CARE,PHYSICAL SUPPORT,Third Party Payments,Revenue
Walsall Council,http://opendatacommunities.org/id/metropolitan-district-council/walsall,WC117-343,30/06/2020,Adult Social Care,ADVANCE HEALTH CARE (UK) LTD,09/06/2020,431.76,73507-DOMICILIARY CARE,PHYSICAL SUPPORT,Third Party Payments,Revenue
Walsall Council,http://opendatacommunities.org/id/metropolitan-district-council/walsall,WC117-344,30/06/2020,Adult Social Care,ADVANCE HEALTH CARE (UK) LTD,09/06/2020,431.76,73507-DOMICILIARY CARE,PHYSICAL SUPPORT,Third Party Payments,Revenue
Walsall Council,http://opendatacommunities.org/id/metropolitan-district-council/walsall,WC117-345,30/06/2020,Adult Social Care,ADVANCE HEALTH CARE (UK) LTD,09/06/2020,431.76,73507-DOMICILIARY CARE,PHYSICAL SUPPORT,Third Party Payments,Revenue
Walsall Council,http://opendatacommunities.org/id/metropolitan-district-council/walsall,WC117-346,30/06/2020,Adult Social Care,ADVANCE HEALTH CARE (UK) LTD,09/06/2020,431.76,73507-DOMICILIARY CARE,PHYSICAL SUPPORT,Third Party Payments,Revenue
Walsall Council,http://opendatacommunities.org/id/metropolitan-district-council/walsall,WC117-347,30/06/2020,Adult Social Care,ADVANCE HEALTH CARE (UK) LTD,09/06/2020,431.76,73507-DOMICILIARY CARE,PHYSICAL SUPPORT,Third Party Payments,Revenue
Walsall Council,http://opendatacommunities.org/id/metropolitan-district-council/walsall,WC117-348,30/06/2020,Adult Social Care,ADVANCE HEALTH CARE (UK) LTD,09/06/2020,431.76,73507-DOMICILIARY CARE,SOCIAL SUPPORT,Third Party Payments,Revenue
Walsall Council,http://opendatacommunities.org/id/metropolitan-district-council/walsall,WC117-349,30/06/2020,Adult Social Care,ADVANCE HEALTH CARE (UK) LTD,09/06/2020,431.76,73507-DOMICILIARY CARE,PHYSICAL SUPPORT,Third Party Payments,Revenue
Walsall Council,http://opendatacommunities.org/id/metropolitan-district-council/walsall,WC117-350,30/06/2020,Adult Social Care,ADVANCE HEALTH CARE (UK) LTD,09/06/2020,431.76,73507-DOMICILIARY CARE,PHYSICAL SUPPORT,Third Party Payments,Revenue
Walsall Council,http://opendatacommunities.org/id/metropolitan-district-council/walsall,WC117-351,30/06/2020,Adult Social Care,ADVANCE HEALTH CARE (UK) LTD,09/06/2020,447.18,73507-DOMICILIARY CARE,PHYSICAL SUPPORT,Third Party Payments,Revenue
Walsall Council,http://opendatacommunities.org/id/metropolitan-district-council/walsall,WC117-352,30/06/2020,Adult Social Care,ADVANCE HEALTH CARE (UK) LTD,09/06/2020,447.18,73507-DOMICILIARY CARE,PHYSICAL SUPPORT,Third Party Payments,Revenue
Walsall Council,http://opendatacommunities.org/id/metropolitan-district-council/walsall,WC117-353,30/06/2020,Adult Social Care,ADVANCE HEALTH CARE (UK) LTD,09/06/2020,462.60,73507-DOMICILIARY CARE,PHYSICAL SUPPORT,Third Party Payments,Revenue
Walsall Council,http://opendatacommunities.org/id/metropolitan-district-council/walsall,WC117-354,30/06/2020,Adult Social Care,ADVANCE HEALTH CARE (UK) LTD,09/06/2020,462.60,73507-DOMICILIARY CARE,PHYSICAL SUPPORT,Third Party Payments,Revenue
Walsall Council,http://opendatacommunities.org/id/metropolitan-district-council/walsall,WC117-355,30/06/2020,Adult Social Care,ADVANCE HEALTH CARE (UK) LTD,09/06/2020,462.60,73507-DOMICILIARY CARE,PHYSICAL SUPPORT,Third Party Payments,Revenue
Walsall Council,http://opendatacommunities.org/id/metropolitan-district-council/walsall,WC117-356,30/06/2020,Adult Social Care,ADVANCE HEALTH CARE (UK) LTD,09/06/2020,485.73,73507-DOMICILIARY CARE,PHYSICAL SUPPORT,Third Party Payments,Revenue
Walsall Council,http://opendatacommunities.org/id/metropolitan-district-council/walsall,WC117-357,30/06/2020,Adult Social Care,ADVANCE HEALTH CARE (UK) LTD,09/06/2020,485.73,73507-DOMICILIARY CARE,PHYSICAL SUPPORT,Third Party Payments,Revenue
Walsall Council,http://opendatacommunities.org/id/metropolitan-district-council/walsall,WC117-358,30/06/2020,Adult Social Care,ADVANCE HEALTH CARE (UK) LTD,09/06/2020,485.73,73507-DOMICILIARY CARE,PHYSICAL SUPPORT,Third Party Payments,Revenue
Walsall Council,http://opendatacommunities.org/id/metropolitan-district-council/walsall,WC117-359,30/06/2020,Adult Social Care,ADVANCE HEALTH CARE (UK) LTD,09/06/2020,485.73,73507-DOMICILIARY CARE,PHYSICAL SUPPORT,Third Party Payments,Revenue
Walsall Council,http://opendatacommunities.org/id/metropolitan-district-council/walsall,WC117-360,30/06/2020,Adult Social Care,ADVANCE HEALTH CARE (UK) LTD,09/06/2020,485.73,73507-DOMICILIARY CARE,PHYSICAL SUPPORT,Third Party Payments,Revenue
Walsall Council,http://opendatacommunities.org/id/metropolitan-district-council/walsall,WC117-361,30/06/2020,Adult Social Care,ADVANCE HEALTH CARE (UK) LTD,09/06/2020,485.73,73507-DOMICILIARY CARE,SOCIAL SUPPORT,Third Party Payments,Revenue
Walsall Council,http://opendatacommunities.org/id/metropolitan-district-council/walsall,WC117-362,30/06/2020,Adult Social Care,ADVANCE HEALTH CARE (UK) LTD,09/06/2020,485.73,73507-DOMICILIARY CARE,PHYSICAL SUPPORT,Third Party Payments,Revenue
Walsall Council,http://opendatacommunities.org/id/metropolitan-district-council/walsall,WC117-363,30/06/2020,Adult Social Care,ADVANCE HEALTH CARE (UK) LTD,09/06/2020,485.73,73507-DOMICILIARY CARE,PHYSICAL SUPPORT,Third Party Payments,Revenue
Walsall Council,http://opendatacommunities.org/id/metropolitan-district-council/walsall,WC117-364,30/06/2020,Adult Social Care,ADVANCE HEALTH CARE (UK) LTD,09/06/2020,485.73,73507-DOMICILIARY CARE,PHYSICAL SUPPORT,Third Party Payments,Revenue
Walsall Council,http://opendatacommunities.org/id/metropolitan-district-council/walsall,WC117-365,30/06/2020,Adult Social Care,ADVANCE HEALTH CARE (UK) LTD,09/06/2020,485.73,73507-DOMICILIARY CARE,PHYSICAL SUPPORT,Third Party Payments,Revenue
Walsall Council,http://opendatacommunities.org/id/metropolitan-district-council/walsall,WC117-366,30/06/2020,Adult Social Care,ADVANCE HEALTH CARE (UK) LTD,09/06/2020,485.73,73507-DOMICILIARY CARE,PHYSICAL SUPPORT,Third Party Payments,Revenue
Walsall Council,http://opendatacommunities.org/id/metropolitan-district-council/walsall,WC117-367,30/06/2020,Adult Social Care,ADVANCE HEALTH CARE (UK) LTD,09/06/2020,485.73,73507-DOMICILIARY CARE,PHYSICAL SUPPORT,Third Party Payments,Revenue
Walsall Council,http://opendatacommunities.org/id/metropolitan-district-council/walsall,WC117-368,30/06/2020,Adult Social Care,ADVANCE HEALTH CARE (UK) LTD,09/06/2020,485.73,73507-DOMICILIARY CARE,PHYSICAL SUPPORT,Third Party Payments,Revenue
Walsall Council,http://opendatacommunities.org/id/metropolitan-district-council/walsall,WC117-369,30/06/2020,Adult Social Care,ADVANCE HEALTH CARE (UK) LTD,09/06/2020,485.73,73507-DOMICILIARY CARE,PHYSICAL SUPPORT,Third Party Payments,Revenue
Walsall Council,http://opendatacommunities.org/id/metropolitan-district-council/walsall,WC117-370,30/06/2020,Adult Social Care,ADVANCE HEALTH CARE (UK) LTD,09/06/2020,485.73,73507-DOMICILIARY CARE,PHYSICAL SUPPORT,Third Party Payments,Revenue
Walsall Council,http://opendatacommunities.org/id/metropolitan-district-council/walsall,WC117-371,30/06/2020,Adult Social Care,ADVANCE HEALTH CARE (UK) LTD,09/06/2020,485.73,73507-DOMICILIARY CARE,SOCIAL SUPPORT,Third Party Payments,Revenue
Walsall Council,http://opendatacommunities.org/id/metropolitan-district-council/walsall,WC117-372,30/06/2020,Adult Social Care,ADVANCE HEALTH CARE (UK) LTD,09/06/2020,485.73,73507-DOMICILIARY CARE,SOCIAL SUPPORT,Third Party Payments,Revenue
Walsall Council,http://opendatacommunities.org/id/metropolitan-district-council/walsall,WC117-373,30/06/2020,Adult Social Care,ADVANCE HEALTH CARE (UK) LTD,09/06/2020,485.73,73507-DOMICILIARY CARE,PHYSICAL SUPPORT,Third Party Payments,Revenue
Walsall Council,http://opendatacommunities.org/id/metropolitan-district-council/walsall,WC117-374,30/06/2020,Adult Social Care,ADVANCE HEALTH CARE (UK) LTD,09/06/2020,485.73,73507-DOMICILIARY CARE,PHYSICAL SUPPORT,Third Party Payments,Revenue
Walsall Council,http://opendatacommunities.org/id/metropolitan-district-council/walsall,WC117-375,30/06/2020,Adult Social Care,ADVANCE HEALTH CARE (UK) LTD,09/06/2020,485.73,73507-DOMICILIARY CARE,PHYSICAL SUPPORT,Third Party Payments,Revenue
Walsall Council,http://opendatacommunities.org/id/metropolitan-district-council/walsall,WC117-376,30/06/2020,Adult Social Care,ADVANCE HEALTH CARE (UK) LTD,09/06/2020,485.73,73507-DOMICILIARY CARE,PHYSICAL SUPPORT,Third Party Payments,Revenue
Walsall Council,http://opendatacommunities.org/id/metropolitan-district-council/walsall,WC117-377,30/06/2020,Adult Social Care,ADVANCE HEALTH CARE (UK) LTD,09/06/2020,485.80,73507-DOMICILIARY CARE,PHYSICAL SUPPORT,Third Party Payments,Revenue
Walsall Council,http://opendatacommunities.org/id/metropolitan-district-council/walsall,WC117-378,30/06/2020,Adult Social Care,ADVANCE HEALTH CARE (UK) LTD,09/06/2020,485.80,73507-DOMICILIARY CARE,PHYSICAL SUPPORT,Third Party Payments,Revenue
Walsall Council,http://opendatacommunities.org/id/metropolitan-district-council/walsall,WC117-379,30/06/2020,Adult Social Care,ADVANCE HEALTH CARE (UK) LTD,09/06/2020,501.15,73507-DOMICILIARY CARE,PHYSICAL SUPPORT,Third Party Payments,Revenue
Walsall Council,http://opendatacommunities.org/id/metropolitan-district-council/walsall,WC117-380,30/06/2020,Adult Social Care,ADVANCE HEALTH CARE (UK) LTD,09/06/2020,501.15,73507-DOMICILIARY CARE,PHYSICAL SUPPORT,Third Party Payments,Revenue
Walsall Council,http://opendatacommunities.org/id/metropolitan-district-council/walsall,WC117-381,30/06/2020,Adult Social Care,ADVANCE HEALTH CARE (UK) LTD,09/06/2020,501.15,73507-DOMICILIARY CARE,PHYSICAL SUPPORT,Third Party Payments,Revenue
Walsall Council,http://opendatacommunities.org/id/metropolitan-district-council/walsall,WC117-382,30/06/2020,Adult Social Care,ADVANCE HEALTH CARE (UK) LTD,09/06/2020,501.15,73507-DOMICILIARY CARE,PHYSICAL SUPPORT,Third Party Payments,Revenue
Walsall Council,http://opendatacommunities.org/id/metropolitan-district-council/walsall,WC117-383,30/06/2020,Adult Social Care,ADVANCE HEALTH CARE (UK) LTD,09/06/2020,524.28,73507-DOMICILIARY CARE,PHYSICAL SUPPORT,Third Party Payments,Revenue
Walsall Council,http://opendatacommunities.org/id/metropolitan-district-council/walsall,WC117-384,30/06/2020,Adult Social Care,ADVANCE HEALTH CARE (UK) LTD,09/06/2020,524.28,73507-DOMICILIARY CARE,PHYSICAL SUPPORT,Third Party Payments,Revenue
Walsall Council,http://opendatacommunities.org/id/metropolitan-district-council/walsall,WC117-385,30/06/2020,Adult Social Care,ADVANCE HEALTH CARE (UK) LTD,09/06/2020,539.70,73507-DOMICILIARY CARE,PHYSICAL SUPPORT,Third Party Payments,Revenue
Walsall Council,http://opendatacommunities.org/id/metropolitan-district-council/walsall,WC117-386,30/06/2020,Adult Social Care,ADVANCE HEALTH CARE (UK) LTD,09/06/2020,539.70,73507-DOMICILIARY CARE,PHYSICAL SUPPORT,Third Party Payments,Revenue
Walsall Council,http://opendatacommunities.org/id/metropolitan-district-council/walsall,WC117-387,30/06/2020,Adult Social Care,ADVANCE HEALTH CARE (UK) LTD,09/06/2020,539.70,73507-DOMICILIARY CARE,PHYSICAL SUPPORT,Third Party Payments,Revenue
Walsall Council,http://opendatacommunities.org/id/metropolitan-district-council/walsall,WC117-388,30/06/2020,Adult Social Care,ADVANCE HEALTH CARE (UK) LTD,09/06/2020,593.67,73507-DOMICILIARY CARE,PHYSICAL SUPPORT,Third Party Payments,Revenue
Walsall Council,http://opendatacommunities.org/id/metropolitan-district-council/walsall,WC117-389,30/06/2020,Adult Social Care,ADVANCE HEALTH CARE (UK) LTD,09/06/2020,593.67,73507-DOMICILIARY CARE,PHYSICAL SUPPORT,Third Party Payments,Revenue
Walsall Council,http://opendatacommunities.org/id/metropolitan-district-council/walsall,WC117-390,30/06/2020,Adult Social Care,ADVANCE HEALTH CARE (UK) LTD,09/06/2020,593.88,73507-DOMICILIARY CARE,PHYSICAL SUPPORT,Third Party Payments,Revenue
Walsall Council,http://opendatacommunities.org/id/metropolitan-district-council/walsall,WC117-391,30/06/2020,Adult Social Care,ADVANCE HEALTH CARE (UK) LTD,09/06/2020,593.88,73507-DOMICILIARY CARE,PHYSICAL SUPPORT,Third Party Payments,Revenue
Walsall Council,http://opendatacommunities.org/id/metropolitan-district-council/walsall,WC117-392,30/06/2020,Adult Social Care,ADVANCE HEALTH CARE (UK) LTD,09/06/2020,629.72,73507-DOMICILIARY CARE,PHYSICAL SUPPORT,Third Party Payments,Revenue
Walsall Council,http://opendatacommunities.org/id/metropolitan-district-council/walsall,WC117-393,30/06/2020,Adult Social Care,ADVANCE HEALTH CARE (UK) LTD,09/06/2020,629.72,73507-DOMICILIARY CARE,PHYSICAL SUPPORT,Third Party Payments,Revenue
Walsall Council,http://opendatacommunities.org/id/metropolitan-district-council/walsall,WC117-394,30/06/2020,Adult Social Care,ADVANCE HEALTH CARE (UK) LTD,09/06/2020,693.90,73507-DOMICILIARY CARE,PHYSICAL SUPPORT,Third Party Payments,Revenue
Walsall Council,http://opendatacommunities.org/id/metropolitan-district-council/walsall,WC117-395,30/06/2020,Adult Social Care,ADVANCE HEALTH CARE (UK) LTD,09/06/2020,693.90,73507-DOMICILIARY CARE,PHYSICAL SUPPORT,Third Party Payments,Revenue
Walsall Council,http://opendatacommunities.org/id/metropolitan-district-council/walsall,WC117-396,30/06/2020,Adult Social Care,ADVANCE HEALTH CARE (UK) LTD,09/06/2020,701.61,73507-DOMICILIARY CARE,PHYSICAL SUPPORT,Third Party Payments,Revenue
Walsall Council,http://opendatacommunities.org/id/metropolitan-district-council/walsall,WC117-397,30/06/2020,Adult Social Care,ADVANCE HEALTH CARE (UK) LTD,09/06/2020,701.61,73507-DOMICILIARY CARE,PHYSICAL SUPPORT,Third Party Payments,Revenue
Walsall Council,http://opendatacommunities.org/id/metropolitan-district-council/walsall,WC117-398,30/06/2020,Adult Social Care,ADVANCE HEALTH CARE (UK) LTD,09/06/2020,824.97,73507-DOMICILIARY CARE,PHYSICAL SUPPORT,Third Party Payments,Revenue
Walsall Council,http://opendatacommunities.org/id/metropolitan-district-council/walsall,WC117-399,30/06/2020,Adult Social Care,ADVANCE HEALTH CARE (UK) LTD,09/06/2020,824.97,73507-DOMICILIARY CARE,PHYSICAL SUPPORT,Third Party Payments,Revenue
Walsall Council,http://opendatacommunities.org/id/metropolitan-district-council/walsall,WC117-400,30/06/2020,Adult Social Care,ADVANCE HEALTH CARE (UK) LTD,09/06/2020,863.52,73507-DOMICILIARY CARE,SOCIAL SUPPORT,Third Party Payments,Revenue
Walsall Council,http://opendatacommunities.org/id/metropolitan-district-council/walsall,WC117-401,30/06/2020,Adult Social Care,ADVANCE HEALTH CARE (UK) LTD,09/06/2020,863.52,73507-DOMICILIARY CARE,SOCIAL SUPPORT,Third Party Payments,Revenue
Walsall Council,http://opendatacommunities.org/id/metropolitan-district-council/walsall,WC117-402,30/06/2020,Adult Social Care,ADVANCE HEALTH CARE (UK) LTD,10/06/2020,509.19,73025-PROFESSIONAL SERVICES-PRIV CONTRACTOR & OTHER AGENCIES,INTERMEDIATE CARE SERVICE,Third Party Payments,Revenue
Walsall Council,http://opendatacommunities.org/id/metropolitan-district-council/walsall,WC117-403,30/06/2020,Adult Social Care,ADVANCE HEALTH CARE (UK) LTD,11/06/2020,331.75,73025-PROFESSIONAL SERVICES-PRIV CONTRACTOR & OTHER AGENCIES,INTERMEDIATE CARE SERVICE,Third Party Payments,Revenue
Walsall Council,http://opendatacommunities.org/id/metropolitan-district-council/walsall,WC117-404,30/06/2020,Adult Social Care,ADVANCE HEALTH CARE (UK) LTD,11/06/2020,486.05,73025-PROFESSIONAL SERVICES-PRIV CONTRACTOR & OTHER AGENCIES,INTERMEDIATE CARE SERVICE,Third Party Payments,Revenue
Walsall Council,http://opendatacommunities.org/id/metropolitan-district-council/walsall,WC117-405,30/06/2020,Adult Social Care,ADVANCE HEALTH CARE (UK) LTD,15/06/2020,493.92,73025-PROFESSIONAL SERVICES-PRIV CONTRACTOR & OTHER AGENCIES,INTERMEDIATE CARE SERVICE,Third Party Payments,Revenue
Walsall Council,http://opendatacommunities.org/id/metropolitan-district-council/walsall,WC117-406,30/06/2020,Adult Social Care,ADVANCE HEALTH CARE (UK) LTD,19/06/2020,277.56,73507-DOMICILIARY CARE,PHYSICAL SUPPORT,Third Party Payments,Revenue
Walsall Council,http://opendatacommunities.org/id/metropolitan-district-council/walsall,WC117-407,30/06/2020,Adult Social Care,ADVANCE HEALTH CARE (UK) LTD,19/06/2020,277.56,73507-DOMICILIARY CARE,PHYSICAL SUPPORT,Third Party Payments,Revenue
Walsall Council,http://opendatacommunities.org/id/metropolitan-district-council/walsall,WC117-408,30/06/2020,Adult Social Care,ADVANCE HEALTH CARE (UK) LTD,19/06/2020,323.82,73507-DOMICILIARY CARE,SOCIAL SUPPORT,Third Party Payments,Revenue
Walsall Council,http://opendatacommunities.org/id/metropolitan-district-council/walsall,WC117-409,30/06/2020,Adult Social Care,ADVANCE HEALTH CARE (UK) LTD,19/06/2020,323.82,73507-DOMICILIARY CARE,SOCIAL SUPPORT,Third Party Payments,Revenue
Walsall Council,http://opendatacommunities.org/id/metropolitan-district-council/walsall,WC117-410,30/06/2020,Adult Social Care,ADVANCE HEALTH CARE (UK) LTD,19/06/2020,354.66,73507-DOMICILIARY CARE,PHYSICAL SUPPORT,Third Party Payments,Revenue
Walsall Council,http://opendatacommunities.org/id/metropolitan-district-council/walsall,WC117-411,30/06/2020,Adult Social Care,ADVANCE HEALTH CARE (UK) LTD,19/06/2020,359.80,73507-DOMICILIARY CARE,PHYSICAL SUPPORT,Third Party Payments,Revenue
Walsall Council,http://opendatacommunities.org/id/metropolitan-district-council/walsall,WC117-412,30/06/2020,Adult Social Care,ADVANCE HEALTH CARE (UK) LTD,19/06/2020,359.80,73507-DOMICILIARY CARE,PHYSICAL SUPPORT,Third Party Payments,Revenue
Walsall Council,http://opendatacommunities.org/id/metropolitan-district-council/walsall,WC117-413,30/06/2020,Adult Social Care,ADVANCE HEALTH CARE (UK) LTD,19/06/2020,377.79,73507-DOMICILIARY CARE,PHYSICAL SUPPORT,Third Party Payments,Revenue
Walsall Council,http://opendatacommunities.org/id/metropolitan-district-council/walsall,WC117-414,30/06/2020,Adult Social Care,ADVANCE HEALTH CARE (UK) LTD,19/06/2020,377.79,73507-DOMICILIARY CARE,PHYSICAL SUPPORT,Third Party Payments,Revenue
Walsall Council,http://opendatacommunities.org/id/metropolitan-district-council/walsall,WC117-415,30/06/2020,Adult Social Care,ADVANCE HEALTH CARE (UK) LTD,19/06/2020,377.79,73507-DOMICILIARY CARE,PHYSICAL SUPPORT,Third Party Payments,Revenue
Walsall Council,http://opendatacommunities.org/id/metropolitan-district-council/walsall,WC117-416,30/06/2020,Adult Social Care,ADVANCE HEALTH CARE (UK) LTD,19/06/2020,377.79,73507-DOMICILIARY CARE,PHYSICAL SUPPORT,Third Party Payments,Revenue
Walsall Council,http://opendatacommunities.org/id/metropolitan-district-council/walsall,WC117-417,30/06/2020,Adult Social Care,ADVANCE HEALTH CARE (UK) LTD,19/06/2020,404.81,73507-DOMICILIARY CARE,PHYSICAL SUPPORT,Third Party Payments,Revenue
Walsall Council,http://opendatacommunities.org/id/metropolitan-district-council/walsall,WC117-418,30/06/2020,Adult Social Care,ADVANCE HEALTH CARE (UK) LTD,19/06/2020,404.81,73507-DOMICILIARY CARE,PHYSICAL SUPPORT,Third Party Payments,Revenue
Walsall Council,http://opendatacommunities.org/id/metropolitan-district-council/walsall,WC117-419,30/06/2020,Adult Social Care,ADVANCE HEALTH CARE (UK) LTD,19/06/2020,431.76,73507-DOMICILIARY CARE,PHYSICAL SUPPORT,Third Party Payments,Revenue
Walsall Council,http://opendatacommunities.org/id/metropolitan-district-council/walsall,WC117-420,30/06/2020,Adult Social Care,ADVANCE HEALTH CARE (UK) LTD,19/06/2020,431.76,73507-DOMICILIARY CARE,PHYSICAL SUPPORT,Third Party Payments,Revenue
Walsall Council,http://opendatacommunities.org/id/metropolitan-district-council/walsall,WC117-421,30/06/2020,Adult Social Care,ADVANCE HEALTH CARE (UK) LTD,19/06/2020,431.76,73507-DOMICILIARY CARE,PHYSICAL SUPPORT,Third Party Payments,Revenue
Walsall Council,http://opendatacommunities.org/id/metropolitan-district-council/walsall,WC117-422,30/06/2020,Adult Social Care,ADVANCE HEALTH CARE (UK) LTD,19/06/2020,431.76,73507-DOMICILIARY CARE,PHYSICAL SUPPORT,Third Party Payments,Revenue
Walsall Council,http://opendatacommunities.org/id/metropolitan-district-council/walsall,WC117-423,30/06/2020,Adult Social Care,ADVANCE HEALTH CARE (UK) LTD,19/06/2020,431.76,73507-DOMICILIARY CARE,PHYSICAL SUPPORT,Third Party Payments,Revenue
Walsall Council,http://opendatacommunities.org/id/metropolitan-district-council/walsall,WC117-424,30/06/2020,Adult Social Care,ADVANCE HEALTH CARE (UK) LTD,19/06/2020,431.76,73507-DOMICILIARY CARE,PHYSICAL SUPPORT,Third Party Payments,Revenue
Walsall Council,http://opendatacommunities.org/id/metropolitan-district-council/walsall,WC117-425,30/06/2020,Adult Social Care,ADVANCE HEALTH CARE (UK) LTD,19/06/2020,431.76,73507-DOMICILIARY CARE,PHYSICAL SUPPORT,Third Party Payments,Revenue
Walsall Council,http://opendatacommunities.org/id/metropolitan-district-council/walsall,WC117-426,30/06/2020,Adult Social Care,ADVANCE HEALTH CARE (UK) LTD,19/06/2020,431.76,73507-DOMICILIARY CARE,PHYSICAL SUPPORT,Third Party Payments,Revenue
Walsall Council,http://opendatacommunities.org/id/metropolitan-district-council/walsall,WC117-427,30/06/2020,Adult Social Care,ADVANCE HEALTH CARE (UK) LTD,19/06/2020,431.76,73507-DOMICILIARY CARE,PHYSICAL SUPPORT,Third Party Payments,Revenue
Walsall Council,http://opendatacommunities.org/id/metropolitan-district-council/walsall,WC117-428,30/06/2020,Adult Social Care,ADVANCE HEALTH CARE (UK) LTD,19/06/2020,431.76,73507-DOMICILIARY CARE,PHYSICAL SUPPORT,Third Party Payments,Revenue
Walsall Council,http://opendatacommunities.org/id/metropolitan-district-council/walsall,WC117-429,30/06/2020,Adult Social Care,ADVANCE HEALTH CARE (UK) LTD,19/06/2020,431.76,73507-DOMICILIARY CARE,PHYSICAL SUPPORT,Third Party Payments,Revenue
Walsall Council,http://opendatacommunities.org/id/metropolitan-district-council/walsall,WC117-430,30/06/2020,Adult Social Care,ADVANCE HEALTH CARE (UK) LTD,19/06/2020,431.76,73507-DOMICILIARY CARE,PHYSICAL SUPPORT,Third Party Payments,Revenue
Walsall Council,http://opendatacommunities.org/id/metropolitan-district-council/walsall,WC117-431,30/06/2020,Adult Social Care,ADVANCE HEALTH CARE (UK) LTD,19/06/2020,431.76,73507-DOMICILIARY CARE,PHYSICAL SUPPORT,Third Party Payments,Revenue
Walsall Council,http://opendatacommunities.org/id/metropolitan-district-council/walsall,WC117-432,30/06/2020,Adult Social Care,ADVANCE HEALTH CARE (UK) LTD,19/06/2020,431.76,73507-DOMICILIARY CARE,PHYSICAL SUPPORT,Third Party Payments,Revenue
Walsall Council,http://opendatacommunities.org/id/metropolitan-district-council/walsall,WC117-433,30/06/2020,Adult Social Care,ADVANCE HEALTH CARE (UK) LTD,19/06/2020,431.76,73507-DOMICILIARY CARE,SOCIAL SUPPORT,Third Party Payments,Revenue
Walsall Council,http://opendatacommunities.org/id/metropolitan-district-council/walsall,WC117-434,30/06/2020,Adult Social Care,ADVANCE HEALTH CARE (UK) LTD,19/06/2020,431.76,73507-DOMICILIARY CARE,PHYSICAL SUPPORT,Third Party Payments,Revenue
Walsall Council,http://opendatacommunities.org/id/metropolitan-district-council/walsall,WC117-435,30/06/2020,Adult Social Care,ADVANCE HEALTH CARE (UK) LTD,19/06/2020,431.76,73507-DOMICILIARY CARE,PHYSICAL SUPPORT,Third Party Payments,Revenue
Walsall Council,http://opendatacommunities.org/id/metropolitan-district-council/walsall,WC117-436,30/06/2020,Adult Social Care,ADVANCE HEALTH CARE (UK) LTD,19/06/2020,431.76,73507-DOMICILIARY CARE,PHYSICAL SUPPORT,Third Party Payments,Revenue
Walsall Council,http://opendatacommunities.org/id/metropolitan-district-council/walsall,WC117-437,30/06/2020,Adult Social Care,ADVANCE HEALTH CARE (UK) LTD,19/06/2020,431.76,73507-DOMICILIARY CARE,PHYSICAL SUPPORT,Third Party Payments,Revenue
Walsall Council,http://opendatacommunities.org/id/metropolitan-district-council/walsall,WC117-438,30/06/2020,Adult Social Care,ADVANCE HEALTH CARE (UK) LTD,19/06/2020,447.18,73507-DOMICILIARY CARE,PHYSICAL SUPPORT,Third Party Payments,Revenue
Walsall Council,http://opendatacommunities.org/id/metropolitan-district-council/walsall,WC117-439,30/06/2020,Adult Social Care,ADVANCE HEALTH CARE (UK) LTD,19/06/2020,447.18,73507-DOMICILIARY CARE,PHYSICAL SUPPORT,Third Party Payments,Revenue
Walsall Council,http://opendatacommunities.org/id/metropolitan-district-council/walsall,WC117-440,30/06/2020,Adult Social Care,ADVANCE HEALTH CARE (UK) LTD,19/06/2020,462.60,73507-DOMICILIARY CARE,PHYSICAL SUPPORT,Third Party Payments,Revenue
Walsall Council,http://opendatacommunities.org/id/metropolitan-district-council/walsall,WC117-441,30/06/2020,Adult Social Care,ADVANCE HEALTH CARE (UK) LTD,19/06/2020,462.60,73507-DOMICILIARY CARE,PHYSICAL SUPPORT,Third Party Payments,Revenue
Walsall Council,http://opendatacommunities.org/id/metropolitan-district-council/walsall,WC117-442,30/06/2020,Adult Social Care,ADVANCE HEALTH CARE (UK) LTD,19/06/2020,478.02,73507-DOMICILIARY CARE,PHYSICAL SUPPORT,Third Party Payments,Revenue
Walsall Council,http://opendatacommunities.org/id/metropolitan-district-council/walsall,WC117-443,30/06/2020,Adult Social Care,ADVANCE HEALTH CARE (UK) LTD,19/06/2020,485.73,73507-DOMICILIARY CARE,PHYSICAL SUPPORT,Third Party Payments,Revenue
Walsall Council,http://opendatacommunities.org/id/metropolitan-district-council/walsall,WC117-444,30/06/2020,Adult Social Care,ADVANCE HEALTH CARE (UK) LTD,19/06/2020,485.73,73507-DOMICILIARY CARE,PHYSICAL SUPPORT,Third Party Payments,Revenue
Walsall Council,http://opendatacommunities.org/id/metropolitan-district-council/walsall,WC117-445,30/06/2020,Adult Social Care,ADVANCE HEALTH CARE (UK) LTD,19/06/2020,485.73,73507-DOMICILIARY CARE,SOCIAL SUPPORT,Third Party Payments,Revenue
Walsall Council,http://opendatacommunities.org/id/metropolitan-district-council/walsall,WC117-446,30/06/2020,Adult Social Care,ADVANCE HEALTH CARE (UK) LTD,19/06/2020,485.73,73507-DOMICILIARY CARE,PHYSICAL SUPPORT,Third Party Payments,Revenue
Walsall Council,http://opendatacommunities.org/id/metropolitan-district-council/walsall,WC117-447,30/06/2020,Adult Social Care,ADVANCE HEALTH CARE (UK) LTD,19/06/2020,485.73,73507-DOMICILIARY CARE,PHYSICAL SUPPORT,Third Party Payments,Revenue
Walsall Council,http://opendatacommunities.org/id/metropolitan-district-council/walsall,WC117-448,30/06/2020,Adult Social Care,ADVANCE HEALTH CARE (UK) LTD,19/06/2020,485.73,73507-DOMICILIARY CARE,PHYSICAL SUPPORT,Third Party Payments,Revenue
Walsall Council,http://opendatacommunities.org/id/metropolitan-district-council/walsall,WC117-449,30/06/2020,Adult Social Care,ADVANCE HEALTH CARE (UK) LTD,19/06/2020,485.73,73507-DOMICILIARY CARE,SOCIAL SUPPORT,Third Party Payments,Revenue
Walsall Council,http://opendatacommunities.org/id/metropolitan-district-council/walsall,WC117-450,30/06/2020,Adult Social Care,ADVANCE HEALTH CARE (UK) LTD,19/06/2020,485.73,73507-DOMICILIARY CARE,PHYSICAL SUPPORT,Third Party Payments,Revenue
Walsall Council,http://opendatacommunities.org/id/metropolitan-district-council/walsall,WC117-451,30/06/2020,Adult Social Care,ADVANCE HEALTH CARE (UK) LTD,19/06/2020,485.73,73507-DOMICILIARY CARE,PHYSICAL SUPPORT,Third Party Payments,Revenue
Walsall Council,http://opendatacommunities.org/id/metropolitan-district-council/walsall,WC117-452,30/06/2020,Adult Social Care,ADVANCE HEALTH CARE (UK) LTD,19/06/2020,485.73,73507-DOMICILIARY CARE,PHYSICAL SUPPORT,Third Party Payments,Revenue
Walsall Council,http://opendatacommunities.org/id/metropolitan-district-council/walsall,WC117-453,30/06/2020,Adult Social Care,ADVANCE HEALTH CARE (UK) LTD,19/06/2020,485.73,73507-DOMICILIARY CARE,PHYSICAL SUPPORT,Third Party Payments,Revenue
Walsall Council,http://opendatacommunities.org/id/metropolitan-district-council/walsall,WC117-454,30/06/2020,Adult Social Care,ADVANCE HEALTH CARE (UK) LTD,19/06/2020,485.73,73507-DOMICILIARY CARE,PHYSICAL SUPPORT,Third Party Payments,Revenue
Walsall Council,http://opendatacommunities.org/id/metropolitan-district-council/walsall,WC117-455,30/06/2020,Adult Social Care,ADVANCE HEALTH CARE (UK) LTD,19/06/2020,485.73,73507-DOMICILIARY CARE,PHYSICAL SUPPORT,Third Party Payments,Revenue
Walsall Council,http://opendatacommunities.org/id/metropolitan-district-council/walsall,WC117-456,30/06/2020,Adult Social Care,ADVANCE HEALTH CARE (UK) LTD,19/06/2020,485.73,73507-DOMICILIARY CARE,PHYSICAL SUPPORT,Third Party Payments,Revenue
Walsall Council,http://opendatacommunities.org/id/metropolitan-district-council/walsall,WC117-457,30/06/2020,Adult Social Care,ADVANCE HEALTH CARE (UK) LTD,19/06/2020,485.73,73507-DOMICILIARY CARE,SOCIAL SUPPORT,Third Party Payments,Revenue
Walsall Council,http://opendatacommunities.org/id/metropolitan-district-council/walsall,WC117-458,30/06/2020,Adult Social Care,ADVANCE HEALTH CARE (UK) LTD,19/06/2020,485.73,73507-DOMICILIARY CARE,PHYSICAL SUPPORT,Third Party Payments,Revenue
Walsall Council,http://opendatacommunities.org/id/metropolitan-district-council/walsall,WC117-459,30/06/2020,Adult Social Care,ADVANCE HEALTH CARE (UK) LTD,19/06/2020,485.73,73507-DOMICILIARY CARE,PHYSICAL SUPPORT,Third Party Payments,Revenue
Walsall Council,http://opendatacommunities.org/id/metropolitan-district-council/walsall,WC117-460,30/06/2020,Adult Social Care,ADVANCE HEALTH CARE (UK) LTD,19/06/2020,485.73,73507-DOMICILIARY CARE,SOCIAL SUPPORT,Third Party Payments,Revenue
Walsall Council,http://opendatacommunities.org/id/metropolitan-district-council/walsall,WC117-461,30/06/2020,Adult Social Care,ADVANCE HEALTH CARE (UK) LTD,19/06/2020,485.73,73507-DOMICILIARY CARE,PHYSICAL SUPPORT,Third Party Payments,Revenue
Walsall Council,http://opendatacommunities.org/id/metropolitan-district-council/walsall,WC117-462,30/06/2020,Adult Social Care,ADVANCE HEALTH CARE (UK) LTD,19/06/2020,485.73,73507-DOMICILIARY CARE,PHYSICAL SUPPORT,Third Party Payments,Revenue
Walsall Council,http://opendatacommunities.org/id/metropolitan-district-council/walsall,WC117-463,30/06/2020,Adult Social Care,ADVANCE HEALTH CARE (UK) LTD,19/06/2020,485.73,73507-DOMICILIARY CARE,PHYSICAL SUPPORT,Third Party Payments,Revenue
Walsall Council,http://opendatacommunities.org/id/metropolitan-district-council/walsall,WC117-464,30/06/2020,Adult Social Care,ADVANCE HEALTH CARE (UK) LTD,19/06/2020,485.73,73507-DOMICILIARY CARE,PHYSICAL SUPPORT,Third Party Payments,Revenue
Walsall Council,http://opendatacommunities.org/id/metropolitan-district-council/walsall,WC117-465,30/06/2020,Adult Social Care,ADVANCE HEALTH CARE (UK) LTD,19/06/2020,485.73,73507-DOMICILIARY CARE,PHYSICAL SUPPORT,Third Party Payments,Revenue
Walsall Council,http://opendatacommunities.org/id/metropolitan-district-council/walsall,WC117-466,30/06/2020,Adult Social Care,ADVANCE HEALTH CARE (UK) LTD,19/06/2020,485.80,73507-DOMICILIARY CARE,PHYSICAL SUPPORT,Third Party Payments,Revenue
Walsall Council,http://opendatacommunities.org/id/metropolitan-district-council/walsall,WC117-467,30/06/2020,Adult Social Care,ADVANCE HEALTH CARE (UK) LTD,19/06/2020,485.80,73507-DOMICILIARY CARE,PHYSICAL SUPPORT,Third Party Payments,Revenue
Walsall Council,http://opendatacommunities.org/id/metropolitan-district-council/walsall,WC117-468,30/06/2020,Adult Social Care,ADVANCE HEALTH CARE (UK) LTD,19/06/2020,501.15,73507-DOMICILIARY CARE,PHYSICAL SUPPORT,Third Party Payments,Revenue
Walsall Council,http://opendatacommunities.org/id/metropolitan-district-council/walsall,WC117-469,30/06/2020,Adult Social Care,ADVANCE HEALTH CARE (UK) LTD,19/06/2020,501.15,73507-DOMICILIARY CARE,PHYSICAL SUPPORT,Third Party Payments,Revenue
Walsall Council,http://opendatacommunities.org/id/metropolitan-district-council/walsall,WC117-470,30/06/2020,Adult Social Care,ADVANCE HEALTH CARE (UK) LTD,19/06/2020,501.15,73507-DOMICILIARY CARE,PHYSICAL SUPPORT,Third Party Payments,Revenue
Walsall Council,http://opendatacommunities.org/id/metropolitan-district-council/walsall,WC117-471,30/06/2020,Adult Social Care,ADVANCE HEALTH CARE (UK) LTD,19/06/2020,501.15,73507-DOMICILIARY CARE,PHYSICAL SUPPORT,Third Party Payments,Revenue
Walsall Council,http://opendatacommunities.org/id/metropolitan-district-council/walsall,WC117-472,30/06/2020,Adult Social Care,ADVANCE HEALTH CARE (UK) LTD,19/06/2020,524.28,73507-DOMICILIARY CARE,PHYSICAL SUPPORT,Third Party Payments,Revenue
Walsall Council,http://opendatacommunities.org/id/metropolitan-district-council/walsall,WC117-473,30/06/2020,Adult Social Care,ADVANCE HEALTH CARE (UK) LTD,19/06/2020,524.28,73507-DOMICILIARY CARE,PHYSICAL SUPPORT,Third Party Payments,Revenue
Walsall Council,http://opendatacommunities.org/id/metropolitan-district-council/walsall,WC117-474,30/06/2020,Adult Social Care,ADVANCE HEALTH CARE (UK) LTD,19/06/2020,539.70,73507-DOMICILIARY CARE,PHYSICAL SUPPORT,Third Party Payments,Revenue
Walsall Council,http://opendatacommunities.org/id/metropolitan-district-council/walsall,WC117-475,30/06/2020,Adult Social Care,ADVANCE HEALTH CARE (UK) LTD,19/06/2020,539.70,73507-DOMICILIARY CARE,PHYSICAL SUPPORT,Third Party Payments,Revenue
Walsall Council,http://opendatacommunities.org/id/metropolitan-district-council/walsall,WC117-476,30/06/2020,Adult Social Care,ADVANCE HEALTH CARE (UK) LTD,19/06/2020,593.67,73507-DOMICILIARY CARE,PHYSICAL SUPPORT,Third Party Payments,Revenue
Walsall Council,http://opendatacommunities.org/id/metropolitan-district-council/walsall,WC117-477,30/06/2020,Adult Social Care,ADVANCE HEALTH CARE (UK) LTD,19/06/2020,593.67,73507-DOMICILIARY CARE,PHYSICAL SUPPORT,Third Party Payments,Revenue
Walsall Council,http://opendatacommunities.org/id/metropolitan-district-council/walsall,WC117-478,30/06/2020,Adult Social Care,ADVANCE HEALTH CARE (UK) LTD,19/06/2020,593.88,73507-DOMICILIARY CARE,PHYSICAL SUPPORT,Third Party Payments,Revenue
Walsall Council,http://opendatacommunities.org/id/metropolitan-district-council/walsall,WC117-479,30/06/2020,Adult Social Care,ADVANCE HEALTH CARE (UK) LTD,19/06/2020,593.88,73507-DOMICILIARY CARE,PHYSICAL SUPPORT,Third Party Payments,Revenue
Walsall Council,http://opendatacommunities.org/id/metropolitan-district-council/walsall,WC117-480,30/06/2020,Adult Social Care,ADVANCE HEALTH CARE (UK) LTD,19/06/2020,629.72,73507-DOMICILIARY CARE,PHYSICAL SUPPORT,Third Party Payments,Revenue
Walsall Council,http://opendatacommunities.org/id/metropolitan-district-council/walsall,WC117-481,30/06/2020,Adult Social Care,ADVANCE HEALTH CARE (UK) LTD,19/06/2020,629.72,73507-DOMICILIARY CARE,PHYSICAL SUPPORT,Third Party Payments,Revenue
Walsall Council,http://opendatacommunities.org/id/metropolitan-district-council/walsall,WC117-482,30/06/2020,Adult Social Care,ADVANCE HEALTH CARE (UK) LTD,19/06/2020,701.61,73507-DOMICILIARY CARE,PHYSICAL SUPPORT,Third Party Payments,Revenue
Walsall Council,http://opendatacommunities.org/id/metropolitan-district-council/walsall,WC117-483,30/06/2020,Adult Social Care,ADVANCE HEALTH CARE (UK) LTD,19/06/2020,701.61,73507-DOMICILIARY CARE,PHYSICAL SUPPORT,Third Party Payments,Revenue
Walsall Council,http://opendatacommunities.org/id/metropolitan-district-council/walsall,WC117-484,30/06/2020,Adult Social Care,ADVANCE HEALTH CARE (UK) LTD,19/06/2020,824.97,73507-DOMICILIARY CARE,PHYSICAL SUPPORT,Third Party Payments,Revenue
Walsall Council,http://opendatacommunities.org/id/metropolitan-district-council/walsall,WC117-485,30/06/2020,Adult Social Care,ADVANCE HEALTH CARE (UK) LTD,19/06/2020,824.97,73507-DOMICILIARY CARE,PHYSICAL SUPPORT,Third Party Payments,Revenue
Walsall Council,http://opendatacommunities.org/id/metropolitan-district-council/walsall,WC117-486,30/06/2020,Adult Social Care,ADVANCE HEALTH CARE (UK) LTD,19/06/2020,863.52,73507-DOMICILIARY CARE,SOCIAL SUPPORT,Third Party Payments,Revenue
Walsall Council,http://opendatacommunities.org/id/metropolitan-district-council/walsall,WC117-487,30/06/2020,Adult Social Care,ADVANCE HEALTH CARE (UK) LTD,19/06/2020,863.52,73507-DOMICILIARY CARE,SOCIAL SUPPORT,Third Party Payments,Revenue
Walsall Council,http://opendatacommunities.org/id/metropolitan-district-council/walsall,WC117-488,30/06/2020,Adult Social Care,ADVANCE HEALTH CARE (UK) LTD,19/06/2020,"20,340.50",63000-PROFESSIONAL FEES AND SERVICES,"STRATEGY,COMMISSIONING AND DELIVERY SUPPORT",Supplies & Services,Revenue
Walsall Council,http://opendatacommunities.org/id/metropolitan-district-council/walsall,WC117-489,30/06/2020,Adult Social Care,ADVANCE HEALTH CARE (UK) LTD,22/06/2020,277.56,73507-DOMICILIARY CARE,PHYSICAL SUPPORT,Third Party Payments,Revenue
Walsall Council,http://opendatacommunities.org/id/metropolitan-district-council/walsall,WC117-490,30/06/2020,Adult Social Care,ADVANCE HEALTH CARE (UK) LTD,22/06/2020,277.56,73507-DOMICILIARY CARE,PHYSICAL SUPPORT,Third Party Payments,Revenue
Walsall Council,http://opendatacommunities.org/id/metropolitan-district-council/walsall,WC117-491,30/06/2020,Adult Social Care,ADVANCE HEALTH CARE (UK) LTD,22/06/2020,323.82,73507-DOMICILIARY CARE,SOCIAL SUPPORT,Third Party Payments,Revenue
Walsall Council,http://opendatacommunities.org/id/metropolitan-district-council/walsall,WC117-492,30/06/2020,Adult Social Care,ADVANCE HEALTH CARE (UK) LTD,22/06/2020,323.82,73507-DOMICILIARY CARE,SOCIAL SUPPORT,Third Party Payments,Revenue
Walsall Council,http://opendatacommunities.org/id/metropolitan-district-council/walsall,WC117-493,30/06/2020,Adult Social Care,ADVANCE HEALTH CARE (UK) LTD,22/06/2020,359.80,73507-DOMICILIARY CARE,PHYSICAL SUPPORT,Third Party Payments,Revenue
Walsall Council,http://opendatacommunities.org/id/metropolitan-district-council/walsall,WC117-494,30/06/2020,Adult Social Care,ADVANCE HEALTH CARE (UK) LTD,22/06/2020,359.80,73507-DOMICILIARY CARE,PHYSICAL SUPPORT,Third Party Payments,Revenue
Walsall Council,http://opendatacommunities.org/id/metropolitan-district-council/walsall,WC117-495,30/06/2020,Adult Social Care,ADVANCE HEALTH CARE (UK) LTD,22/06/2020,377.79,73507-DOMICILIARY CARE,PHYSICAL SUPPORT,Third Party Payments,Revenue
Walsall Council,http://opendatacommunities.org/id/metropolitan-district-council/walsall,WC117-496,30/06/2020,Adult Social Care,ADVANCE HEALTH CARE (UK) LTD,22/06/2020,377.79,73507-DOMICILIARY CARE,PHYSICAL SUPPORT,Third Party Payments,Revenue
Walsall Council,http://opendatacommunities.org/id/metropolitan-district-council/walsall,WC117-497,30/06/2020,Adult Social Care,ADVANCE HEALTH CARE (UK) LTD,22/06/2020,377.79,73507-DOMICILIARY CARE,PHYSICAL SUPPORT,Third Party Payments,Revenue
Walsall Council,http://opendatacommunities.org/id/metropolitan-district-council/walsall,WC117-498,30/06/2020,Adult Social Care,ADVANCE HEALTH CARE (UK) LTD,22/06/2020,377.79,73507-DOMICILIARY CARE,PHYSICAL SUPPORT,Third Party Payments,Revenue
Walsall Council,http://opendatacommunities.org/id/metropolitan-district-council/walsall,WC117-499,30/06/2020,Adult Social Care,ADVANCE HEALTH CARE (UK) LTD,22/06/2020,377.79,73507-DOMICILIARY CARE,PHYSICAL SUPPORT,Third Party Payments,Revenue
Walsall Council,http://opendatacommunities.org/id/metropolitan-district-council/walsall,WC117-500,30/06/2020,Adult Social Care,ADVANCE HEALTH CARE (UK) LTD,22/06/2020,377.79,73507-DOMICILIARY CARE,PHYSICAL SUPPORT,Third Party Payments,Revenue
Walsall Council,http://opendatacommunities.org/id/metropolitan-district-council/walsall,WC117-501,30/06/2020,Adult Social Care,ADVANCE HEALTH CARE (UK) LTD,22/06/2020,404.81,73507-DOMICILIARY CARE,PHYSICAL SUPPORT,Third Party Payments,Revenue
Walsall Council,http://opendatacommunities.org/id/metropolitan-district-council/walsall,WC117-502,30/06/2020,Adult Social Care,ADVANCE HEALTH CARE (UK) LTD,22/06/2020,404.81,73507-DOMICILIARY CARE,PHYSICAL SUPPORT,Third Party Payments,Revenue
Walsall Council,http://opendatacommunities.org/id/metropolitan-district-council/walsall,WC117-503,30/06/2020,Adult Social Care,ADVANCE HEALTH CARE (UK) LTD,22/06/2020,431.76,73507-DOMICILIARY CARE,PHYSICAL SUPPORT,Third Party Payments,Revenue
Walsall Council,http://opendatacommunities.org/id/metropolitan-district-council/walsall,WC117-504,30/06/2020,Adult Social Care,ADVANCE HEALTH CARE (UK) LTD,22/06/2020,431.76,73507-DOMICILIARY CARE,PHYSICAL SUPPORT,Third Party Payments,Revenue
Walsall Council,http://opendatacommunities.org/id/metropolitan-district-council/walsall,WC117-505,30/06/2020,Adult Social Care,ADVANCE HEALTH CARE (UK) LTD,22/06/2020,431.76,73507-DOMICILIARY CARE,PHYSICAL SUPPORT,Third Party Payments,Revenue
Walsall Council,http://opendatacommunities.org/id/metropolitan-district-council/walsall,WC117-506,30/06/2020,Adult Social Care,ADVANCE HEALTH CARE (UK) LTD,22/06/2020,431.76,73507-DOMICILIARY CARE,PHYSICAL SUPPORT,Third Party Payments,Revenue
Walsall Council,http://opendatacommunities.org/id/metropolitan-district-council/walsall,WC117-507,30/06/2020,Adult Social Care,ADVANCE HEALTH CARE (UK) LTD,22/06/2020,431.76,73507-DOMICILIARY CARE,PHYSICAL SUPPORT,Third Party Payments,Revenue
Walsall Council,http://opendatacommunities.org/id/metropolitan-district-council/walsall,WC117-508,30/06/2020,Adult Social Care,ADVANCE HEALTH CARE (UK) LTD,22/06/2020,431.76,73507-DOMICILIARY CARE,PHYSICAL SUPPORT,Third Party Payments,Revenue
Walsall Council,http://opendatacommunities.org/id/metropolitan-district-council/walsall,WC117-509,30/06/2020,Adult Social Care,ADVANCE HEALTH CARE (UK) LTD,22/06/2020,431.76,73507-DOMICILIARY CARE,PHYSICAL SUPPORT,Third Party Payments,Revenue
Walsall Council,http://opendatacommunities.org/id/metropolitan-district-council/walsall,WC117-510,30/06/2020,Adult Social Care,ADVANCE HEALTH CARE (UK) LTD,22/06/2020,431.76,73507-DOMICILIARY CARE,SOCIAL SUPPORT,Third Party Payments,Revenue
Walsall Council,http://opendatacommunities.org/id/metropolitan-district-council/walsall,WC117-511,30/06/2020,Adult Social Care,ADVANCE HEALTH CARE (UK) LTD,22/06/2020,431.76,73507-DOMICILIARY CARE,PHYSICAL SUPPORT,Third Party Payments,Revenue
Walsall Council,http://opendatacommunities.org/id/metropolitan-district-council/walsall,WC117-512,30/06/2020,Adult Social Care,ADVANCE HEALTH CARE (UK) LTD,22/06/2020,431.76,73507-DOMICILIARY CARE,PHYSICAL SUPPORT,Third Party Payments,Revenue
Walsall Council,http://opendatacommunities.org/id/metropolitan-district-council/walsall,WC117-513,30/06/2020,Adult Social Care,ADVANCE HEALTH CARE (UK) LTD,22/06/2020,431.76,73507-DOMICILIARY CARE,PHYSICAL SUPPORT,Third Party Payments,Revenue
Walsall Council,http://opendatacommunities.org/id/metropolitan-district-council/walsall,WC117-514,30/06/2020,Adult Social Care,ADVANCE HEALTH CARE (UK) LTD,22/06/2020,431.76,73507-DOMICILIARY CARE,SOCIAL SUPPORT,Third Party Payments,Revenue
Walsall Council,http://opendatacommunities.org/id/metropolitan-district-council/walsall,WC117-515,30/06/2020,Adult Social Care,ADVANCE HEALTH CARE (UK) LTD,22/06/2020,431.76,73507-DOMICILIARY CARE,PHYSICAL SUPPORT,Third Party Payments,Revenue
Walsall Council,http://opendatacommunities.org/id/metropolitan-district-council/walsall,WC117-516,30/06/2020,Adult Social Care,ADVANCE HEALTH CARE (UK) LTD,22/06/2020,431.76,73507-DOMICILIARY CARE,PHYSICAL SUPPORT,Third Party Payments,Revenue
Walsall Council,http://opendatacommunities.org/id/metropolitan-district-council/walsall,WC117-517,30/06/2020,Adult Social Care,ADVANCE HEALTH CARE (UK) LTD,22/06/2020,431.76,73507-DOMICILIARY CARE,PHYSICAL SUPPORT,Third Party Payments,Revenue
Walsall Council,http://opendatacommunities.org/id/metropolitan-district-council/walsall,WC117-518,30/06/2020,Adult Social Care,ADVANCE HEALTH CARE (UK) LTD,22/06/2020,431.76,73507-DOMICILIARY CARE,PHYSICAL SUPPORT,Third Party Payments,Revenue
Walsall Council,http://opendatacommunities.org/id/metropolitan-district-council/walsall,WC117-519,30/06/2020,Adult Social Care,ADVANCE HEALTH CARE (UK) LTD,22/06/2020,431.76,73507-DOMICILIARY CARE,PHYSICAL SUPPORT,Third Party Payments,Revenue
Walsall Council,http://opendatacommunities.org/id/metropolitan-district-council/walsall,WC117-520,30/06/2020,Adult Social Care,ADVANCE HEALTH CARE (UK) LTD,22/06/2020,431.76,73507-DOMICILIARY CARE,PHYSICAL SUPPORT,Third Party Payments,Revenue
Walsall Council,http://opendatacommunities.org/id/metropolitan-district-council/walsall,WC117-521,30/06/2020,Adult Social Care,ADVANCE HEALTH CARE (UK) LTD,22/06/2020,431.76,73507-DOMICILIARY CARE,PHYSICAL SUPPORT,Third Party Payments,Revenue
Walsall Council,http://opendatacommunities.org/id/metropolitan-district-council/walsall,WC117-522,30/06/2020,Adult Social Care,ADVANCE HEALTH CARE (UK) LTD,22/06/2020,431.76,73507-DOMICILIARY CARE,PHYSICAL SUPPORT,Third Party Payments,Revenue
Walsall Council,http://opendatacommunities.org/id/metropolitan-district-council/walsall,WC117-523,30/06/2020,Adult Social Care,ADVANCE HEALTH CARE (UK) LTD,22/06/2020,447.18,73507-DOMICILIARY CARE,PHYSICAL SUPPORT,Third Party Payments,Revenue
Walsall Council,http://opendatacommunities.org/id/metropolitan-district-council/walsall,WC117-524,30/06/2020,Adult Social Care,ADVANCE HEALTH CARE (UK) LTD,22/06/2020,447.18,73507-DOMICILIARY CARE,PHYSICAL SUPPORT,Third Party Payments,Revenue
Walsall Council,http://opendatacommunities.org/id/metropolitan-district-council/walsall,WC117-525,30/06/2020,Adult Social Care,ADVANCE HEALTH CARE (UK) LTD,22/06/2020,462.60,73507-DOMICILIARY CARE,PHYSICAL SUPPORT,Third Party Payments,Revenue
Walsall Council,http://opendatacommunities.org/id/metropolitan-district-council/walsall,WC117-526,30/06/2020,Adult Social Care,ADVANCE HEALTH CARE (UK) LTD,22/06/2020,462.60,73507-DOMICILIARY CARE,PHYSICAL SUPPORT,Third Party Payments,Revenue
Walsall Council,http://opendatacommunities.org/id/metropolitan-district-council/walsall,WC117-527,30/06/2020,Adult Social Care,ADVANCE HEALTH CARE (UK) LTD,22/06/2020,478.02,73507-DOMICILIARY CARE,PHYSICAL SUPPORT,Third Party Payments,Revenue
Walsall Council,http://opendatacommunities.org/id/metropolitan-district-council/walsall,WC117-528,30/06/2020,Adult Social Care,ADVANCE HEALTH CARE (UK) LTD,22/06/2020,485.73,73507-DOMICILIARY CARE,PHYSICAL SUPPORT,Third Party Payments,Revenue
Walsall Council,http://opendatacommunities.org/id/metropolitan-district-council/walsall,WC117-529,30/06/2020,Adult Social Care,ADVANCE HEALTH CARE (UK) LTD,22/06/2020,485.73,73507-DOMICILIARY CARE,SOCIAL SUPPORT,Third Party Payments,Revenue
Walsall Council,http://opendatacommunities.org/id/metropolitan-district-council/walsall,WC117-530,30/06/2020,Adult Social Care,ADVANCE HEALTH CARE (UK) LTD,22/06/2020,485.73,73507-DOMICILIARY CARE,PHYSICAL SUPPORT,Third Party Payments,Revenue
Walsall Council,http://opendatacommunities.org/id/metropolitan-district-council/walsall,WC117-531,30/06/2020,Adult Social Care,ADVANCE HEALTH CARE (UK) LTD,22/06/2020,485.73,73507-DOMICILIARY CARE,PHYSICAL SUPPORT,Third Party Payments,Revenue
Walsall Council,http://opendatacommunities.org/id/metropolitan-district-council/walsall,WC117-532,30/06/2020,Adult Social Care,ADVANCE HEALTH CARE (UK) LTD,22/06/2020,485.73,73507-DOMICILIARY CARE,SOCIAL SUPPORT,Third Party Payments,Revenue
Walsall Council,http://opendatacommunities.org/id/metropolitan-district-council/walsall,WC117-533,30/06/2020,Adult Social Care,ADVANCE HEALTH CARE (UK) LTD,22/06/2020,485.73,73507-DOMICILIARY CARE,PHYSICAL SUPPORT,Third Party Payments,Revenue
Walsall Council,http://opendatacommunities.org/id/metropolitan-district-council/walsall,WC117-534,30/06/2020,Adult Social Care,ADVANCE HEALTH CARE (UK) LTD,22/06/2020,485.73,73507-DOMICILIARY CARE,PHYSICAL SUPPORT,Third Party Payments,Revenue
Walsall Council,http://opendatacommunities.org/id/metropolitan-district-council/walsall,WC117-535,30/06/2020,Adult Social Care,ADVANCE HEALTH CARE (UK) LTD,22/06/2020,485.73,73507-DOMICILIARY CARE,PHYSICAL SUPPORT,Third Party Payments,Revenue
Walsall Council,http://opendatacommunities.org/id/metropolitan-district-council/walsall,WC117-536,30/06/2020,Adult Social Care,ADVANCE HEALTH CARE (UK) LTD,22/06/2020,485.73,73507-DOMICILIARY CARE,PHYSICAL SUPPORT,Third Party Payments,Revenue
Walsall Council,http://opendatacommunities.org/id/metropolitan-district-council/walsall,WC117-537,30/06/2020,Adult Social Care,ADVANCE HEALTH CARE (UK) LTD,22/06/2020,485.73,73507-DOMICILIARY CARE,PHYSICAL SUPPORT,Third Party Payments,Revenue
Walsall Council,http://opendatacommunities.org/id/metropolitan-district-council/walsall,WC117-538,30/06/2020,Adult Social Care,ADVANCE HEALTH CARE (UK) LTD,22/06/2020,485.73,73507-DOMICILIARY CARE,PHYSICAL SUPPORT,Third Party Payments,Revenue
Walsall Council,http://opendatacommunities.org/id/metropolitan-district-council/walsall,WC117-539,30/06/2020,Adult Social Care,ADVANCE HEALTH CARE (UK) LTD,22/06/2020,485.73,73507-DOMICILIARY CARE,PHYSICAL SUPPORT,Third Party Payments,Revenue
Walsall Council,http://opendatacommunities.org/id/metropolitan-district-council/walsall,WC117-540,30/06/2020,Adult Social Care,ADVANCE HEALTH CARE (UK) LTD,22/06/2020,485.73,73507-DOMICILIARY CARE,PHYSICAL SUPPORT,Third Party Payments,Revenue
Walsall Council,http://opendatacommunities.org/id/metropolitan-district-council/walsall,WC117-541,30/06/2020,Adult Social Care,ADVANCE HEALTH CARE (UK) LTD,22/06/2020,485.73,73507-DOMICILIARY CARE,PHYSICAL SUPPORT,Third Party Payments,Revenue
Walsall Council,http://opendatacommunities.org/id/metropolitan-district-council/walsall,WC117-542,30/06/2020,Adult Social Care,ADVANCE HEALTH CARE (UK) LTD,22/06/2020,485.73,73507-DOMICILIARY CARE,SOCIAL SUPPORT,Third Party Payments,Revenue
Walsall Council,http://opendatacommunities.org/id/metropolitan-district-council/walsall,WC117-543,30/06/2020,Adult Social Care,ADVANCE HEALTH CARE (UK) LTD,22/06/2020,485.73,73507-DOMICILIARY CARE,PHYSICAL SUPPORT,Third Party Payments,Revenue
Walsall Council,http://opendatacommunities.org/id/metropolitan-district-council/walsall,WC117-544,30/06/2020,Adult Social Care,ADVANCE HEALTH CARE (UK) LTD,22/06/2020,485.73,73507-DOMICILIARY CARE,PHYSICAL SUPPORT,Third Party Payments,Revenue
Walsall Council,http://opendatacommunities.org/id/metropolitan-district-council/walsall,WC117-545,30/06/2020,Adult Social Care,ADVANCE HEALTH CARE (UK) LTD,22/06/2020,485.73,73507-DOMICILIARY CARE,PHYSICAL SUPPORT,Third Party Payments,Revenue
Walsall Council,http://opendatacommunities.org/id/metropolitan-district-council/walsall,WC117-546,30/06/2020,Adult Social Care,ADVANCE HEALTH CARE (UK) LTD,22/06/2020,485.73,73507-DOMICILIARY CARE,SOCIAL SUPPORT,Third Party Payments,Revenue
Walsall Council,http://opendatacommunities.org/id/metropolitan-district-council/walsall,WC117-547,30/06/2020,Adult Social Care,ADVANCE HEALTH CARE (UK) LTD,22/06/2020,485.73,73507-DOMICILIARY CARE,PHYSICAL SUPPORT,Third Party Payments,Revenue
Walsall Council,http://opendatacommunities.org/id/metropolitan-district-council/walsall,WC117-548,30/06/2020,Adult Social Care,ADVANCE HEALTH CARE (UK) LTD,22/06/2020,485.73,73507-DOMICILIARY CARE,PHYSICAL SUPPORT,Third Party Payments,Revenue
Walsall Council,http://opendatacommunities.org/id/metropolitan-district-council/walsall,WC117-549,30/06/2020,Adult Social Care,ADVANCE HEALTH CARE (UK) LTD,22/06/2020,485.73,73507-DOMICILIARY CARE,PHYSICAL SUPPORT,Third Party Payments,Revenue
Walsall Council,http://opendatacommunities.org/id/metropolitan-district-council/walsall,WC117-550,30/06/2020,Adult Social Care,ADVANCE HEALTH CARE (UK) LTD,22/06/2020,485.73,73507-DOMICILIARY CARE,PHYSICAL SUPPORT,Third Party Payments,Revenue
Walsall Council,http://opendatacommunities.org/id/metropolitan-district-council/walsall,WC117-551,30/06/2020,Adult Social Care,ADVANCE HEALTH CARE (UK) LTD,22/06/2020,485.80,73507-DOMICILIARY CARE,PHYSICAL SUPPORT,Third Party Payments,Revenue
Walsall Council,http://opendatacommunities.org/id/metropolitan-district-council/walsall,WC117-552,30/06/2020,Adult Social Care,ADVANCE HEALTH CARE (UK) LTD,22/06/2020,485.80,73507-DOMICILIARY CARE,PHYSICAL SUPPORT,Third Party Payments,Revenue
Walsall Council,http://opendatacommunities.org/id/metropolitan-district-council/walsall,WC117-553,30/06/2020,Adult Social Care,ADVANCE HEALTH CARE (UK) LTD,22/06/2020,501.15,73507-DOMICILIARY CARE,PHYSICAL SUPPORT,Third Party Payments,Revenue
Walsall Council,http://opendatacommunities.org/id/metropolitan-district-council/walsall,WC117-554,30/06/2020,Adult Social Care,ADVANCE HEALTH CARE (UK) LTD,22/06/2020,501.15,73507-DOMICILIARY CARE,PHYSICAL SUPPORT,Third Party Payments,Revenue
Walsall Council,http://opendatacommunities.org/id/metropolitan-district-council/walsall,WC117-555,30/06/2020,Adult Social Care,ADVANCE HEALTH CARE (UK) LTD,22/06/2020,501.15,73507-DOMICILIARY CARE,PHYSICAL SUPPORT,Third Party Payments,Revenue
Walsall Council,http://opendatacommunities.org/id/metropolitan-district-council/walsall,WC117-556,30/06/2020,Adult Social Care,ADVANCE HEALTH CARE (UK) LTD,22/06/2020,501.15,73507-DOMICILIARY CARE,PHYSICAL SUPPORT,Third Party Payments,Revenue
Walsall Council,http://opendatacommunities.org/id/metropolitan-district-council/walsall,WC117-557,30/06/2020,Adult Social Care,ADVANCE HEALTH CARE (UK) LTD,22/06/2020,524.28,73507-DOMICILIARY CARE,PHYSICAL SUPPORT,Third Party Payments,Revenue
Walsall Council,http://opendatacommunities.org/id/metropolitan-district-council/walsall,WC117-558,30/06/2020,Adult Social Care,ADVANCE HEALTH CARE (UK) LTD,22/06/2020,524.28,73507-DOMICILIARY CARE,PHYSICAL SUPPORT,Third Party Payments,Revenue
Walsall Council,http://opendatacommunities.org/id/metropolitan-district-council/walsall,WC117-559,30/06/2020,Adult Social Care,ADVANCE HEALTH CARE (UK) LTD,22/06/2020,539.70,73507-DOMICILIARY CARE,PHYSICAL SUPPORT,Third Party Payments,Revenue
Walsall Council,http://opendatacommunities.org/id/metropolitan-district-council/walsall,WC117-560,30/06/2020,Adult Social Care,ADVANCE HEALTH CARE (UK) LTD,22/06/2020,539.70,73507-DOMICILIARY CARE,PHYSICAL SUPPORT,Third Party Payments,Revenue
Walsall Council,http://opendatacommunities.org/id/metropolitan-district-council/walsall,WC117-561,30/06/2020,Adult Social Care,ADVANCE HEALTH CARE (UK) LTD,22/06/2020,593.67,73507-DOMICILIARY CARE,PHYSICAL SUPPORT,Third Party Payments,Revenue
Walsall Council,http://opendatacommunities.org/id/metropolitan-district-council/walsall,WC117-562,30/06/2020,Adult Social Care,ADVANCE HEALTH CARE (UK) LTD,22/06/2020,593.67,73507-DOMICILIARY CARE,PHYSICAL SUPPORT,Third Party Payments,Revenue
Walsall Council,http://opendatacommunities.org/id/metropolitan-district-council/walsall,WC117-563,30/06/2020,Adult Social Care,ADVANCE HEALTH CARE (UK) LTD,22/06/2020,593.88,73507-DOMICILIARY CARE,PHYSICAL SUPPORT,Third Party Payments,Revenue
Walsall Council,http://opendatacommunities.org/id/metropolitan-district-council/walsall,WC117-564,30/06/2020,Adult Social Care,ADVANCE HEALTH CARE (UK) LTD,22/06/2020,593.88,73507-DOMICILIARY CARE,PHYSICAL SUPPORT,Third Party Payments,Revenue
Walsall Council,http://opendatacommunities.org/id/metropolitan-district-council/walsall,WC117-565,30/06/2020,Adult Social Care,ADVANCE HEALTH CARE (UK) LTD,22/06/2020,629.72,73507-DOMICILIARY CARE,PHYSICAL SUPPORT,Third Party Payments,Revenue
Walsall Council,http://opendatacommunities.org/id/metropolitan-district-council/walsall,WC117-566,30/06/2020,Adult Social Care,ADVANCE HEALTH CARE (UK) LTD,22/06/2020,629.72,73507-DOMICILIARY CARE,PHYSICAL SUPPORT,Third Party Payments,Revenue
Walsall Council,http://opendatacommunities.org/id/metropolitan-district-council/walsall,WC117-567,30/06/2020,Adult Social Care,ADVANCE HEALTH CARE (UK) LTD,22/06/2020,701.61,73507-DOMICILIARY CARE,PHYSICAL SUPPORT,Third Party Payments,Revenue
Walsall Council,http://opendatacommunities.org/id/metropolitan-district-council/walsall,WC117-568,30/06/2020,Adult Social Care,ADVANCE HEALTH CARE (UK) LTD,22/06/2020,701.61,73507-DOMICILIARY CARE,PHYSICAL SUPPORT,Third Party Payments,Revenue
Walsall Council,http://opendatacommunities.org/id/metropolitan-district-council/walsall,WC117-569,30/06/2020,Adult Social Care,ADVANCE HEALTH CARE (UK) LTD,22/06/2020,824.97,73507-DOMICILIARY CARE,PHYSICAL SUPPORT,Third Party Payments,Revenue
Walsall Council,http://opendatacommunities.org/id/metropolitan-district-council/walsall,WC117-570,30/06/2020,Adult Social Care,ADVANCE HEALTH CARE (UK) LTD,22/06/2020,824.97,73507-DOMICILIARY CARE,PHYSICAL SUPPORT,Third Party Payments,Revenue
Walsall Council,http://opendatacommunities.org/id/metropolitan-district-council/walsall,WC117-571,30/06/2020,Adult Social Care,ADVANCE HEALTH CARE (UK) LTD,22/06/2020,863.52,73507-DOMICILIARY CARE,SOCIAL SUPPORT,Third Party Payments,Revenue
Walsall Council,http://opendatacommunities.org/id/metropolitan-district-council/walsall,WC117-572,30/06/2020,Adult Social Care,ADVANCE HEALTH CARE (UK) LTD,22/06/2020,863.52,73507-DOMICILIARY CARE,SOCIAL SUPPORT,Third Party Payments,Revenue
Walsall Council,http://opendatacommunities.org/id/metropolitan-district-council/walsall,WC117-573,30/06/2020,Adult Social Care,ADVANCE HEALTH CARE (UK) LTD,22/06/2020,"17,110.58",73025-PROFESSIONAL SERVICES-PRIV CONTRACTOR & OTHER AGENCIES,"STRATEGY,COMMISSIONING AND DELIVERY SUPPORT",Third Party Payments,Revenue
Walsall Council,http://opendatacommunities.org/id/metropolitan-district-council/walsall,WC117-574,30/06/2020,Adult Social Care,ADVANCE HEALTH CARE (UK) LTD,23/06/2020,760.33,73507-DOMICILIARY CARE,PHYSICAL SUPPORT,Third Party Payments,Revenue
Walsall Council,http://opendatacommunities.org/id/metropolitan-district-council/walsall,WC117-575,30/06/2020,Adult Social Care,ADVANCE HEALTH CARE (UK) LTD,24/06/2020,380.36,73507-DOMICILIARY CARE,PHYSICAL SUPPORT,Third Party Payments,Revenue
Walsall Council,http://opendatacommunities.org/id/metropolitan-district-council/walsall,WC117-576,30/06/2020,Adult Social Care,ADVANCE HEALTH CARE (UK) LTD,24/06/2020,380.36,73507-DOMICILIARY CARE,PHYSICAL SUPPORT,Third Party Payments,Revenue
Walsall Council,http://opendatacommunities.org/id/metropolitan-district-council/walsall,WC117-577,30/06/2020,Adult Social Care,ADVANCE HEALTH CARE (UK) LTD,24/06/2020,421.48,73507-DOMICILIARY CARE,PHYSICAL SUPPORT,Third Party Payments,Revenue
Walsall Council,http://opendatacommunities.org/id/metropolitan-district-council/walsall,WC117-578,30/06/2020,Adult Social Care,ADVANCE HEALTH CARE (UK) LTD,24/06/2020,421.48,73507-DOMICILIARY CARE,PHYSICAL SUPPORT,Third Party Payments,Revenue
Walsall Council,http://opendatacommunities.org/id/metropolitan-district-council/walsall,WC117-579,30/06/2020,Adult Social Care,ADVANCE HEALTH CARE (UK) LTD,24/06/2020,817.40,73507-DOMICILIARY CARE,PHYSICAL SUPPORT,Third Party Payments,Revenue
Walsall Council,http://opendatacommunities.org/id/metropolitan-district-council/walsall,WC117-580,30/06/2020,Adult Social Care,ADVANCE HEALTH CARE (UK) LTD,24/06/2020,"1,290.14",73507-DOMICILIARY CARE,PHYSICAL SUPPORT,Third Party Payments,Revenue
Walsall Council,http://opendatacommunities.org/id/metropolitan-district-council/walsall,WC117-581,30/06/2020,Adult Social Care,ADVANCE HEALTH CARE (UK) LTD,24/06/2020,"1,290.14",73507-DOMICILIARY CARE,PHYSICAL SUPPORT,Third Party Payments,Revenue
Walsall Council,http://opendatacommunities.org/id/metropolitan-district-council/walsall,WC117-582,30/06/2020,Economy & Environment,ADVANCE PHARMA LTD T/A PLECK PHARMACY,15/06/2020,"1,156.00",63253-PAYMENT TO CONTRACTOR,SMOKING CESSATION,Third Party Payments,Revenue
Walsall Council,http://opendatacommunities.org/id/metropolitan-district-council/walsall,WC117-583,30/06/2020,Economy & Environment,ADVANCE PHARMA LTD T/A PLECK PHARMACY,17/06/2020,992.70,63253-PAYMENT TO CONTRACTOR,SMOKING CESSATION,Third Party Payments,Revenue
Walsall Council,http://opendatacommunities.org/id/metropolitan-district-council/walsall,WC117-584,30/06/2020,Childrens,ADVENTURELAND DAY NURSERY,01/06/2020,"3,371.55",66505-OTHER-GRANTS TO OTHER ORGS,EARLY YEARS - 2 YR OLDS,Third Party Payments,Revenue
Walsall Council,http://opendatacommunities.org/id/metropolitan-district-council/walsall,WC117-585,30/06/2020,Childrens,ADVENTURELAND DAY NURSERY,01/06/2020,"7,558.69",66505-OTHER-GRANTS TO OTHER ORGS,EARLY YEARS - 3 YR OLDS,Third Party Payments,Revenue
Walsall Council,http://opendatacommunities.org/id/metropolitan-district-council/walsall,WC117-586,30/06/2020,Adult Social Care,ADVINIA CARE HOMES LTD - HAMMERWICH HALL CARE HOME,05/06/2020,"2,044.00",73500-RESIDENTIAL,PHYSICAL SUPPORT,Third Party Payments,Revenue
Walsall Council,http://opendatacommunities.org/id/metropolitan-district-council/walsall,WC117-587,30/06/2020,Adult Social Care,ADVINIA CARE HOMES LTD - HAMMERWICH HALL CARE HOME,05/06/2020,"2,308.00",73501-RESIDENTIAL EMI,SOCIAL SUPPORT,Third Party Payments,Revenue
Walsall Council,http://opendatacommunities.org/id/metropolitan-district-council/walsall,WC117-588,30/06/2020,Adult Social Care,ADVINIA CARE HOMES LTD - HAMMERWICH HALL CARE HOME,23/06/2020,"2,044.00",73500-RESIDENTIAL,PHYSICAL SUPPORT,Third Party Payments,Revenue
Walsall Council,http://opendatacommunities.org/id/metropolitan-district-council/walsall,WC117-589,30/06/2020,Adult Social Care,ADVINIA CARE HOMES LTD - HAMMERWICH HALL CARE HOME,23/06/2020,"2,308.00",73501-RESIDENTIAL EMI,SOCIAL SUPPORT,Third Party Payments,Revenue
Walsall Council,http://opendatacommunities.org/id/metropolitan-district-council/walsall,WC117-590,30/06/2020,Economy & Environment,AECOM LIMITED,05/06/2020,"5,797.98",01006-SITE WORKS MAIN CONTRACTORS,CFR 1334 WILLENHALL LAWN CEMETERY EXTENSION & LAND DEVELOPMENT,Capital,Capital
Walsall Council,http://opendatacommunities.org/id/metropolitan-district-council/walsall,WC117-591,30/06/2020,Resources and Transformation,AFGHAN COMMUNITY & WELFARE CENTRE,03/06/2020,354.39,66500-GRANTS TO OTHER ORGS,LET'S TALK ABOUT IT PROJECT,Third Party Payments,Revenue
Walsall Council,http://opendatacommunities.org/id/metropolitan-district-council/walsall,WC117-592,30/06/2020,Economy & Environment,ALDERBROOK HEALTHCARE LTD,04/06/2020,"4,672.20",63000-PROFESSIONAL FEES AND SERVICES,CORONERS SERVICE,Supplies & Services,Revenue
Walsall Council,http://opendatacommunities.org/id/metropolitan-district-council/walsall,WC117-593,30/06/2020,Economy & Environment,ALDERBROOK HEALTHCARE LTD,17/06/2020,"2,732.50",63000-PROFESSIONAL FEES AND SERVICES,CORONERS SERVICE,Supplies & Services,Revenue
Walsall Council,http://opendatacommunities.org/id/metropolitan-district-council/walsall,WC117-594,30/06/2020,Adult Social Care,ALDERGROVE MANOR LTD,05/06/2020,"1,026.86",73502-NURSING,PHYSICAL SUPPORT,Third Party Payments,Revenue
Walsall Council,http://opendatacommunities.org/id/metropolitan-district-council/walsall,WC117-595,30/06/2020,Adult Social Care,ALDERGROVE MANOR LTD,05/06/2020,"2,308.00",73501-RESIDENTIAL EMI,MENTAL HEALTH SUPPORT,Third Party Payments,Revenue
Walsall Council,http://opendatacommunities.org/id/metropolitan-district-council/walsall,WC117-596,30/06/2020,Adult Social Care,ALDERGROVE MANOR LTD,05/06/2020,"2,308.00",73501-RESIDENTIAL EMI,PHYSICAL SUPPORT,Third Party Payments,Revenue
Walsall Council,http://opendatacommunities.org/id/metropolitan-district-council/walsall,WC117-597,30/06/2020,Adult Social Care,ALDERGROVE MANOR LTD,23/06/2020,"2,308.00",73501-RESIDENTIAL EMI,MENTAL HEALTH SUPPORT,Third Party Payments,Revenue
Walsall Council,http://opendatacommunities.org/id/metropolitan-district-council/walsall,WC117-598,30/06/2020,Adult Social Care,ALDERGROVE MANOR LTD,23/06/2020,"2,308.00",73501-RESIDENTIAL EMI,PHYSICAL SUPPORT,Third Party Payments,Revenue
Walsall Council,http://opendatacommunities.org/id/metropolitan-district-council/walsall,WC117-599,30/06/2020,Childrens,ALDRIDGE & BARONS LIMITED,15/06/2020,"1,244.00",52000-WITH DRIVER-HIRE OF VEHICLES,HOME TO SCHOOL TRANSPORT,Transport,Revenue
Walsall Council,http://opendatacommunities.org/id/metropolitan-district-council/walsall,WC117-600,30/06/2020,Childrens,ALDRIDGE & BARONS LIMITED,18/06/2020,-317.34,52000-WITH DRIVER-HIRE OF VEHICLES,HOME TO SCHOOL TRANSPORT,Transport,Revenue
Walsall Council,http://opendatacommunities.org/id/metropolitan-district-council/walsall,WC117-601,30/06/2020,Childrens,ALDRIDGE & BARONS LIMITED,18/06/2020,360.27,52000-WITH DRIVER-HIRE OF VEHICLES,HOME TO SCHOOL TRANSPORT,Transport,Revenue
Walsall Council,http://opendatacommunities.org/id/metropolitan-district-council/walsall,WC117-602,30/06/2020,Childrens,ALDRIDGE & BARONS LIMITED,18/06/2020,669.60,52000-WITH DRIVER-HIRE OF VEHICLES,HOME TO SCHOOL TRANSPORT,Transport,Revenue
Walsall Council,http://opendatacommunities.org/id/metropolitan-district-council/walsall,WC117-603,30/06/2020,Childrens,ALDRIDGE & BARONS LIMITED,18/06/2020,720.00,52000-WITH DRIVER-HIRE OF VEHICLES,HOME TO SCHOOL TRANSPORT,Transport,Revenue
Walsall Council,http://opendatacommunities.org/id/metropolitan-district-council/walsall,WC117-604,30/06/2020,Childrens,ALDRIDGE & BARONS LIMITED,18/06/2020,778.24,52000-WITH DRIVER-HIRE OF VEHICLES,HOME TO SCHOOL TRANSPORT,Transport,Revenue
Walsall Council,http://opendatacommunities.org/id/metropolitan-district-council/walsall,WC117-605,30/06/2020,Childrens,ALDRIDGE & BARONS LIMITED,18/06/2020,848.00,52000-WITH DRIVER-HIRE OF VEHICLES,HOME TO SCHOOL TRANSPORT,Transport,Revenue
Walsall Council,http://opendatacommunities.org/id/metropolitan-district-council/walsall,WC117-606,30/06/2020,Childrens,ALDRIDGE & BARONS LIMITED,18/06/2020,848.00,52000-WITH DRIVER-HIRE OF VEHICLES,HOME TO SCHOOL TRANSPORT,Transport,Revenue
Walsall Council,http://opendatacommunities.org/id/metropolitan-district-council/walsall,WC117-607,30/06/2020,Childrens,ALDRIDGE & BARONS LIMITED,18/06/2020,852.80,52000-WITH DRIVER-HIRE OF VEHICLES,HOME TO SCHOOL TRANSPORT,Transport,Revenue
Walsall Council,http://opendatacommunities.org/id/metropolitan-district-council/walsall,WC117-608,30/06/2020,Childrens,ALDRIDGE & BARONS LIMITED,18/06/2020,932.40,52000-WITH DRIVER-HIRE OF VEHICLES,HOME TO SCHOOL TRANSPORT,Transport,Revenue
Walsall Council,http://opendatacommunities.org/id/metropolitan-district-council/walsall,WC117-609,30/06/2020,Childrens,ALDRIDGE & BARONS LIMITED,18/06/2020,950.40,52000-WITH DRIVER-HIRE OF VEHICLES,HOME TO SCHOOL TRANSPORT,Transport,Revenue
Walsall Council,http://opendatacommunities.org/id/metropolitan-district-council/walsall,WC117-610,30/06/2020,Childrens,ALDRIDGE & BARONS LIMITED,18/06/2020,960.00,52000-WITH DRIVER-HIRE OF VEHICLES,HOME TO SCHOOL TRANSPORT,Transport,Revenue
Walsall Council,http://opendatacommunities.org/id/metropolitan-district-council/walsall,WC117-611,30/06/2020,Childrens,ALDRIDGE & BARONS LIMITED,18/06/2020,960.00,52000-WITH DRIVER-HIRE OF VEHICLES,HOME TO SCHOOL TRANSPORT,Transport,Revenue
Walsall Council,http://opendatacommunities.org/id/metropolitan-district-council/walsall,WC117-612,30/06/2020,Childrens,ALDRIDGE & BARONS LIMITED,18/06/2020,"1,003.86",52000-WITH DRIVER-HIRE OF VEHICLES,HOME TO SCHOOL TRANSPORT,Transport,Revenue
Walsall Council,http://opendatacommunities.org/id/metropolitan-district-council/walsall,WC117-613,30/06/2020,Childrens,ALDRIDGE & BARONS LIMITED,18/06/2020,"1,032.00",52000-WITH DRIVER-HIRE OF VEHICLES,HOME TO SCHOOL TRANSPORT,Transport,Revenue
Walsall Council,http://opendatacommunities.org/id/metropolitan-district-council/walsall,WC117-614,30/06/2020,Childrens,ALDRIDGE & BARONS LIMITED,18/06/2020,"1,056.00",52000-WITH DRIVER-HIRE OF VEHICLES,HOME TO SCHOOL TRANSPORT,Transport,Revenue
Walsall Council,http://opendatacommunities.org/id/metropolitan-district-council/walsall,WC117-615,30/06/2020,Childrens,ALDRIDGE & BARONS LIMITED,18/06/2020,"1,062.45",52000-WITH DRIVER-HIRE OF VEHICLES,HOME TO SCHOOL TRANSPORT,Transport,Revenue
Walsall Council,http://opendatacommunities.org/id/metropolitan-district-council/walsall,WC117-616,30/06/2020,Childrens,ALDRIDGE & BARONS LIMITED,18/06/2020,"1,068.00",52000-WITH DRIVER-HIRE OF VEHICLES,HOME TO SCHOOL TRANSPORT,Transport,Revenue
Walsall Council,http://opendatacommunities.org/id/metropolitan-district-council/walsall,WC117-617,30/06/2020,Childrens,ALDRIDGE & BARONS LIMITED,18/06/2020,"1,069.20",52000-WITH DRIVER-HIRE OF VEHICLES,HOME TO SCHOOL TRANSPORT,Transport,Revenue
Walsall Council,http://opendatacommunities.org/id/metropolitan-district-council/walsall,WC117-618,30/06/2020,Childrens,ALDRIDGE & BARONS LIMITED,18/06/2020,"1,071.60",52000-WITH DRIVER-HIRE OF VEHICLES,HOME TO SCHOOL TRANSPORT,Transport,Revenue
Walsall Council,http://opendatacommunities.org/id/metropolitan-district-council/walsall,WC117-619,30/06/2020,Childrens,ALDRIDGE & BARONS LIMITED,18/06/2020,"1,128.00",52000-WITH DRIVER-HIRE OF VEHICLES,HOME TO SCHOOL TRANSPORT,Transport,Revenue
Walsall Council,http://opendatacommunities.org/id/metropolitan-district-council/walsall,WC117-620,30/06/2020,Childrens,ALDRIDGE & BARONS LIMITED,18/06/2020,"1,131.00",52000-WITH DRIVER-HIRE OF VEHICLES,HOME TO SCHOOL TRANSPORT,Transport,Revenue
Walsall Council,http://opendatacommunities.org/id/metropolitan-district-council/walsall,WC117-621,30/06/2020,Childrens,ALDRIDGE & BARONS LIMITED,18/06/2020,"1,166.40",52000-WITH DRIVER-HIRE OF VEHICLES,HOME TO SCHOOL TRANSPORT,Transport,Revenue
Walsall Council,http://opendatacommunities.org/id/metropolitan-district-council/walsall,WC117-622,30/06/2020,Childrens,ALDRIDGE & BARONS LIMITED,18/06/2020,"1,192.80",52000-WITH DRIVER-HIRE OF VEHICLES,HOME TO SCHOOL TRANSPORT,Transport,Revenue
Walsall Council,http://opendatacommunities.org/id/metropolitan-district-council/walsall,WC117-623,30/06/2020,Childrens,ALDRIDGE & BARONS LIMITED,18/06/2020,"1,308.45",52000-WITH DRIVER-HIRE OF VEHICLES,HOME TO SCHOOL TRANSPORT,Transport,Revenue
Walsall Council,http://opendatacommunities.org/id/metropolitan-district-council/walsall,WC117-624,30/06/2020,Childrens,ALDRIDGE & BARONS LIMITED,18/06/2020,"1,403.00",52000-WITH DRIVER-HIRE OF VEHICLES,HOME TO SCHOOL TRANSPORT,Transport,Revenue
Walsall Council,http://opendatacommunities.org/id/metropolitan-district-council/walsall,WC117-625,30/06/2020,Childrens,ALDRIDGE & BARONS LIMITED,18/06/2020,"1,436.40",52000-WITH DRIVER-HIRE OF VEHICLES,HOME TO SCHOOL TRANSPORT,Transport,Revenue
Walsall Council,http://opendatacommunities.org/id/metropolitan-district-council/walsall,WC117-626,30/06/2020,Childrens,ALDRIDGE & BARONS LIMITED,18/06/2020,"1,489.60",52000-WITH DRIVER-HIRE OF VEHICLES,HOME TO SCHOOL TRANSPORT,Transport,Revenue
Walsall Council,http://opendatacommunities.org/id/metropolitan-district-council/walsall,WC117-627,30/06/2020,Childrens,ALDRIDGE & BARONS LIMITED,18/06/2020,"1,516.80",52000-WITH DRIVER-HIRE OF VEHICLES,HOME TO SCHOOL TRANSPORT,Transport,Revenue
Walsall Council,http://opendatacommunities.org/id/metropolitan-district-council/walsall,WC117-628,30/06/2020,Childrens,ALDRIDGE & BARONS LIMITED,18/06/2020,"2,114.00",52000-WITH DRIVER-HIRE OF VEHICLES,HOME TO SCHOOL TRANSPORT,Transport,Revenue
Walsall Council,http://opendatacommunities.org/id/metropolitan-district-council/walsall,WC117-629,30/06/2020,Economy & Environment,ALDRIDGE METHODIST CHURCH 001,01/06/2020,"1,090.91",63253-PAYMENT TO CONTRACTOR,MENTAL HEALTH,Third Party Payments,Revenue
Walsall Council,http://opendatacommunities.org/id/metropolitan-district-council/walsall,WC117-630,30/06/2020,Economy & Environment,ALDRIDGE METHODIST CHURCH 001,01/06/2020,"1,090.91",63253-PAYMENT TO CONTRACTOR,MENTAL HEALTH,Third Party Payments,Revenue
Walsall Council,http://opendatacommunities.org/id/metropolitan-district-council/walsall,WC117-631,30/06/2020,Economy & Environment,ALDRIDGE METHODIST CHURCH 001,03/06/2020,"1,090.91",63253-PAYMENT TO CONTRACTOR,MENTAL HEALTH,Third Party Payments,Revenue
Walsall Council,http://opendatacommunities.org/id/metropolitan-district-council/walsall,WC117-632,30/06/2020,Adult Social Care,ALEXANDRA HOUSE CARE SERVICES LTD T/A STONEBRIDGE NURSING HOME,05/06/2020,"7,361.12",73500-RESIDENTIAL,LEARNING DISABILITY SUPPORT,Third Party Payments,Revenue
Walsall Council,http://opendatacommunities.org/id/metropolitan-district-council/walsall,WC117-633,30/06/2020,Adult Social Care,ALEXANDRA HOUSE CARE SERVICES LTD T/A STONEBRIDGE NURSING HOME,23/06/2020,"7,361.12",73500-RESIDENTIAL,LEARNING DISABILITY SUPPORT,Third Party Payments,Revenue
Walsall Council,http://opendatacommunities.org/id/metropolitan-district-council/walsall,WC117-634,30/06/2020,Resources and Transformation,ALIGNED ASSETS LTD,11/06/2020,"7,596.52",63800-COMPUTER EQUIPMENT AND SUPPLIES,APPLICATIONS,Supplies & Services,Revenue
Walsall Council,http://opendatacommunities.org/id/metropolitan-district-council/walsall,WC117-635,30/06/2020,Childrens,ALL SAINTS NATIONAL ACADEMY #1,12/06/2020,"3,651.16",66502-TOP UP FUNDING -GRANTS TO SCHOOLS,ALL SAINTS NATIONAL ACADEMY,Third Party Payments,Revenue
Walsall Council,http://opendatacommunities.org/id/metropolitan-district-council/walsall,WC117-636,30/06/2020,Resources and Transformation,ALLIANCE DISPOSABLES LTD,05/06/2020,209.88,60539-CLEANING MATERIALS,CL STOCK,Supplies & Services,Revenue
Walsall Council,http://opendatacommunities.org/id/metropolitan-district-council/walsall,WC117-637,30/06/2020,Economy & Environment,ALLIANCE LEISURE SERVICES LTD,24/06/2020,144.75,60500-GENERAL MATERIALS,DARLASTON LEISURE CENTRE,Supplies & Services,Revenue
Walsall Council,http://opendatacommunities.org/id/metropolitan-district-council/walsall,WC117-638,30/06/2020,Economy & Environment,ALLIANCE LEISURE SERVICES LTD,24/06/2020,144.75,63000-PROFESSIONAL FEES AND SERVICES,WALSALL GALA CENTRE,Supplies & Services,Revenue
Walsall Council,http://opendatacommunities.org/id/metropolitan-district-council/walsall,WC117-639,30/06/2020,Economy & Environment,ALLIANCE LEISURE SERVICES LTD,24/06/2020,337.75,60500-GENERAL MATERIALS,OAK PARK,Supplies & Services,Revenue
Walsall Council,http://opendatacommunities.org/id/metropolitan-district-council/walsall,WC117-640,30/06/2020,Economy & Environment,ALLIANCE LEISURE SERVICES LTD,24/06/2020,337.75,63000-PROFESSIONAL FEES AND SERVICES,BLOXWICH LEISURE CENTRE,Supplies & Services,Revenue
Walsall Council,http://opendatacommunities.org/id/metropolitan-district-council/walsall,WC117-641,30/06/2020,Childrens,ALLSORTS OFFICE SUPPLIES LTD,09/06/2020,"3,825.62",60000-FURNITURE & EQUIPMENT,GENERAL MANAGEMENT SUPPORT (INC LEGAL),Supplies & Services,Revenue
Walsall Council,http://opendatacommunities.org/id/metropolitan-district-council/walsall,WC117-642,30/06/2020,Adult Social Care,ALMA COURT,05/06/2020,"2,449.97",73500-RESIDENTIAL,SOCIAL SUPPORT,Third Party Payments,Revenue
Walsall Council,http://opendatacommunities.org/id/metropolitan-district-council/walsall,WC117-643,30/06/2020,Adult Social Care,ALMA COURT,05/06/2020,"3,045.24",73502-NURSING,SOCIAL SUPPORT,Third Party Payments,Revenue
Walsall Council,http://opendatacommunities.org/id/metropolitan-district-council/walsall,WC117-644,30/06/2020,Adult Social Care,ALMA COURT,05/06/2020,"6,277.12",73503-NURSING EMI,PHYSICAL SUPPORT,Third Party Payments,Revenue
Walsall Council,http://opendatacommunities.org/id/metropolitan-district-council/walsall,WC117-645,30/06/2020,Adult Social Care,ALMA COURT,05/06/2020,"6,553.60",73500-RESIDENTIAL,MENTAL HEALTH SUPPORT,Third Party Payments,Revenue
Walsall Council,http://opendatacommunities.org/id/metropolitan-district-council/walsall,WC117-646,30/06/2020,Adult Social Care,ALMA COURT,23/06/2020,"6,277.12",73503-NURSING EMI,PHYSICAL SUPPORT,Third Party Payments,Revenue
Walsall Council,http://opendatacommunities.org/id/metropolitan-district-council/walsall,WC117-647,30/06/2020,Adult Social Care,ALMA COURT,23/06/2020,"6,553.60",73500-RESIDENTIAL,MENTAL HEALTH SUPPORT,Third Party Payments,Revenue
Walsall Council,http://opendatacommunities.org/id/metropolitan-district-council/walsall,WC117-648,30/06/2020,Childrens,ALMOZENE NURSERY & CHILDRENS CENTRE,01/06/2020,"5,187.00",66505-OTHER-GRANTS TO OTHER ORGS,EARLY YEARS - 2 YR OLDS,Third Party Payments,Revenue
Walsall Council,http://opendatacommunities.org/id/metropolitan-district-council/walsall,WC117-649,30/06/2020,Childrens,ALMOZENE NURSERY & CHILDRENS CENTRE,01/06/2020,"11,014.09",66505-OTHER-GRANTS TO OTHER ORGS,EARLY YEARS - 3 YR OLDS,Third Party Payments,Revenue
Walsall Council,http://opendatacommunities.org/id/metropolitan-district-council/walsall,WC117-650,30/06/2020,Adult Social Care,ALPHA HEALTH CARE LTD,05/06/2020,"-35,102.87",73503-NURSING EMI,MENTAL HEALTH SUPPORT,Third Party Payments,Revenue
Walsall Council,http://opendatacommunities.org/id/metropolitan-district-council/walsall,WC117-651,30/06/2020,Adult Social Care,ALPHA HEALTH CARE LTD,05/06/2020,"1,221.43",73025-PROFESSIONAL SERVICES-PRIV CONTRACTOR & OTHER AGENCIES,TRANSITIONAL CARE SUPPORT TEAM,Third Party Payments,Revenue
Walsall Council,http://opendatacommunities.org/id/metropolitan-district-council/walsall,WC117-652,30/06/2020,Adult Social Care,ALPHA HEALTH CARE LTD,05/06/2020,"2,044.00",73500-RESIDENTIAL,MENTAL HEALTH SUPPORT,Third Party Payments,Revenue
Walsall Council,http://opendatacommunities.org/id/metropolitan-district-council/walsall,WC117-653,30/06/2020,Adult Social Care,ALPHA HEALTH CARE LTD,05/06/2020,"2,308.00",73501-RESIDENTIAL EMI,PHYSICAL SUPPORT,Third Party Payments,Revenue
Walsall Council,http://opendatacommunities.org/id/metropolitan-district-council/walsall,WC117-654,30/06/2020,Adult Social Care,ALPHA HEALTH CARE LTD,05/06/2020,"2,308.00",73501-RESIDENTIAL EMI,MENTAL HEALTH SUPPORT,Third Party Payments,Revenue
Walsall Council,http://opendatacommunities.org/id/metropolitan-district-council/walsall,WC117-655,30/06/2020,Adult Social Care,ALPHA HEALTH CARE LTD,05/06/2020,"2,396.00",73502-NURSING,PHYSICAL SUPPORT,Third Party Payments,Revenue
Walsall Council,http://opendatacommunities.org/id/metropolitan-district-council/walsall,WC117-656,30/06/2020,Adult Social Care,ALPHA HEALTH CARE LTD,05/06/2020,"2,591.48",73501-RESIDENTIAL EMI,SUPPORT WITH MEMORY & COGNITION,Third Party Payments,Revenue
Walsall Council,http://opendatacommunities.org/id/metropolitan-district-council/walsall,WC117-657,30/06/2020,Adult Social Care,ALPHA HEALTH CARE LTD,05/06/2020,"2,696.00",73503-NURSING EMI,MENTAL HEALTH SUPPORT,Third Party Payments,Revenue
Walsall Council,http://opendatacommunities.org/id/metropolitan-district-council/walsall,WC117-658,30/06/2020,Adult Social Care,ALPHA HEALTH CARE LTD,05/06/2020,"2,696.00",73503-NURSING EMI,PHYSICAL SUPPORT,Third Party Payments,Revenue
Walsall Council,http://opendatacommunities.org/id/metropolitan-district-council/walsall,WC117-659,30/06/2020,Adult Social Care,ALPHA HEALTH CARE LTD,05/06/2020,"2,896.00",73503-NURSING EMI,PHYSICAL SUPPORT,Third Party Payments,Revenue
Walsall Council,http://opendatacommunities.org/id/metropolitan-district-council/walsall,WC117-660,30/06/2020,Adult Social Care,ALPHA HEALTH CARE LTD,05/06/2020,"3,147.60",73502-NURSING,PHYSICAL SUPPORT,Third Party Payments,Revenue
Walsall Council,http://opendatacommunities.org/id/metropolitan-district-council/walsall,WC117-661,30/06/2020,Adult Social Care,ALPHA HEALTH CARE LTD,05/06/2020,"3,175.68",73503-NURSING EMI,SUPPORT WITH MEMORY & COGNITION,Third Party Payments,Revenue
Walsall Council,http://opendatacommunities.org/id/metropolitan-district-council/walsall,WC117-662,30/06/2020,Adult Social Care,ALPHA HEALTH CARE LTD,05/06/2020,"3,219.72",73503-NURSING EMI,MENTAL HEALTH SUPPORT,Third Party Payments,Revenue
Walsall Council,http://opendatacommunities.org/id/metropolitan-district-council/walsall,WC117-663,30/06/2020,Adult Social Care,ALPHA HEALTH CARE LTD,05/06/2020,"3,219.72",73503-NURSING EMI,MENTAL HEALTH SUPPORT,Third Party Payments,Revenue
Walsall Council,http://opendatacommunities.org/id/metropolitan-district-council/walsall,WC117-664,30/06/2020,Adult Social Care,ALPHA HEALTH CARE LTD,05/06/2020,"3,219.72",73503-NURSING EMI,PHYSICAL SUPPORT,Third Party Payments,Revenue
Walsall Council,http://opendatacommunities.org/id/metropolitan-district-council/walsall,WC117-665,30/06/2020,Adult Social Care,ALPHA HEALTH CARE LTD,05/06/2020,"3,219.76",73503-NURSING EMI,PHYSICAL SUPPORT,Third Party Payments,Revenue
Walsall Council,http://opendatacommunities.org/id/metropolitan-district-council/walsall,WC117-666,30/06/2020,Adult Social Care,ALPHA HEALTH CARE LTD,05/06/2020,"3,275.80",73503-NURSING EMI,PHYSICAL SUPPORT,Third Party Payments,Revenue
Walsall Council,http://opendatacommunities.org/id/metropolitan-district-council/walsall,WC117-667,30/06/2020,Adult Social Care,ALPHA HEALTH CARE LTD,05/06/2020,"3,371.48",73501-RESIDENTIAL EMI,PHYSICAL SUPPORT,Third Party Payments,Revenue
Walsall Council,http://opendatacommunities.org/id/metropolitan-district-council/walsall,WC117-668,30/06/2020,Adult Social Care,ALPHA HEALTH CARE LTD,05/06/2020,"3,628.28",73503-NURSING EMI,PHYSICAL SUPPORT,Third Party Payments,Revenue
Walsall Council,http://opendatacommunities.org/id/metropolitan-district-council/walsall,WC117-669,30/06/2020,Adult Social Care,ALPHA HEALTH CARE LTD,05/06/2020,"3,888.00",73503-NURSING EMI,PHYSICAL SUPPORT,Third Party Payments,Revenue
Walsall Council,http://opendatacommunities.org/id/metropolitan-district-council/walsall,WC117-670,30/06/2020,Adult Social Care,ALPHA HEALTH CARE LTD,05/06/2020,"7,337.92",73503-NURSING EMI,PHYSICAL SUPPORT,Third Party Payments,Revenue
Walsall Council,http://opendatacommunities.org/id/metropolitan-district-council/walsall,WC117-671,30/06/2020,Adult Social Care,ALPHA HEALTH CARE LTD,05/06/2020,"32,022.93",73500-RESIDENTIAL,MENTAL HEALTH SUPPORT,Third Party Payments,Revenue
Walsall Council,http://opendatacommunities.org/id/metropolitan-district-council/walsall,WC117-672,30/06/2020,Adult Social Care,ALPHA HEALTH CARE LTD,08/06/2020,"3,321.43",73025-PROFESSIONAL SERVICES-PRIV CONTRACTOR & OTHER AGENCIES,TRANSITIONAL CARE SUPPORT TEAM,Third Party Payments,Revenue
Walsall Council,http://opendatacommunities.org/id/metropolitan-district-council/walsall,WC117-673,30/06/2020,Adult Social Care,ALPHA HEALTH CARE LTD,23/06/2020,"2,044.00",73500-RESIDENTIAL,MENTAL HEALTH SUPPORT,Third Party Payments,Revenue
Walsall Council,http://opendatacommunities.org/id/metropolitan-district-council/walsall,WC117-674,30/06/2020,Adult Social Care,ALPHA HEALTH CARE LTD,23/06/2020,"2,308.00",73501-RESIDENTIAL EMI,PHYSICAL SUPPORT,Third Party Payments,Revenue
Walsall Council,http://opendatacommunities.org/id/metropolitan-district-council/walsall,WC117-675,30/06/2020,Adult Social Care,ALPHA HEALTH CARE LTD,23/06/2020,"2,308.00",73501-RESIDENTIAL EMI,MENTAL HEALTH SUPPORT,Third Party Payments,Revenue
Walsall Council,http://opendatacommunities.org/id/metropolitan-district-council/walsall,WC117-676,30/06/2020,Adult Social Care,ALPHA HEALTH CARE LTD,23/06/2020,"2,396.00",73502-NURSING,PHYSICAL SUPPORT,Third Party Payments,Revenue
Walsall Council,http://opendatacommunities.org/id/metropolitan-district-council/walsall,WC117-677,30/06/2020,Adult Social Care,ALPHA HEALTH CARE LTD,23/06/2020,"2,591.48",73501-RESIDENTIAL EMI,SUPPORT WITH MEMORY & COGNITION,Third Party Payments,Revenue
Walsall Council,http://opendatacommunities.org/id/metropolitan-district-council/walsall,WC117-678,30/06/2020,Adult Social Care,ALPHA HEALTH CARE LTD,23/06/2020,"2,696.00",73503-NURSING EMI,PHYSICAL SUPPORT,Third Party Payments,Revenue
Walsall Council,http://opendatacommunities.org/id/metropolitan-district-council/walsall,WC117-679,30/06/2020,Adult Social Care,ALPHA HEALTH CARE LTD,23/06/2020,"2,696.00",73503-NURSING EMI,MENTAL HEALTH SUPPORT,Third Party Payments,Revenue
Walsall Council,http://opendatacommunities.org/id/metropolitan-district-council/walsall,WC117-680,30/06/2020,Adult Social Care,ALPHA HEALTH CARE LTD,23/06/2020,"2,896.00",73503-NURSING EMI,PHYSICAL SUPPORT,Third Party Payments,Revenue
Walsall Council,http://opendatacommunities.org/id/metropolitan-district-council/walsall,WC117-681,30/06/2020,Adult Social Care,ALPHA HEALTH CARE LTD,23/06/2020,"2,937.76",73502-NURSING,PHYSICAL SUPPORT,Third Party Payments,Revenue
Walsall Council,http://opendatacommunities.org/id/metropolitan-district-council/walsall,WC117-682,30/06/2020,Adult Social Care,ALPHA HEALTH CARE LTD,23/06/2020,"3,175.68",73503-NURSING EMI,SUPPORT WITH MEMORY & COGNITION,Third Party Payments,Revenue
Walsall Council,http://opendatacommunities.org/id/metropolitan-district-council/walsall,WC117-683,30/06/2020,Adult Social Care,ALPHA HEALTH CARE LTD,23/06/2020,"3,219.72",73503-NURSING EMI,MENTAL HEALTH SUPPORT,Third Party Payments,Revenue
Walsall Council,http://opendatacommunities.org/id/metropolitan-district-council/walsall,WC117-684,30/06/2020,Adult Social Care,ALPHA HEALTH CARE LTD,23/06/2020,"3,219.72",73503-NURSING EMI,MENTAL HEALTH SUPPORT,Third Party Payments,Revenue
Walsall Council,http://opendatacommunities.org/id/metropolitan-district-council/walsall,WC117-685,30/06/2020,Adult Social Care,ALPHA HEALTH CARE LTD,23/06/2020,"3,219.72",73503-NURSING EMI,PHYSICAL SUPPORT,Third Party Payments,Revenue
Walsall Council,http://opendatacommunities.org/id/metropolitan-district-council/walsall,WC117-686,30/06/2020,Adult Social Care,ALPHA HEALTH CARE LTD,23/06/2020,"3,219.76",73503-NURSING EMI,PHYSICAL SUPPORT,Third Party Payments,Revenue
Walsall Council,http://opendatacommunities.org/id/metropolitan-district-council/walsall,WC117-687,30/06/2020,Adult Social Care,ALPHA HEALTH CARE LTD,23/06/2020,"3,275.80",73503-NURSING EMI,PHYSICAL SUPPORT,Third Party Payments,Revenue
Walsall Council,http://opendatacommunities.org/id/metropolitan-district-council/walsall,WC117-688,30/06/2020,Adult Social Care,ALPHA HEALTH CARE LTD,23/06/2020,"3,371.48",73501-RESIDENTIAL EMI,PHYSICAL SUPPORT,Third Party Payments,Revenue
Walsall Council,http://opendatacommunities.org/id/metropolitan-district-council/walsall,WC117-689,30/06/2020,Adult Social Care,ALPHA HEALTH CARE LTD,23/06/2020,"3,628.28",73503-NURSING EMI,PHYSICAL SUPPORT,Third Party Payments,Revenue
Walsall Council,http://opendatacommunities.org/id/metropolitan-district-council/walsall,WC117-690,30/06/2020,Adult Social Care,ALPHA HEALTH CARE LTD,23/06/2020,"7,337.92",73503-NURSING EMI,PHYSICAL SUPPORT,Third Party Payments,Revenue
Walsall Council,http://opendatacommunities.org/id/metropolitan-district-council/walsall,WC117-691,30/06/2020,Childrens,ALPHA TRAINING ACADEMY UK LTD,03/06/2020,625.00,60500-GENERAL MATERIALS,PUPIL REFERAL UNIT EXCLUSIONS,Supplies & Services,Revenue
Walsall Council,http://opendatacommunities.org/id/metropolitan-district-council/walsall,WC117-692,30/06/2020,Childrens,ALPHA TRAINING ACADEMY UK LTD,08/06/2020,"1,125.00",60500-GENERAL MATERIALS,PUPIL REFERAL UNIT EXCLUSIONS,Supplies & Services,Revenue
Walsall Council,http://opendatacommunities.org/id/metropolitan-district-council/walsall,WC117-693,30/06/2020,Childrens,ALPHA TRAINING ACADEMY UK LTD,23/06/2020,"1,120.00",77300-ISB-FORMULA ALLOCATION,OUT OF BOROUGH SCHOOLS,Transfer Payments,Revenue
Walsall Council,http://opendatacommunities.org/id/metropolitan-district-council/walsall,WC117-694,30/06/2020,Childrens,ALPHABIOLABS,22/06/2020,469.75,73014-LEGAL FEES-PRIV CONTRACTOR FEES,GENERAL MANAGEMENT SUPPORT (INC LEGAL),Third Party Payments,Revenue
Walsall Council,http://opendatacommunities.org/id/metropolitan-district-council/walsall,WC117-695,30/06/2020,Childrens,ALPHABIOLABS,22/06/2020,601.00,73014-LEGAL FEES-PRIV CONTRACTOR FEES,GENERAL MANAGEMENT SUPPORT (INC LEGAL),Third Party Payments,Revenue
Walsall Council,http://opendatacommunities.org/id/metropolitan-district-council/walsall,WC117-696,30/06/2020,Childrens,AMAH NURSERIES LIMITED T/A BANANA MOON WALSALL,01/06/2020,"3,630.90",66505-OTHER-GRANTS TO OTHER ORGS,EARLY YEARS - 2 YR OLDS,Third Party Payments,Revenue
Walsall Council,http://opendatacommunities.org/id/metropolitan-district-council/walsall,WC117-697,30/06/2020,Childrens,AMAH NURSERIES LIMITED T/A BANANA MOON WALSALL,01/06/2020,"7,990.61",66505-OTHER-GRANTS TO OTHER ORGS,EARLY YEARS - 3 YR OLDS,Third Party Payments,Revenue
Walsall Council,http://opendatacommunities.org/id/metropolitan-district-council/walsall,WC117-698,30/06/2020,Economy & Environment,AMEY LG LIMITED,01/06/2020,"-107,213.66",60500-GENERAL MATERIALS,ROAD SAFETY & SUSTAINABLE TRAVEL,Supplies & Services,Revenue
Walsall Council,http://opendatacommunities.org/id/metropolitan-district-council/walsall,WC117-699,30/06/2020,Economy & Environment,AMEY LG LIMITED,08/06/2020,"23,622.08",73025-PROFESSIONAL SERVICES-PRIV CONTRACTOR & OTHER AGENCIES,TRAFFIC MANAGEMENT,Third Party Payments,Revenue
Walsall Council,http://opendatacommunities.org/id/metropolitan-district-council/walsall,WC117-700,30/06/2020,Economy & Environment,AMEY LG LIMITED,10/06/2020,"1,446.63",01006-SITE WORKS MAIN CONTRACTORS,CFR 1371 REPLACEMENT FOOTBRIDGE COALPOOL LANE,Capital,Capital
Walsall Council,http://opendatacommunities.org/id/metropolitan-district-council/walsall,WC117-701,30/06/2020,Resources and Transformation,AMEY LG LIMITED,25/06/2020,"1,279.56",60008-REPAIR & MAINTENANCE OF FURNITURE & EQUIPMENT,CCTV,Supplies & Services,Revenue
Walsall Council,http://opendatacommunities.org/id/metropolitan-district-council/walsall,WC117-702,30/06/2020,Economy & Environment,AMEY OW LTD,01/06/2020,"27,323.20",73025-PROFESSIONAL SERVICES-PRIV CONTRACTOR & OTHER AGENCIES,BRIDGE MAINTENANCE,Third Party Payments,Revenue
Walsall Council,http://opendatacommunities.org/id/metropolitan-district-council/walsall,WC117-703,30/06/2020,Economy & Environment,AMEY OW LTD,17/06/2020,"2,037.18",73025-PROFESSIONAL SERVICES-PRIV CONTRACTOR & OTHER AGENCIES,BRIDGE MAINTENANCE,Third Party Payments,Revenue
Walsall Council,http://opendatacommunities.org/id/metropolitan-district-council/walsall,WC117-704,30/06/2020,Adult Social Care,AMG NURSING CARE SERVICES,01/06/2020,"1,586.00",73508-COMMUNITY SUPPORTED LIVING/SUPPORTED ACCOMMODATION,PHYSICAL SUPPORT,Third Party Payments,Revenue
Walsall Council,http://opendatacommunities.org/id/metropolitan-district-council/walsall,WC117-705,30/06/2020,Adult Social Care,AMG NURSING CARE SERVICES,08/06/2020,"10,695.74",73508-COMMUNITY SUPPORTED LIVING/SUPPORTED ACCOMMODATION,PHYSICAL SUPPORT,Third Party Payments,Revenue
Walsall Council,http://opendatacommunities.org/id/metropolitan-district-council/walsall,WC117-706,30/06/2020,Adult Social Care,ANCHOR CAREHOMES LTD - HARDEN HALL,03/06/2020,"26,190.00",73025-PROFESSIONAL SERVICES-PRIV CONTRACTOR & OTHER AGENCIES,"STRATEGY,COMMISSIONING AND DELIVERY SUPPORT",Third Party Payments,Revenue
Walsall Council,http://opendatacommunities.org/id/metropolitan-district-council/walsall,WC117-707,30/06/2020,Adult Social Care,ANCHOR CAREHOMES LTD - HARDEN HALL,05/06/2020,"2,044.00",73500-RESIDENTIAL,SUPPORT WITH MEMORY & COGNITION,Third Party Payments,Revenue
Walsall Council,http://opendatacommunities.org/id/metropolitan-district-council/walsall,WC117-708,30/06/2020,Adult Social Care,ANCHOR CAREHOMES LTD - HARDEN HALL,05/06/2020,"2,044.00",73500-RESIDENTIAL,PHYSICAL SUPPORT,Third Party Payments,Revenue
Walsall Council,http://opendatacommunities.org/id/metropolitan-district-council/walsall,WC117-709,30/06/2020,Adult Social Care,ANCHOR CAREHOMES LTD - HARDEN HALL,05/06/2020,"2,044.00",73500-RESIDENTIAL,PHYSICAL SUPPORT,Third Party Payments,Revenue
Walsall Council,http://opendatacommunities.org/id/metropolitan-district-council/walsall,WC117-710,30/06/2020,Adult Social Care,ANCHOR CAREHOMES LTD - HARDEN HALL,05/06/2020,"2,044.00",73500-RESIDENTIAL,SUPPORT WITH MEMORY & COGNITION,Third Party Payments,Revenue
Walsall Council,http://opendatacommunities.org/id/metropolitan-district-council/walsall,WC117-711,30/06/2020,Adult Social Care,ANCHOR CAREHOMES LTD - HARDEN HALL,05/06/2020,"2,195.16",73500-RESIDENTIAL,PHYSICAL SUPPORT,Third Party Payments,Revenue
Walsall Council,http://opendatacommunities.org/id/metropolitan-district-council/walsall,WC117-712,30/06/2020,Adult Social Care,ANCHOR CAREHOMES LTD - HARDEN HALL,05/06/2020,"2,204.00",73500-RESIDENTIAL,PHYSICAL SUPPORT,Third Party Payments,Revenue
Walsall Council,http://opendatacommunities.org/id/metropolitan-district-council/walsall,WC117-713,30/06/2020,Adult Social Care,ANCHOR CAREHOMES LTD - HARDEN HALL,05/06/2020,"2,271.48",73501-RESIDENTIAL EMI,PHYSICAL SUPPORT,Third Party Payments,Revenue
Walsall Council,http://opendatacommunities.org/id/metropolitan-district-council/walsall,WC117-714,30/06/2020,Adult Social Care,ANCHOR CAREHOMES LTD - HARDEN HALL,05/06/2020,"2,308.00",73501-RESIDENTIAL EMI,MENTAL HEALTH SUPPORT,Third Party Payments,Revenue
Walsall Council,http://opendatacommunities.org/id/metropolitan-district-council/walsall,WC117-715,30/06/2020,Adult Social Care,ANCHOR CAREHOMES LTD - HARDEN HALL,05/06/2020,"2,308.00",73501-RESIDENTIAL EMI,PHYSICAL SUPPORT,Third Party Payments,Revenue
Walsall Council,http://opendatacommunities.org/id/metropolitan-district-council/walsall,WC117-716,30/06/2020,Adult Social Care,ANCHOR CAREHOMES LTD - HARDEN HALL,05/06/2020,"2,308.00",73501-RESIDENTIAL EMI,MENTAL HEALTH SUPPORT,Third Party Payments,Revenue
Walsall Council,http://opendatacommunities.org/id/metropolitan-district-council/walsall,WC117-717,30/06/2020,Adult Social Care,ANCHOR CAREHOMES LTD - HARDEN HALL,05/06/2020,"2,308.00",73501-RESIDENTIAL EMI,PHYSICAL SUPPORT,Third Party Payments,Revenue
Walsall Council,http://opendatacommunities.org/id/metropolitan-district-council/walsall,WC117-718,30/06/2020,Adult Social Care,ANCHOR CAREHOMES LTD - HARDEN HALL,05/06/2020,"2,308.00",73501-RESIDENTIAL EMI,PHYSICAL SUPPORT,Third Party Payments,Revenue
Walsall Council,http://opendatacommunities.org/id/metropolitan-district-council/walsall,WC117-719,30/06/2020,Adult Social Care,ANCHOR CAREHOMES LTD - HARDEN HALL,05/06/2020,"2,308.00",73501-RESIDENTIAL EMI,MENTAL HEALTH SUPPORT,Third Party Payments,Revenue
Walsall Council,http://opendatacommunities.org/id/metropolitan-district-council/walsall,WC117-720,30/06/2020,Adult Social Care,ANCHOR CAREHOMES LTD - HARDEN HALL,05/06/2020,"2,308.00",73501-RESIDENTIAL EMI,SUPPORT WITH MEMORY & COGNITION,Third Party Payments,Revenue
Walsall Council,http://opendatacommunities.org/id/metropolitan-district-council/walsall,WC117-721,30/06/2020,Adult Social Care,ANCHOR CAREHOMES LTD - HARDEN HALL,05/06/2020,"2,308.00",73501-RESIDENTIAL EMI,PHYSICAL SUPPORT,Third Party Payments,Revenue
Walsall Council,http://opendatacommunities.org/id/metropolitan-district-council/walsall,WC117-722,30/06/2020,Adult Social Care,ANCHOR CAREHOMES LTD - HARDEN HALL,05/06/2020,"2,308.00",73501-RESIDENTIAL EMI,PHYSICAL SUPPORT,Third Party Payments,Revenue
Walsall Council,http://opendatacommunities.org/id/metropolitan-district-council/walsall,WC117-723,30/06/2020,Adult Social Care,ANCHOR CAREHOMES LTD - HARDEN HALL,05/06/2020,"2,308.00",73501-RESIDENTIAL EMI,MENTAL HEALTH SUPPORT,Third Party Payments,Revenue
Walsall Council,http://opendatacommunities.org/id/metropolitan-district-council/walsall,WC117-724,30/06/2020,Adult Social Care,ANCHOR CAREHOMES LTD - HARDEN HALL,05/06/2020,"2,308.00",73501-RESIDENTIAL EMI,PHYSICAL SUPPORT,Third Party Payments,Revenue
Walsall Council,http://opendatacommunities.org/id/metropolitan-district-council/walsall,WC117-725,30/06/2020,Adult Social Care,ANCHOR CAREHOMES LTD - HARDEN HALL,05/06/2020,"2,308.00",73501-RESIDENTIAL EMI,MENTAL HEALTH SUPPORT,Third Party Payments,Revenue
Walsall Council,http://opendatacommunities.org/id/metropolitan-district-council/walsall,WC117-726,30/06/2020,Adult Social Care,ANCHOR CAREHOMES LTD - HARDEN HALL,05/06/2020,"2,324.00",73500-RESIDENTIAL,SENSORY SUPPORT,Third Party Payments,Revenue
Walsall Council,http://opendatacommunities.org/id/metropolitan-district-council/walsall,WC117-727,30/06/2020,Adult Social Care,ANCHOR CAREHOMES LTD - HARDEN HALL,05/06/2020,"2,335.76",73501-RESIDENTIAL EMI,PHYSICAL SUPPORT,Third Party Payments,Revenue
Walsall Council,http://opendatacommunities.org/id/metropolitan-district-council/walsall,WC117-728,30/06/2020,Adult Social Care,ANCHOR CAREHOMES LTD - HARDEN HALL,05/06/2020,"2,364.00",73500-RESIDENTIAL,PHYSICAL SUPPORT,Third Party Payments,Revenue
Walsall Council,http://opendatacommunities.org/id/metropolitan-district-council/walsall,WC117-729,30/06/2020,Adult Social Care,ANCHOR CAREHOMES LTD - HARDEN HALL,05/06/2020,"2,364.00",73500-RESIDENTIAL,SOCIAL SUPPORT,Third Party Payments,Revenue
Walsall Council,http://opendatacommunities.org/id/metropolitan-district-council/walsall,WC117-730,30/06/2020,Adult Social Care,ANCHOR CAREHOMES LTD - HARDEN HALL,05/06/2020,"2,480.32",73501-RESIDENTIAL EMI,SENSORY SUPPORT,Third Party Payments,Revenue
Walsall Council,http://opendatacommunities.org/id/metropolitan-district-council/walsall,WC117-731,30/06/2020,Adult Social Care,ANCHOR CAREHOMES LTD - HARDEN HALL,05/06/2020,"2,535.16",73500-RESIDENTIAL,PHYSICAL SUPPORT,Third Party Payments,Revenue
Walsall Council,http://opendatacommunities.org/id/metropolitan-district-council/walsall,WC117-732,30/06/2020,Adult Social Care,ANCHOR CAREHOMES LTD - HARDEN HALL,05/06/2020,"2,628.00",73501-RESIDENTIAL EMI,SUPPORT WITH MEMORY & COGNITION,Third Party Payments,Revenue
Walsall Council,http://opendatacommunities.org/id/metropolitan-district-council/walsall,WC117-733,30/06/2020,Adult Social Care,ANCHOR CAREHOMES LTD - HARDEN HALL,05/06/2020,"2,648.00",73501-RESIDENTIAL EMI,PHYSICAL SUPPORT,Third Party Payments,Revenue
Walsall Council,http://opendatacommunities.org/id/metropolitan-district-council/walsall,WC117-734,30/06/2020,Adult Social Care,ANCHOR CAREHOMES LTD - HARDEN HALL,05/06/2020,"2,648.00",73501-RESIDENTIAL EMI,PHYSICAL SUPPORT,Third Party Payments,Revenue
Walsall Council,http://opendatacommunities.org/id/metropolitan-district-council/walsall,WC117-735,30/06/2020,Adult Social Care,ANCHOR CAREHOMES LTD - HARDEN HALL,05/06/2020,"2,648.00",73501-RESIDENTIAL EMI,PHYSICAL SUPPORT,Third Party Payments,Revenue
Walsall Council,http://opendatacommunities.org/id/metropolitan-district-council/walsall,WC117-736,30/06/2020,Adult Social Care,ANCHOR CAREHOMES LTD - HARDEN HALL,05/06/2020,"2,668.00",73501-RESIDENTIAL EMI,PHYSICAL SUPPORT,Third Party Payments,Revenue
Walsall Council,http://opendatacommunities.org/id/metropolitan-district-council/walsall,WC117-737,30/06/2020,Adult Social Care,ANCHOR CAREHOMES LTD - HARDEN HALL,05/06/2020,"2,668.00",73501-RESIDENTIAL EMI,PHYSICAL SUPPORT,Third Party Payments,Revenue
Walsall Council,http://opendatacommunities.org/id/metropolitan-district-council/walsall,WC117-738,30/06/2020,Adult Social Care,ANCHOR CAREHOMES LTD - HARDEN HALL,05/06/2020,"2,668.00",73501-RESIDENTIAL EMI,PHYSICAL SUPPORT,Third Party Payments,Revenue
Walsall Council,http://opendatacommunities.org/id/metropolitan-district-council/walsall,WC117-739,30/06/2020,Adult Social Care,ANCHOR CAREHOMES LTD - HARDEN HALL,05/06/2020,"2,668.00",73501-RESIDENTIAL EMI,SOCIAL SUPPORT,Third Party Payments,Revenue
Walsall Council,http://opendatacommunities.org/id/metropolitan-district-council/walsall,WC117-740,30/06/2020,Adult Social Care,ANCHOR CAREHOMES LTD - HARDEN HALL,23/06/2020,"2,044.00",73500-RESIDENTIAL,PHYSICAL SUPPORT,Third Party Payments,Revenue
Walsall Council,http://opendatacommunities.org/id/metropolitan-district-council/walsall,WC117-741,30/06/2020,Adult Social Care,ANCHOR CAREHOMES LTD - HARDEN HALL,23/06/2020,"2,044.00",73500-RESIDENTIAL,SUPPORT WITH MEMORY & COGNITION,Third Party Payments,Revenue
Walsall Council,http://opendatacommunities.org/id/metropolitan-district-council/walsall,WC117-742,30/06/2020,Adult Social Care,ANCHOR CAREHOMES LTD - HARDEN HALL,23/06/2020,"2,044.00",73500-RESIDENTIAL,PHYSICAL SUPPORT,Third Party Payments,Revenue
Walsall Council,http://opendatacommunities.org/id/metropolitan-district-council/walsall,WC117-743,30/06/2020,Adult Social Care,ANCHOR CAREHOMES LTD - HARDEN HALL,23/06/2020,"2,044.00",73500-RESIDENTIAL,SUPPORT WITH MEMORY & COGNITION,Third Party Payments,Revenue
Walsall Council,http://opendatacommunities.org/id/metropolitan-district-council/walsall,WC117-744,30/06/2020,Adult Social Care,ANCHOR CAREHOMES LTD - HARDEN HALL,23/06/2020,"2,195.16",73500-RESIDENTIAL,PHYSICAL SUPPORT,Third Party Payments,Revenue
Walsall Council,http://opendatacommunities.org/id/metropolitan-district-council/walsall,WC117-745,30/06/2020,Adult Social Care,ANCHOR CAREHOMES LTD - HARDEN HALL,23/06/2020,"2,204.00",73500-RESIDENTIAL,PHYSICAL SUPPORT,Third Party Payments,Revenue
Walsall Council,http://opendatacommunities.org/id/metropolitan-district-council/walsall,WC117-746,30/06/2020,Adult Social Care,ANCHOR CAREHOMES LTD - HARDEN HALL,23/06/2020,"2,271.48",73501-RESIDENTIAL EMI,PHYSICAL SUPPORT,Third Party Payments,Revenue
Walsall Council,http://opendatacommunities.org/id/metropolitan-district-council/walsall,WC117-747,30/06/2020,Adult Social Care,ANCHOR CAREHOMES LTD - HARDEN HALL,23/06/2020,"2,308.00",73501-RESIDENTIAL EMI,PHYSICAL SUPPORT,Third Party Payments,Revenue
Walsall Council,http://opendatacommunities.org/id/metropolitan-district-council/walsall,WC117-748,30/06/2020,Adult Social Care,ANCHOR CAREHOMES LTD - HARDEN HALL,23/06/2020,"2,308.00",73501-RESIDENTIAL EMI,PHYSICAL SUPPORT,Third Party Payments,Revenue
Walsall Council,http://opendatacommunities.org/id/metropolitan-district-council/walsall,WC117-749,30/06/2020,Adult Social Care,ANCHOR CAREHOMES LTD - HARDEN HALL,23/06/2020,"2,308.00",73501-RESIDENTIAL EMI,MENTAL HEALTH SUPPORT,Third Party Payments,Revenue
Walsall Council,http://opendatacommunities.org/id/metropolitan-district-council/walsall,WC117-750,30/06/2020,Adult Social Care,ANCHOR CAREHOMES LTD - HARDEN HALL,23/06/2020,"2,308.00",73501-RESIDENTIAL EMI,MENTAL HEALTH SUPPORT,Third Party Payments,Revenue
Walsall Council,http://opendatacommunities.org/id/metropolitan-district-council/walsall,WC117-751,30/06/2020,Adult Social Care,ANCHOR CAREHOMES LTD - HARDEN HALL,23/06/2020,"2,308.00",73501-RESIDENTIAL EMI,PHYSICAL SUPPORT,Third Party Payments,Revenue
Walsall Council,http://opendatacommunities.org/id/metropolitan-district-council/walsall,WC117-752,30/06/2020,Adult Social Care,ANCHOR CAREHOMES LTD - HARDEN HALL,23/06/2020,"2,308.00",73501-RESIDENTIAL EMI,PHYSICAL SUPPORT,Third Party Payments,Revenue
Walsall Council,http://opendatacommunities.org/id/metropolitan-district-council/walsall,WC117-753,30/06/2020,Adult Social Care,ANCHOR CAREHOMES LTD - HARDEN HALL,23/06/2020,"2,308.00",73501-RESIDENTIAL EMI,SUPPORT WITH MEMORY & COGNITION,Third Party Payments,Revenue
Walsall Council,http://opendatacommunities.org/id/metropolitan-district-council/walsall,WC117-754,30/06/2020,Adult Social Care,ANCHOR CAREHOMES LTD - HARDEN HALL,23/06/2020,"2,308.00",73501-RESIDENTIAL EMI,MENTAL HEALTH SUPPORT,Third Party Payments,Revenue
Walsall Council,http://opendatacommunities.org/id/metropolitan-district-council/walsall,WC117-755,30/06/2020,Adult Social Care,ANCHOR CAREHOMES LTD - HARDEN HALL,23/06/2020,"2,308.00",73501-RESIDENTIAL EMI,PHYSICAL SUPPORT,Third Party Payments,Revenue
Walsall Council,http://opendatacommunities.org/id/metropolitan-district-council/walsall,WC117-756,30/06/2020,Adult Social Care,ANCHOR CAREHOMES LTD - HARDEN HALL,23/06/2020,"2,308.00",73501-RESIDENTIAL EMI,MENTAL HEALTH SUPPORT,Third Party Payments,Revenue
Walsall Council,http://opendatacommunities.org/id/metropolitan-district-council/walsall,WC117-757,30/06/2020,Adult Social Care,ANCHOR CAREHOMES LTD - HARDEN HALL,23/06/2020,"2,308.00",73501-RESIDENTIAL EMI,PHYSICAL SUPPORT,Third Party Payments,Revenue
Walsall Council,http://opendatacommunities.org/id/metropolitan-district-council/walsall,WC117-758,30/06/2020,Adult Social Care,ANCHOR CAREHOMES LTD - HARDEN HALL,23/06/2020,"2,308.00",73501-RESIDENTIAL EMI,MENTAL HEALTH SUPPORT,Third Party Payments,Revenue
Walsall Council,http://opendatacommunities.org/id/metropolitan-district-council/walsall,WC117-759,30/06/2020,Adult Social Care,ANCHOR CAREHOMES LTD - HARDEN HALL,23/06/2020,"2,324.00",73500-RESIDENTIAL,SENSORY SUPPORT,Third Party Payments,Revenue
Walsall Council,http://opendatacommunities.org/id/metropolitan-district-council/walsall,WC117-760,30/06/2020,Adult Social Care,ANCHOR CAREHOMES LTD - HARDEN HALL,23/06/2020,"2,335.76",73501-RESIDENTIAL EMI,PHYSICAL SUPPORT,Third Party Payments,Revenue
Walsall Council,http://opendatacommunities.org/id/metropolitan-district-council/walsall,WC117-761,30/06/2020,Adult Social Care,ANCHOR CAREHOMES LTD - HARDEN HALL,23/06/2020,"2,364.00",73500-RESIDENTIAL,SOCIAL SUPPORT,Third Party Payments,Revenue
Walsall Council,http://opendatacommunities.org/id/metropolitan-district-council/walsall,WC117-762,30/06/2020,Adult Social Care,ANCHOR CAREHOMES LTD - HARDEN HALL,23/06/2020,"2,364.00",73500-RESIDENTIAL,PHYSICAL SUPPORT,Third Party Payments,Revenue
Walsall Council,http://opendatacommunities.org/id/metropolitan-district-council/walsall,WC117-763,30/06/2020,Adult Social Care,ANCHOR CAREHOMES LTD - HARDEN HALL,23/06/2020,"2,480.32",73501-RESIDENTIAL EMI,SENSORY SUPPORT,Third Party Payments,Revenue
Walsall Council,http://opendatacommunities.org/id/metropolitan-district-council/walsall,WC117-764,30/06/2020,Adult Social Care,ANCHOR CAREHOMES LTD - HARDEN HALL,23/06/2020,"2,535.16",73500-RESIDENTIAL,PHYSICAL SUPPORT,Third Party Payments,Revenue
Walsall Council,http://opendatacommunities.org/id/metropolitan-district-council/walsall,WC117-765,30/06/2020,Adult Social Care,ANCHOR CAREHOMES LTD - HARDEN HALL,23/06/2020,"2,628.00",73501-RESIDENTIAL EMI,SUPPORT WITH MEMORY & COGNITION,Third Party Payments,Revenue
Walsall Council,http://opendatacommunities.org/id/metropolitan-district-council/walsall,WC117-766,30/06/2020,Adult Social Care,ANCHOR CAREHOMES LTD - HARDEN HALL,23/06/2020,"2,648.00",73501-RESIDENTIAL EMI,PHYSICAL SUPPORT,Third Party Payments,Revenue
Walsall Council,http://opendatacommunities.org/id/metropolitan-district-council/walsall,WC117-767,30/06/2020,Adult Social Care,ANCHOR CAREHOMES LTD - HARDEN HALL,23/06/2020,"2,648.00",73501-RESIDENTIAL EMI,PHYSICAL SUPPORT,Third Party Payments,Revenue
Walsall Council,http://opendatacommunities.org/id/metropolitan-district-council/walsall,WC117-768,30/06/2020,Adult Social Care,ANCHOR CAREHOMES LTD - HARDEN HALL,23/06/2020,"2,648.00",73501-RESIDENTIAL EMI,PHYSICAL SUPPORT,Third Party Payments,Revenue
Walsall Council,http://opendatacommunities.org/id/metropolitan-district-council/walsall,WC117-769,30/06/2020,Adult Social Care,ANCHOR CAREHOMES LTD - HARDEN HALL,23/06/2020,"2,668.00",73501-RESIDENTIAL EMI,PHYSICAL SUPPORT,Third Party Payments,Revenue
Walsall Council,http://opendatacommunities.org/id/metropolitan-district-council/walsall,WC117-770,30/06/2020,Adult Social Care,ANCHOR CAREHOMES LTD - HARDEN HALL,23/06/2020,"2,668.00",73501-RESIDENTIAL EMI,PHYSICAL SUPPORT,Third Party Payments,Revenue
Walsall Council,http://opendatacommunities.org/id/metropolitan-district-council/walsall,WC117-771,30/06/2020,Adult Social Care,ANCHOR CAREHOMES LTD - HARDEN HALL,23/06/2020,"2,668.00",73501-RESIDENTIAL EMI,PHYSICAL SUPPORT,Third Party Payments,Revenue
Walsall Council,http://opendatacommunities.org/id/metropolitan-district-council/walsall,WC117-772,30/06/2020,Adult Social Care,ANCHOR CAREHOMES LTD - HARDEN HALL,23/06/2020,"2,668.00",73501-RESIDENTIAL EMI,SOCIAL SUPPORT,Third Party Payments,Revenue
Walsall Council,http://opendatacommunities.org/id/metropolitan-district-council/walsall,WC117-773,30/06/2020,Childrens,ANDREWS ELECTRICAL LTD,15/06/2020,"2,650.00",01006-SITE WORKS MAIN CONTRACTORS,CFR 1348 ST GILES STRUCTURAL WORKS,Capital,Capital
Walsall Council,http://opendatacommunities.org/id/metropolitan-district-council/walsall,WC117-774,30/06/2020,Childrens,ANGELS AND BUTTERFLIES CHILDMINDING,01/06/2020,778.05,66505-OTHER-GRANTS TO OTHER ORGS,EARLY YEARS - 2 YR OLDS,Third Party Payments,Revenue
Walsall Council,http://opendatacommunities.org/id/metropolitan-district-council/walsall,WC117-775,30/06/2020,Childrens,ANGELS AND BUTTERFLIES CHILDMINDING,01/06/2020,"1,540.53",66505-OTHER-GRANTS TO OTHER ORGS,EARLY YEARS - 3 YR OLDS,Third Party Payments,Revenue
Walsall Council,http://opendatacommunities.org/id/metropolitan-district-council/walsall,WC117-776,30/06/2020,Adult Social Care,ANSON COURT RESIDENTIAL HOME,03/06/2020,"16,005.00",73025-PROFESSIONAL SERVICES-PRIV CONTRACTOR & OTHER AGENCIES,"STRATEGY,COMMISSIONING AND DELIVERY SUPPORT",Third Party Payments,Revenue
Walsall Council,http://opendatacommunities.org/id/metropolitan-district-council/walsall,WC117-777,30/06/2020,Adult Social Care,ANSON COURT RESIDENTIAL HOME,05/06/2020,"-3,889.25",73501-RESIDENTIAL EMI,PHYSICAL SUPPORT,Third Party Payments,Revenue
Walsall Council,http://opendatacommunities.org/id/metropolitan-district-council/walsall,WC117-778,30/06/2020,Adult Social Care,ANSON COURT RESIDENTIAL HOME,05/06/2020,577.00,73501-RESIDENTIAL EMI,SUPPORT WITH MEMORY & COGNITION,Third Party Payments,Revenue
Walsall Council,http://opendatacommunities.org/id/metropolitan-district-council/walsall,WC117-779,30/06/2020,Adult Social Care,ANSON COURT RESIDENTIAL HOME,05/06/2020,906.71,73501-RESIDENTIAL EMI,PHYSICAL SUPPORT,Third Party Payments,Revenue
Walsall Council,http://opendatacommunities.org/id/metropolitan-district-council/walsall,WC117-780,30/06/2020,Adult Social Care,ANSON COURT RESIDENTIAL HOME,05/06/2020,938.14,73501-RESIDENTIAL EMI,MENTAL HEALTH SUPPORT,Third Party Payments,Revenue
Walsall Council,http://opendatacommunities.org/id/metropolitan-district-council/walsall,WC117-781,30/06/2020,Adult Social Care,ANSON COURT RESIDENTIAL HOME,05/06/2020,989.14,73501-RESIDENTIAL EMI,SUPPORT WITH MEMORY & COGNITION,Third Party Payments,Revenue
Walsall Council,http://opendatacommunities.org/id/metropolitan-district-council/walsall,WC117-782,30/06/2020,Adult Social Care,ANSON COURT RESIDENTIAL HOME,05/06/2020,"1,071.57",73501-RESIDENTIAL EMI,MENTAL HEALTH SUPPORT,Third Party Payments,Revenue
Walsall Council,http://opendatacommunities.org/id/metropolitan-district-council/walsall,WC117-783,30/06/2020,Adult Social Care,ANSON COURT RESIDENTIAL HOME,05/06/2020,"1,895.86",73501-RESIDENTIAL EMI,MENTAL HEALTH SUPPORT,Third Party Payments,Revenue
Walsall Council,http://opendatacommunities.org/id/metropolitan-district-council/walsall,WC117-784,30/06/2020,Adult Social Care,ANSON COURT RESIDENTIAL HOME,05/06/2020,"2,044.00",73500-RESIDENTIAL,PHYSICAL SUPPORT,Third Party Payments,Revenue
Walsall Council,http://opendatacommunities.org/id/metropolitan-district-council/walsall,WC117-785,30/06/2020,Adult Social Care,ANSON COURT RESIDENTIAL HOME,05/06/2020,"2,308.00",73501-RESIDENTIAL EMI,SOCIAL SUPPORT,Third Party Payments,Revenue
Walsall Council,http://opendatacommunities.org/id/metropolitan-district-council/walsall,WC117-786,30/06/2020,Adult Social Care,ANSON COURT RESIDENTIAL HOME,05/06/2020,"2,308.00",73501-RESIDENTIAL EMI,PHYSICAL SUPPORT,Third Party Payments,Revenue
Walsall Council,http://opendatacommunities.org/id/metropolitan-district-council/walsall,WC117-787,30/06/2020,Adult Social Care,ANSON COURT RESIDENTIAL HOME,05/06/2020,"2,308.00",73501-RESIDENTIAL EMI,SOCIAL SUPPORT,Third Party Payments,Revenue
Walsall Council,http://opendatacommunities.org/id/metropolitan-district-council/walsall,WC117-788,30/06/2020,Adult Social Care,ANSON COURT RESIDENTIAL HOME,05/06/2020,"2,428.00",73501-RESIDENTIAL EMI,MENTAL HEALTH SUPPORT,Third Party Payments,Revenue
Walsall Council,http://opendatacommunities.org/id/metropolitan-district-council/walsall,WC117-789,30/06/2020,Adult Social Care,ANSON COURT RESIDENTIAL HOME,05/06/2020,"2,428.00",73501-RESIDENTIAL EMI,PHYSICAL SUPPORT,Third Party Payments,Revenue
Walsall Council,http://opendatacommunities.org/id/metropolitan-district-council/walsall,WC117-790,30/06/2020,Adult Social Care,ANSON COURT RESIDENTIAL HOME,05/06/2020,"2,441.28",73500-RESIDENTIAL,SUPPORT WITH MEMORY & COGNITION,Third Party Payments,Revenue
Walsall Council,http://opendatacommunities.org/id/metropolitan-district-council/walsall,WC117-791,30/06/2020,Adult Social Care,ANSON COURT RESIDENTIAL HOME,05/06/2020,"2,508.00",73501-RESIDENTIAL EMI,SOCIAL SUPPORT,Third Party Payments,Revenue
Walsall Council,http://opendatacommunities.org/id/metropolitan-district-council/walsall,WC117-792,30/06/2020,Adult Social Care,ANSON COURT RESIDENTIAL HOME,05/06/2020,"2,508.00",73501-RESIDENTIAL EMI,PHYSICAL SUPPORT,Third Party Payments,Revenue
Walsall Council,http://opendatacommunities.org/id/metropolitan-district-council/walsall,WC117-793,30/06/2020,Adult Social Care,ANSON COURT RESIDENTIAL HOME,05/06/2020,"2,508.00",73501-RESIDENTIAL EMI,PHYSICAL SUPPORT,Third Party Payments,Revenue
Walsall Council,http://opendatacommunities.org/id/metropolitan-district-council/walsall,WC117-794,30/06/2020,Adult Social Care,ANSON COURT RESIDENTIAL HOME,05/06/2020,"2,508.00",73501-RESIDENTIAL EMI,SOCIAL SUPPORT,Third Party Payments,Revenue
Walsall Council,http://opendatacommunities.org/id/metropolitan-district-council/walsall,WC117-795,30/06/2020,Adult Social Care,ANSON COURT RESIDENTIAL HOME,23/06/2020,"2,044.00",73500-RESIDENTIAL,PHYSICAL SUPPORT,Third Party Payments,Revenue
Walsall Council,http://opendatacommunities.org/id/metropolitan-district-council/walsall,WC117-796,30/06/2020,Adult Social Care,ANSON COURT RESIDENTIAL HOME,23/06/2020,"2,308.00",73501-RESIDENTIAL EMI,PHYSICAL SUPPORT,Third Party Payments,Revenue
Walsall Council,http://opendatacommunities.org/id/metropolitan-district-council/walsall,WC117-797,30/06/2020,Adult Social Care,ANSON COURT RESIDENTIAL HOME,23/06/2020,"2,308.00",73501-RESIDENTIAL EMI,SOCIAL SUPPORT,Third Party Payments,Revenue
Walsall Council,http://opendatacommunities.org/id/metropolitan-district-council/walsall,WC117-798,30/06/2020,Adult Social Care,ANSON COURT RESIDENTIAL HOME,23/06/2020,"2,308.00",73501-RESIDENTIAL EMI,SOCIAL SUPPORT,Third Party Payments,Revenue
Walsall Council,http://opendatacommunities.org/id/metropolitan-district-council/walsall,WC117-799,30/06/2020,Adult Social Care,ANSON COURT RESIDENTIAL HOME,23/06/2020,"2,428.00",73501-RESIDENTIAL EMI,PHYSICAL SUPPORT,Third Party Payments,Revenue
Walsall Council,http://opendatacommunities.org/id/metropolitan-district-council/walsall,WC117-800,30/06/2020,Adult Social Care,ANSON COURT RESIDENTIAL HOME,23/06/2020,"2,428.00",73501-RESIDENTIAL EMI,MENTAL HEALTH SUPPORT,Third Party Payments,Revenue
Walsall Council,http://opendatacommunities.org/id/metropolitan-district-council/walsall,WC117-801,30/06/2020,Adult Social Care,ANSON COURT RESIDENTIAL HOME,23/06/2020,"2,441.28",73500-RESIDENTIAL,SUPPORT WITH MEMORY & COGNITION,Third Party Payments,Revenue
Walsall Council,http://opendatacommunities.org/id/metropolitan-district-council/walsall,WC117-802,30/06/2020,Adult Social Care,ANSON COURT RESIDENTIAL HOME,23/06/2020,"2,508.00",73501-RESIDENTIAL EMI,SOCIAL SUPPORT,Third Party Payments,Revenue
Walsall Council,http://opendatacommunities.org/id/metropolitan-district-council/walsall,WC117-803,30/06/2020,Adult Social Care,ANSON COURT RESIDENTIAL HOME,23/06/2020,"2,508.00",73501-RESIDENTIAL EMI,PHYSICAL SUPPORT,Third Party Payments,Revenue
